{"text_format":"1","workbook":"xlsx","n_sheets":8,"sheets":["READ ME","Run-UDL Crosswalk","Pertinent UDLs","HUC Bin Summary Table","Terrestrial Plant Summary","Wetland Plant Summary","Priority","Species HUCs Bins"],"not_rendered":{"charts":0,"images":0,"macros":1,"external_links":0,"defined_names":4,"comments":0,"pivot_tables":2},"unopened":[],"bounds":{"document_bytes":16777216,"sheet_cells":100000,"rows_first":2000,"rows_last":500,"rows_between":2000,"halvings":0,"cell_chars":16384,"cell_head_chars":4096},"cells_cut":0,"cells_raw":0,"read":"whole","date_system":"1900"}

{"sheet":"READ ME","index":0,"n_rows":44,"n_cols":17,"rows_kept":44,"cut":false,"hidden":false,"merged":[[43,0,43,12],[2,16,2,21],[0,0,0,11],[1,0,1,11],[2,0,2,11],[3,13,3,15],[2,13,2,15],[5,13,5,15],[6,13,6,15],[3,16,3,21],[4,16,4,21],[5,16,5,21],[6,16,6,21],[4,13,4,15]]}
["Instructions for Using PAT Postprocessor"]
["Please be advised that the program takes some time to process each",null,null,null,null,null,null,null,null,null,null,null,null,"PAT file names and locations (do not add the files extension)"]
["HUC 2, so a complete suite of runs can take close to an hour, depending on your computer's speed.",null,null,null,null,null,null,null,null,null,null,null,null,"PAT File directory",null,null,"C:\\Users\\cpeck03\\OneDrive - Environmental Protection Agency (EPA)\\Desktop\\gly\\fldr"]
[null,null,null,null,null,null,null,null,null,null,null,null,null,"Terrestrial Summary File name",null,null,"PAT Terrestrial Summary"]
["This workbook will allow you to postprocess the ESA PWC runs you conducted and determined which runs",null,null,null,null,null,null,null,null,null,null,null,null,"Terrestrial Summary 30 year File name",null,null,"PAT Terrestrial Summary 30"]
["exceeded your thresholds and if you have issues with regards to endangered species.",null,null,null,null,null,null,null,null,null,null,null,null,"Wetland Summary File name",null,null,"PAT Semiaquatic Summary"]
[null,null,null,null,null,null,null,null,null,null,null,null,null,"Wetland Summary 30 year File name",null,null,"PAT Semiaquatic Summary 30"]
["Step 1. Run PAT"]
["Make sure to check the ErrorSummary.txt file after you've run the PWC to ensure no errors occurred."]
["Put all of your PWC runs into one directory and ensure that the PWC summary file is also in the directory."]
["After running PAT, four summary files should be created. Insert the PAT directory where these four files"]
["are located, along with the names of the files, into Cells Q3-Q7."]
[]
["Step 2. Fill in Pertinent UDLs worksheet"]
["The Pertinent UDLs spreadsheet allows the user to specify what UDL layer are associated with their chemical."]
["There are the UDLs that are provided by EISB."]
[]
["Step 3. Fill in the Run-UDL Crosswalk worksheet"]
["The Run-UDL Crosswalk spreadsheet allows the user to specify what UDL layer is associated with the PAT model"]
["run. This allows the user to use the ESA PAT scenarios while associating the run with a particular UDL layer."]
["The Retieve runs button can help the user retrieve the results file names created by PAT to assist with this."]
["The user must use only UDLs listed in Pertinent UDLs worksheet when filling out this sheet."]
[]
["Step 4. Hit Ctl-Q"]
["This will activate the post-processor program and pull up a input box to prompt the Start of the run."]
["For each HUC2 and bin (terrestrial plants Bin 0 and wetland plants Bin 1), the tool will generate"]
["a species summary for both bins, outlining the minimum and maximum EECs, by UDL, for each species"]
["in the HUC."]
[]
["HUC Bin Summary Table"]
["This worksheet contains pivot tables that summarize the range of the terrestrial and wetland"]
["EECs, by HUC and Bin.  These tables can be copied and pasted into the BE."]
[]
["Terrestrial and Wetland Plant Summary Worksheets"]
["Once the user has run the program, EECs for all of the listed plant species, by HUC and Bin"]
["will be summarized in these worksheets. The user can filter the sheet based on the species,"]
["either by common name or species entity id, and see the EECs by HUC and Bin and UDL in order to"]
["make an overall effects determination. These worksheets will eventually be used in the MAGTool."]
[]
["30-yr Summary Worksheets"]
["These worksheets contain the 30-years of daily maximum values for use in the MAGTool for both the terrestrial"]
["and wetland bins."]
[]
["This tool has been approved for release by the U.S. Environmental Protection Agency (USEPA). Although the tool has been subjected to rigorous review, the USEPA reserves the right to update the tool as needed pursuant to further analysis and review. No warranty, expressed or implied, is made by the USEPA or the U.S. Government as to the functionality of the tool and related material nor shall the fact of release constitute any such warranty. Furthermore, the tool is released on condition that neither the USEPA nor the U.S. Government shall be held liable for any damages resulting from its authorized or unauthorized use"]

{"sheet":"Run-UDL Crosswalk","index":1,"n_rows":1,"n_cols":10,"rows_kept":1,"cut":false,"hidden":false,"merged":[]}
["Run ID","Scenario","UDL 1","UDL 2","UDL 3","UDL 4","UDL 5",null,null,"Warning: Specified CDLs must match CDLs listed in Pertinent CDLs worksheet"]

{"sheet":"Pertinent UDLs","index":2,"n_rows":29,"n_cols":2,"rows_kept":29,"cut":false,"hidden":false,"merged":[]}
["UDLs","PWC Scenario"]
["CONUS_Alfalfa"]
["CONUS_Citrus"]
["CONUS_Corn"]
["CONUS_Cotton"]
["CONUS_Developed"]
["CONUS_Developed"]
["CONUS_Forest Trees"]
["CONUS_Open Space Developed"]
["CONUS_Grapes"]
["CONUS_Nurseries"]
["CONUS_Open Space Developed"]
["CONUS_Other Crops"]
["CONUS_Other Grains"]
["CONUS_Other Orchards"]
["CONUS_OtherRow Crops"]
["CONUS_Rangeland"]
["CONUS_Right of Way"]
["CONUS_Soybeans"]
["CONUS_Vegetables and Ground Fruit"]
["CONUS_Developed"]
["NL48_Ag"]
["NL48_Developed"]
["NL48_Forest Trees"]
["NL48_Open Space Developed"]
["NL48_Nurseries"]
["NL48_Open Space Developed"]
["NL48_Rangeland"]
["NL48_Right of Way"]

{"sheet":"HUC Bin Summary Table","index":3,"n_rows":68,"n_cols":17,"rows_kept":68,"cut":false,"hidden":false,"merged":[]}
[null,"Bin","Data"]
[null,0]
["HUC_2","Min of EEC_runoff_only_(lb/A)","Max of EEC_runoff_only_(lb/A)","Min of EEC_runoff+drift_15_m_(lb/A)","Max of EEC_runoff+drift_15_m_(lb/A)",null,null,null,null,null,null,null,null,null,null,{"$f":"B2","v":0},{"$f":"B2","v":0}]
["a.HUC_1",0.17199999999999999,10.6,0.17199999999999999,10.6,null,null,null,null,null,null,null,null,null,{"$f":"MID(A4,SEARCH(\".\",A4)+1,LEN(A4)-SEARCH(\".\",A4))","v":"HUC_1"},{"$f":"B4&\" - \"&C4","v":"0.172 - 10.6"},{"$f":"D4&\" - \"&E4","v":"0.172 - 10.6"}]
["b.HUC_2",0.06,7.18,0.06,7.19,null,null,null,null,null,null,null,null,null,{"$f":"MID(A5,SEARCH(\".\",A5)+1,LEN(A5)-SEARCH(\".\",A5))","v":"HUC_2"},{"$f":"B5&\" - \"&C5","v":"0.06 - 7.18"},{"$f":"D5&\" - \"&E5","v":"0.06 - 7.19"}]
["c.HUC_3",8.6099999999999996E-2,6.22,8.6099999999999996E-2,6.22,null,null,null,null,null,null,null,null,null,"HUC_3","0.0861 - 6.22","0.0861 - 6.22"]
["d.HUC_4",4.7E-2,10,4.7E-2,10,null,null,null,null,null,null,null,null,null,"HUC_4","0.047 - 10","0.047 - 10"]
["e.HUC_5",0.13900000000000001,7.42,0.13900000000000001,7.46,null,null,null,null,null,null,null,null,null,"HUC_5","0.139 - 7.42","0.139 - 7.46"]
["f.HUC_6",7.3499999999999996E-2,6.87,7.3499999999999996E-2,6.87,null,null,null,null,null,null,null,null,null,"HUC_6","0.0735 - 6.87","0.0735 - 6.87"]
["g.HUC_7",0.19400000000000001,7.47,0.19400000000000001,7.48,null,null,null,null,null,null,null,null,null,"HUC_7","0.194 - 7.47","0.194 - 7.48"]
["h.HUC_8",0.16300000000000001,6.44,0.16300000000000001,6.45,null,null,null,null,null,null,null,null,null,"HUC_8","0.163 - 6.44","0.163 - 6.45"]
["i.HUC_9",3.85E-2,7.06,3.85E-2,7.06,null,null,null,null,null,null,null,null,null,"HUC_9","0.0385 - 7.06","0.0385 - 7.06"]
["j.HUC_10a",4.7899999999999998E-2,7.72,4.7899999999999998E-2,7.72,null,null,null,null,null,null,null,null,null,"HUC_10a","0.0479 - 7.72","0.0479 - 7.72"]
["k.HUC_10b",2.3099999999999999E-2,4.82,2.3099999999999999E-2,4.84,null,null,null,null,null,null,null,null,null,"HUC_10b","0.0231 - 4.82","0.0231 - 4.84"]
["l.HUC_11a",6.7599999999999993E-2,5.44,6.7599999999999993E-2,5.44,null,null,null,null,null,null,null,null,null,"HUC_11a","0.0676 - 5.44","0.0676 - 5.44"]
["m.HUC_11b",5.1499999999999997E-2,4.16,5.1499999999999997E-2,4.16,null,null,null,null,null,null,null,null,null,"HUC_11b","0.0515 - 4.16","0.0515 - 4.16"]
["n.HUC_12a",9.0300000000000005E-2,3.58,9.0300000000000005E-2,3.58,null,null,null,null,null,null,null,null,null,"HUC_12a","0.0903 - 3.58","0.0903 - 3.58"]
["o.HUC_12b",0.122,3.7,0.122,3.7,null,null,null,null,null,null,null,null,null,"HUC_12b","0.122 - 3.7","0.122 - 3.7"]
["p.HUC_13",7.11E-3,4.83,7.11E-3,4.84,null,null,null,null,null,null,null,null,null,"HUC_13","0.00711 - 4.83","0.00711 - 4.84"]
["q.HUC_14",1.04E-2,4.13,1.04E-2,4.5999999999999996,null,null,null,null,null,null,null,null,null,"HUC_14","0.0104 - 4.13","0.0104 - 4.6"]
["r.HUC_15a",2.5499999999999998E-2,1.4,2.5499999999999998E-2,1.4,null,null,null,null,null,null,null,null,null,"HUC_15a","0.0255 - 1.4","0.0255 - 1.4"]
["s.HUC_15b",9.0200000000000002E-3,0.48699999999999999,9.0200000000000002E-3,0.48699999999999999,null,null,null,null,null,null,null,null,null,"HUC_15b","0.00902 - 0.487","0.00902 - 0.487"]
["t.HUC_16a",2.6100000000000002E-2,8.86,2.6100000000000002E-2,8.86,null,null,null,null,null,null,null,null,null,"HUC_16a","0.0261 - 8.86","0.0261 - 8.86"]
["u.HUC_16b",2.49E-3,2.4700000000000002,2.49E-3,2.4700000000000002,null,null,null,null,null,null,null,null,null,"HUC_16b","0.00249 - 2.47","0.00249 - 2.47"]
["v.HUC_17a",2.12E-2,0.71699999999999997,2.12E-2,0.71699999999999997,null,null,null,null,null,null,null,null,null,"HUC_17a","0.0212 - 0.717","0.0212 - 0.717"]
["w.HUC_17b",2.5600000000000002E-3,0.26300000000000001,2.5600000000000002E-3,0.26300000000000001,null,null,null,null,null,null,null,null,null,"HUC_17b","0.00256 - 0.263","0.00256 - 0.263"]
["x.HUC_18a",3.09E-2,12.5,3.09E-2,12.5,null,null,null,null,null,null,null,null,null,"HUC_18a","0.0309 - 12.5","0.0309 - 12.5"]
["y.HUC_18b",1.6E-2,9.69,1.6E-2,9.69,null,null,null,null,null,null,null,null,null,"HUC_18b","0.016 - 9.69","0.016 - 9.69"]
["z.HUC_19a",1.37E-2,0.33600000000000002,1.37E-2,0.33600000000000002,null,null,null,null,null,null,null,null,null,"HUC_19a","0.0137 - 0.336","0.0137 - 0.336"]
["za.HUC_19b",1.6299999999999999E-2,0.46600000000000003,1.6299999999999999E-2,0.46600000000000003,null,null,null,null,null,null,null,null,null,"HUC_19b","0.0163 - 0.466","0.0163 - 0.466"]
["zb.HUC_20a",0.44800000000000001,7.11,0.44800000000000001,7.11,null,null,null,null,null,null,null,null,null,"HUC_20a","0.448 - 7.11","0.448 - 7.11"]
["zc.HUC_20b",0.156,3.71,0.156,3.71,null,null,null,null,null,null,null,null,null,"HUC_20b","0.156 - 3.71","0.156 - 3.71"]
["zd.HUC_21",0.15,8.15,0.15,8.15,null,null,null,null,null,null,null,null,null,"HUC_21","0.15 - 8.15","0.15 - 8.15"]
[]
[]
[null,"Bin","Data"]
[null,1]
["HUC_2","Min of EEC_(ug/L)","Max of EEC_(ug/L)","Min of EEC_(lb/A)","Max of EEC_(lb/A)",null,null,null,null,null,null,null,null,null,null,{"$f":"B37","v":1},{"$f":"B37","v":1}]
["a.HUC_1",54.5,1280,0.61499999999999999,26.8,null,null,null,null,null,null,null,null,null,{"$f":"MID(A39,SEARCH(\".\",A39)+1,LEN(A39)-SEARCH(\".\",A39))","v":"HUC_1"},{"$f":"B39&\" - \"&C39","v":"54.5 - 1280"},{"$f":"D39&\" - \"&E39","v":"0.615 - 26.8"}]
["b.HUC_2",54.3,1370,0.28399999999999997,13.5,null,null,null,null,null,null,null,null,null,"HUC_2","54.3 - 1370","0.284 - 13.5"]
["c.HUC_3",53.5,1200,0.49199999999999999,7.92,null,null,null,null,null,null,null,null,null,"HUC_3","53.5 - 1200","0.492 - 7.92"]
["d.HUC_4",57.2,1370,0.34499999999999997,31.3,null,null,null,null,null,null,null,null,null,"HUC_4","57.2 - 1370","0.345 - 31.3"]
["e.HUC_5",54.1,1320,0.53600000000000003,12.4,null,null,null,null,null,null,null,null,null,"HUC_5","54.1 - 1320","0.536 - 12.4"]
["f.HUC_6",53.4,1100,0.43,9.83,null,null,null,null,null,null,null,null,null,"HUC_6","53.4 - 1100","0.43 - 9.83"]
["g.HUC_7",54.4,1360,0.57399999999999995,11.2,null,null,null,null,null,null,null,null,null,"HUC_7","54.4 - 1360","0.574 - 11.2"]
["h.HUC_8",52.5,1330,0.45400000000000001,7.28,null,null,null,null,null,null,null,null,null,"HUC_8","52.5 - 1330","0.454 - 7.28"]
["i.HUC_9",54.6,1380,0.60799999999999998,21.3,null,null,null,null,null,null,null,null,null,"HUC_9","54.6 - 1380","0.608 - 21.3"]
["j.HUC_10a",54.3,1380,0.34,12.1,null,null,null,null,null,null,null,null,null,"HUC_10a","54.3 - 1380","0.34 - 12.1"]
["k.HUC_10b",54.5,1370,0.36199999999999999,10.9,null,null,null,null,null,null,null,null,null,"HUC_10b","54.5 - 1370","0.362 - 10.9"]
["l.HUC_11a",53.4,1360,0.47799999999999998,10.7,null,null,null,null,null,null,null,null,null,"HUC_11a","53.4 - 1360","0.478 - 10.7"]
["m.HUC_11b",53.9,1370,0.34599999999999997,10.8,null,null,null,null,null,null,null,null,null,"HUC_11b","53.9 - 1370","0.346 - 10.8"]
["n.HUC_12a",53.2,1330,0.46600000000000003,8.1,null,null,null,null,null,null,null,null,null,"HUC_12a","53.2 - 1330","0.466 - 8.1"]
["o.HUC_12b",53.4,1380,0.47199999999999998,8.5299999999999994,null,null,null,null,null,null,null,null,null,"HUC_12b","53.4 - 1380","0.472 - 8.53"]
["p.HUC_13",11.8,1380,0.371,6.7,null,null,null,null,null,null,null,null,null,"HUC_13","11.8 - 1380","0.371 - 6.7"]
["q.HUC_14",54.3,1380,0.433,11.6,null,null,null,null,null,null,null,null,null,"HUC_14","54.3 - 1380","0.433 - 11.6"]
["r.HUC_15a",54.8,1380,0.53900000000000003,11.3,null,null,null,null,null,null,null,null,null,"HUC_15a","54.8 - 1380","0.539 - 11.3"]
["s.HUC_15b",4.2300000000000004,1370,0.11799999999999999,5.29,null,null,null,null,null,null,null,null,null,"HUC_15b","4.23 - 1370","0.118 - 5.29"]
["t.HUC_16a",44.9,1380,0.53200000000000003,21.5,null,null,null,null,null,null,null,null,null,"HUC_16a","44.9 - 1380","0.532 - 21.5"]
["u.HUC_16b",38.9,1380,0.245,12.5,null,null,null,null,null,null,null,null,null,"HUC_16b","38.9 - 1380","0.245 - 12.5"]
["v.HUC_17a",54.5,1230,0.53700000000000003,8.1300000000000008,null,null,null,null,null,null,null,null,null,"HUC_17a","54.5 - 1230","0.537 - 8.13"]
["w.HUC_17b",33.799999999999997,1380,0.20300000000000001,9.8800000000000008,null,null,null,null,null,null,null,null,null,"HUC_17b","33.8 - 1380","0.203 - 9.88"]
["x.HUC_18a",6.69,1360,0.51800000000000002,32.6,null,null,null,null,null,null,null,null,null,"HUC_18a","6.69 - 1360","0.518 - 32.6"]
["y.HUC_18b",4.71,1370,0.46100000000000002,26.4,null,null,null,null,null,null,null,null,null,"HUC_18b","4.71 - 1370","0.461 - 26.4"]
["z.HUC_19a",46.6,1390,0.64800000000000002,14.4,null,null,null,null,null,null,null,null,null,"HUC_19a","46.6 - 1390","0.648 - 14.4"]
["za.HUC_19b",38.1,1240,0.73499999999999999,12.4,null,null,null,null,null,null,null,null,null,"HUC_19b","38.1 - 1240","0.735 - 12.4"]
["zb.HUC_20a",52.9,1170,0.25900000000000001,9.07,null,null,null,null,null,null,null,null,null,"HUC_20a","52.9 - 1170","0.259 - 9.07"]
["zc.HUC_20b",52.9,1370,0.14599999999999999,7.71,null,null,null,null,null,null,null,null,null,"HUC_20b","52.9 - 1370","0.146 - 7.71"]
["zd.HUC_21",53,1190,0.193,9.6300000000000008,null,null,null,null,null,null,null,null,null,"HUC_21","53 - 1190","0.193 - 9.63"]

{"sheet":"Terrestrial Plant Summary","index":4,"n_rows":0,"n_cols":0,"rows_kept":0,"cut":false,"hidden":false,"merged":[]}

{"sheet":"Wetland Plant Summary","index":5,"n_rows":0,"n_cols":0,"rows_kept":0,"cut":false,"hidden":false,"merged":[]}

{"sheet":"Priority","index":6,"n_rows":31,"n_cols":2,"rows_kept":31,"cut":false,"hidden":true,"merged":[]}
["HUC","Rank"]
["1","a"]
["2","b"]
["3","c"]
["4","d"]
["5","e"]
["6","f"]
["7","g"]
["8","h"]
["9","i"]
["10a","j"]
["10b","k"]
["11a","l"]
["11b","m"]
["12a","n"]
["12b","o"]
["13","p"]
["14","q"]
["15a","r"]
["15b","s"]
["16a","t"]
["16b","u"]
["17a","v"]
["17b","w"]
["18a","x"]
["18b","y"]
["19a","z"]
["19b","za"]
["20a","zb"]
["20b","zc"]
["21","zd"]

{"sheet":"Species HUCs Bins","index":7,"n_rows":3356,"n_cols":7,"rows_kept":3356,"cut":false,"hidden":true,"merged":[]}
["HUC_2","Bin","Taxa","COMNAME","SCINAME","ENTITYID","Lead_Agency"]
[1,0,"Mammals","Indiana Bat","Myotis sodalis",1,"USFWS"]
[1,0,"Mammals","Canada Lynx","Lynx canadensis",24,"USFWS"]
[1,0,"Birds","Piping Plover","Charadrius melodus",131,"USFWS"]
[1,0,"Birds","Roseate tern","Sterna dougallii dougallii",135,"USFWS"]
[1,0,"Reptiles","Plymouth Redbelly Turtle","Pseudemys rubriventris bangsi",170,"USFWS"]
[1,0,"Reptiles","bog turtle","Clemmys muhlenbergii",182,"USFWS"]
[1,0,"Insects","Butterfly, Karner blue","Lycaeides melissa samuelis",420,"USFWS"]
[1,0,"Insects","Beetle, American burying","Nicrophorus americanus",440,"USFWS"]
[1,0,"Insects","Tiger beetle, Northeastern beach","Cicindela dorsalis dorsalis",442,"USFWS"]
[1,0,"Insects","Tiger beetle, Puritan","Cicindela puritana",443,"USFWS"]
[1,0,"Flowering Plants","Jesup's milk-vetch","Astragalus robbinsii var. jesupi",642,"USFWS"]
[1,0,"Flowering Plants","Small whorled pogonia","Isotria medeoloides",742,"USFWS"]
[1,0,"Flowering Plants","Furbish lousewort","Pedicularis furbishiae",790,"USFWS"]
[1,0,"Flowering Plants","Northeastern bulrush","Scirpus ancistrochaetus",823,"USFWS"]
[1,0,"Flowering Plants","Sandplain gerardia","Agalinis acuta",876,"USFWS"]
[1,0,"Birds","Red knot","Calidris canutus rufa",8621,"USFWS"]
[1,0,"Mammals","Northern Long-Eared Bat","Myotis septentrionalis",10043,"USFWS"]
[1,0,"Birds","Eastern Black rail","Laterallus jamaicensis ssp. jamaicensis",11319,"USFWS"]
[1,1,"Mammals","Canada Lynx","Lynx canadensis",24,"USFWS"]
[1,1,"Birds","Piping Plover","Charadrius melodus",131,"USFWS"]
[1,1,"Birds","Roseate tern","Sterna dougallii dougallii",135,"USFWS"]
[1,1,"Reptiles","Plymouth Redbelly Turtle","Pseudemys rubriventris bangsi",170,"USFWS"]
[1,1,"Reptiles","bog turtle","Clemmys muhlenbergii",182,"USFWS"]
[1,1,"Flowering Plants","Furbish lousewort","Pedicularis furbishiae",790,"USFWS"]
[1,1,"Flowering Plants","Northeastern bulrush","Scirpus ancistrochaetus",823,"USFWS"]
[1,1,"Flowering Plants","Eastern prairie fringed orchid","Platanthera leucophaea",984,"USFWS"]
[1,1,"Birds","Red knot","Calidris canutus rufa",8621,"USFWS"]
[1,1,"Birds","Eastern Black rail","Laterallus jamaicensis ssp. jamaicensis",11319,"USFWS"]
[2,0,"Mammals","Indiana Bat","Myotis sodalis",1,"USFWS"]
[2,0,"Mammals","Gray Bat","Myotis grisescens",21,"USFWS"]
[2,0,"Mammals","Virginia Big-eared Bat","Corynorhinus (=Plecotus) townsendii virginianus",27,"USFWS"]
[2,0,"Birds","Piping Plover","Charadrius melodus",131,"USFWS"]
[2,0,"Birds","Roseate tern","Sterna dougallii dougallii",135,"USFWS"]
[2,0,"Reptiles","bog turtle","Clemmys muhlenbergii",182,"USFWS"]
[2,0,"Amphibians","Cheat Mountain Salamander","Plethodon nettingi",198,"USFWS"]
[2,0,"Amphibians","Shenandoah Salamander","Plethodon shenandoah",200,"USFWS"]
[2,0,"Snails","Snail, Chittenango ovate amber","Succinea chittenangoensis",389,"USFWS"]
[2,0,"Insects","Butterfly, Karner blue","Lycaeides melissa samuelis",420,"USFWS"]
[2,0,"Insects","Butterfly, Mitchell's satyr","Neonympha mitchellii mitchellii",424,"USFWS"]
[2,0,"Insects","Beetle, American burying","Nicrophorus americanus",440,"USFWS"]
[2,0,"Insects","Tiger beetle, Northeastern beach","Cicindela dorsalis dorsalis",442,"USFWS"]
[2,0,"Insects","Tiger beetle, Puritan","Cicindela puritana",443,"USFWS"]
[2,0,"Flowering Plants","Northern wild monkshood","Aconitum noveboracense",620,"USFWS"]
[2,0,"Flowering Plants","Small whorled pogonia","Isotria medeoloides",742,"USFWS"]
[2,0,"Flowering Plants","Northeastern bulrush","Scirpus ancistrochaetus",823,"USFWS"]
[2,0,"Flowering Plants","Sensitive joint-vetch","Aeschynomene virginica",875,"USFWS"]
[2,0,"Flowering Plants","Sandplain gerardia","Agalinis acuta",876,"USFWS"]
[2,0,"Flowering Plants","Smooth coneflower","Echinacea laevigata",924,"USFWS"]
[2,0,"Flowering Plants","American chaffseed","Schwalbea americana",996,"USFWS"]
[2,0,"Flowering Plants","Seabeach amaranth","Amaranthus pumilus",1019,"USFWS"]
[2,0,"Flowering Plants","Virginia sneezeweed","Helenium virginicum",1028,"USFWS"]
[2,0,"Flowering Plants","Running buffalo clover","Trifolium stoloniferum",1041,"USFWS"]
[2,0,"Flowering Plants","Shale barren rock cress","Arabis serotina",1076,"USFWS"]
[2,0,"Flowering Plants","American hart's-tongue fern","Asplenium scolopendrium var. americanum",1195,"USFWS"]
[2,0,"Reptiles","Eastern Massasauga (=rattlesnake)","Sistrurus catenatus",7800,"USFWS"]
[2,0,"Birds","Red knot","Calidris canutus rufa",8621,"USFWS"]
[2,0,"Mammals","Northern Long-Eared Bat","Myotis septentrionalis",10043,"USFWS"]
[2,0,"Birds","Eastern Black rail","Laterallus jamaicensis ssp. jamaicensis",11319,"USFWS"]
[2,1,"Birds","Piping Plover","Charadrius melodus",131,"USFWS"]
[2,1,"Birds","Roseate tern","Sterna dougallii dougallii",135,"USFWS"]
[2,1,"Reptiles","bog turtle","Clemmys muhlenbergii",182,"USFWS"]
[2,1,"Snails","Snail, Chittenango ovate amber","Succinea chittenangoensis",389,"USFWS"]
[2,1,"Flowering Plants","Northern wild monkshood","Aconitum noveboracense",620,"USFWS"]
[2,1,"Flowering Plants","Northeastern bulrush","Scirpus ancistrochaetus",823,"USFWS"]
[2,1,"Flowering Plants","Sensitive joint-vetch","Aeschynomene virginica",875,"USFWS"]
[2,1,"Flowering Plants","Swamp pink","Helonias bullata",946,"USFWS"]
[2,1,"Flowering Plants","Canby's dropwort","Oxypolis canbyi",976,"USFWS"]
[2,1,"Flowering Plants","Harperella","Ptilimnium nodosum",991,"USFWS"]
[2,1,"Flowering Plants","Virginia sneezeweed","Helenium virginicum",1028,"USFWS"]
[2,1,"Flowering Plants","Virginia spiraea","Spiraea virginiana",1039,"USFWS"]
[2,1,"Flowering Plants","Running buffalo clover","Trifolium stoloniferum",1041,"USFWS"]
[2,1,"Flowering Plants","Knieskern's Beaked-rush","Rhynchospora knieskernii",1228,"USFWS"]
[2,1,"Reptiles","Eastern Massasauga (=rattlesnake)","Sistrurus catenatus",7800,"USFWS"]
[2,1,"Birds","Red knot","Calidris canutus rufa",8621,"USFWS"]
[2,1,"Birds","Eastern Black rail","Laterallus jamaicensis ssp. jamaicensis",11319,"USFWS"]
[3,0,"Mammals","Indiana Bat","Myotis sodalis",1,"USFWS"]
[3,0,"Mammals","Key Deer","Odocoileus virginianus clavium",4,"USFWS"]
[3,0,"Mammals","Florida Panther","Puma(=Felis)  concolor coryi",8,"USFWS"]
[3,0,"Mammals","Red Wolf","Canis rufus",14,"USFWS"]
[3,0,"Mammals","Gray Bat","Myotis grisescens",21,"USFWS"]
[3,0,"Mammals","Virginia Big-eared Bat","Corynorhinus (=Plecotus) townsendii virginianus",27,"USFWS"]
[3,0,"Mammals","Rice rat","Oryzomys palustris natator",29,"USFWS"]
[3,0,"Mammals","Key Largo Cotton Mouse","Peromyscus gossypinus allapaticola",31,"USFWS"]
[3,0,"Mammals","Key Largo Woodrat","Neotoma floridana smalli",32,"USFWS"]
[3,0,"Mammals","Choctawhatchee Beach Mouse","Peromyscus polionotus allophrys",34,"USFWS"]
[3,0,"Mammals","Perdido Key Beach Mouse","Peromyscus polionotus trissyllepsis",35,"USFWS"]
[3,0,"Mammals","Alabama Beach Mouse","Peromyscus polionotus ammobates",41,"USFWS"]
[3,0,"Mammals","Carolina Northern Flying Squirrel","Glaucomys sabrinus coloratus",42,"USFWS"]
[3,0,"Mammals","Lower Keys Marsh Rabbit (FL population)","Sylvilagus palustris hefneri",46,"USFWS"]
[3,0,"Mammals","Anastasia Island Beach Mouse","Peromyscus polionotus phasma",50,"USFWS"]
[3,0,"Mammals","Southeastern Beach Mouse (FL)","Peromyscus polionotus niveiventris",53,"USFWS"]
[3,0,"Mammals","St. Andrew Beach Mouse (FL)","Peromyscus polionotus peninsularis",54,"USFWS"]
[3,0,"Mammals","Florida Salt Marsh Vole","Microtus pennsylvanicus dukecampbelli",60,"USFWS"]
[3,0,"Birds","Cape Sable seaside sparrow","Ammodramus maritimus mirabilis",85,"USFWS"]
[3,0,"Birds","Bachman's warbler (=wood)","Vermivora bachmanii",93,"USFWS"]
[3,0,"Birds","Kirtland's Warbler","Setophaga kirtlandii (= Dendroica kirtlandii)",94,"USFWS"]
[3,0,"Birds","Red-cockaded woodpecker","Picoides borealis",107,"USFWS"]
[3,0,"Birds","Mississippi sandhill crane","Grus canadensis pulla",110,"USFWS"]
[3,0,"Birds","Wood stork","Mycteria americana",124,"USFWS"]
[3,0,"Birds","Audubon's crested caracara","Polyborus plancus audubonii",125,"USFWS"]
[3,0,"Birds","Piping Plover","Charadrius melodus",131,"USFWS"]
[3,0,"Birds","Florida grasshopper sparrow","Ammodramus savannarum floridanus",133,"USFWS"]
[3,0,"Birds","Roseate tern","Sterna dougallii dougallii",135,"USFWS"]
[3,0,"Birds","Roseate tern","Sterna dougallii dougallii",136,"USFWS"]
[3,0,"Birds","Florida scrub-jay","Aphelocoma coerulescens",140,"USFWS"]
[3,0,"Reptiles","Atlantic salt marsh snake","Nerodia clarkii taeniata",167,"USFWS"]
[3,0,"Reptiles","Alabama red-belly turtle","Pseudemys alabamensis",168,"USFWS"]
[3,0,"Reptiles","Flattened musk turtle","Sternotherus depressus",169,"USFWS"]
[3,0,"Reptiles","Ringed map turtle","Graptemys oculifera",171,"USFWS"]
[3,0,"Reptiles","Yellow-blotched map turtle","Graptemys flavimaculata",172,"USFWS"]
[3,0,"Reptiles","Eastern indigo snake","Drymarchon corais couperi",173,"USFWS"]
[3,0,"Reptiles","American crocodile","Crocodylus acutus",176,"USFWS"]
[3,0,"Reptiles","Bluetail Mole Skink","Eumeces egregius lividus",178,"USFWS"]
[3,0,"Reptiles","Sand Skink","Neoseps reynoldsi",179,"USFWS"]
[3,0,"Reptiles","Gopher Tortoise (west of Mobile and Tombigbee Rivers in AL, MS, and LA)","Gopherus polyphemus",181,"USFWS"]
[3,0,"Amphibians","Red Hills Salamander","Phaeognathus hubrichti",192,"USFWS"]
[3,0,"Amphibians","Frosted Flatwoods salamander","Ambystoma cingulatum",199,"USFWS"]
[3,0,"Amphibians","dusky gopher frog","Rana sevosa",208,"USFWS"]
[3,0,"Snails","Snail, Stock Island tree","Orthalicus reses (not incl. nesodryas)",394,"USFWS"]
[3,0,"Snails","Lacy elimia (snail)","Elimia crenatella",411,"USFWS"]
[3,0,"Insects","Butterfly, Mitchell's satyr","Neonympha mitchellii mitchellii",424,"USFWS"]
[3,0,"Insects","Butterfly, Schaus swallowtail","Heraclides aristodemus ponceanus",429,"USFWS"]
[3,0,"Insects","Butterfly, Saint Francis' satyr","Neonympha mitchellii francisci",455,"USFWS"]
[3,0,"Flowering Plants","Little amphianthus","Amphianthus pusillus",625,"USFWS"]
[3,0,"Flowering Plants","Price's potato-bean","Apios priceana",628,"USFWS"]
[3,0,"Flowering Plants","Four-petal pawpaw","Asimina tetramera",637,"USFWS"]
[3,0,"Flowering Plants","Hairy rattleweed","Baptisia arachnifera",643,"USFWS"]
[3,0,"Flowering Plants","Fragrant prickly-apple","Cereus eriophorus var. fragrans",661,"USFWS"]
[3,0,"Flowering Plants","Garber's spurge","Chamaesyce garberi",663,"USFWS"]
[3,0,"Flowering Plants","Short-leaved rosemary","Conradina brevifolia",675,"USFWS"]
[3,0,"Flowering Plants","Apalachicola rosemary","Conradina glabra",676,"USFWS"]
[3,0,"Flowering Plants","Scrub mint","Dicerandra frutescens",695,"USFWS"]
[3,0,"Flowering Plants","Lakela's mint","Dicerandra immaculata",696,"USFWS"]
[3,0,"Flowering Plants","Spreading avens","Geum radiatum",718,"USFWS"]
[3,0,"Flowering Plants","Dwarf-flowered heartleaf","Hexastylis naniflora",734,"USFWS"]
[3,0,"Flowering Plants","Highlands scrub hypericum","Hypericum cumulicola",740,"USFWS"]
[3,0,"Flowering Plants","Small whorled pogonia","Isotria medeoloides",742,"USFWS"]
[3,0,"Flowering Plants","Cooley's water-willow","Justicia cooleyi",744,"USFWS"]
[3,0,"Flowering Plants","Lyrate bladderpod","Lesquerella lyrata",750,"USFWS"]
[3,0,"Flowering Plants","Scrub blazingstar","Liatris ohlingerae",752,"USFWS"]
[3,0,"Flowering Plants","White birds-in-a-nest","Macbridea alba",761,"USFWS"]
[3,0,"Flowering Plants","Mohr's Barbara's buttons","Marshallia mohrii",764,"USFWS"]
[3,0,"Flowering Plants","Papery whitlow-wort","Paronychia chartacea",789,"USFWS"]
[3,0,"Flowering Plants","Lewton's polygala","Polygala lewtonii",803,"USFWS"]
[3,0,"Flowering Plants","Wireweed","Polygonella basiramia",804,"USFWS"]
[3,0,"Flowering Plants","Sandlace","Polygonella myriophylla",805,"USFWS"]
[3,0,"Flowering Plants","Scrub plum","Prunus geniculata",809,"USFWS"]
[3,0,"Flowering Plants","Chapman rhododendron","Rhododendron chapmanii",816,"USFWS"]
[3,0,"Flowering Plants","Miccosukee gooseberry","Ribes echinellum",817,"USFWS"]
[3,0,"Flowering Plants","Fringed campion","Silene polypetala",831,"USFWS"]
[3,0,"Flowering Plants","Gentian pinkroot","Spigelia gentianoides",836,"USFWS"]
[3,0,"Flowering Plants","Cooley's meadowrue","Thalictrum cooleyi",852,"USFWS"]
[3,0,"Flowering Plants","Persistent trillium","Trillium persistens",857,"USFWS"]
[3,0,"Flowering Plants","Sensitive joint-vetch","Aeschynomene virginica",875,"USFWS"]
[3,0,"Flowering Plants","Florida bonamia","Bonamia grandiflora",892,"USFWS"]
[3,0,"Flowering Plants","Pygmy fringe-tree","Chionanthus pygmaeus",901,"USFWS"]
[3,0,"Flowering Plants","Florida golden aster","Chrysopsis floridana",904,"USFWS"]
[3,0,"Flowering Plants","Pigeon wings","Clitoria fragrans",907,"USFWS"]
[3,0,"Flowering Plants","Leafy prairie-clover","Dalea foliosa",920,"USFWS"]
[3,0,"Flowering Plants","Beautiful pawpaw","Deeringothamnus pulchellus",922,"USFWS"]
[3,0,"Flowering Plants","Rugel's pawpaw","Deeringothamnus rugelii",923,"USFWS"]
[3,0,"Flowering Plants","Smooth coneflower","Echinacea laevigata",924,"USFWS"]
[3,0,"Flowering Plants","Scrub buckwheat","Eriogonum longifolium var. gnaphalifolium",929,"USFWS"]
[3,0,"Flowering Plants","Snakeroot","Eryngium cuneifolium",932,"USFWS"]
[3,0,"Flowering Plants","Telephus spurge","Euphorbia telephioides",937,"USFWS"]
[3,0,"Flowering Plants","Roan Mountain bluet","Hedyotis purpurea var. montana",943,"USFWS"]
[3,0,"Flowering Plants","Schweinitz's sunflower","Helianthus schweinitzii",945,"USFWS"]
[3,0,"Flowering Plants","Beach jacquemontia","Jacquemontia reclinata",953,"USFWS"]
[3,0,"Flowering Plants","Heller's blazingstar","Liatris helleri",959,"USFWS"]
[3,0,"Flowering Plants","Britton's beargrass","Nolina brittoniana",974,"USFWS"]
[3,0,"Flowering Plants","Tiny polygala","Polygala smallii",989,"USFWS"]
[3,0,"Flowering Plants","Michaux's sumac","Rhus michauxii",992,"USFWS"]
[3,0,"Flowering Plants","American chaffseed","Schwalbea americana",996,"USFWS"]
[3,0,"Flowering Plants","Large-flowered skullcap","Scutellaria montana",998,"USFWS"]
[3,0,"Flowering Plants","Blue Ridge goldenrod","Solidago spithamaea",1004,"USFWS"]
[3,0,"Flowering Plants","Wide-leaf warea","Warea amplexifolia",1014,"USFWS"]
[3,0,"Flowering Plants","Carter's mustard","Warea carteri",1015,"USFWS"]
[3,0,"Flowering Plants","Seabeach amaranth","Amaranthus pumilus",1019,"USFWS"]
[3,0,"Flowering Plants","Longspurred mint","Dicerandra cornutissima",1024,"USFWS"]
[3,0,"Flowering Plants","Scrub lupine","Lupinus aridorum",1031,"USFWS"]
[3,0,"Flowering Plants","Ruth's golden aster","Pityopsis ruthii",1036,"USFWS"]
[3,0,"Flowering Plants","Relict trillium","Trillium reliquum",1042,"USFWS"]
[3,0,"Flowering Plants","Crenulate lead-plant","Amorpha crenulata",1043,"USFWS"]
[3,0,"Flowering Plants","Small's milkpea","Galactia smallii",1044,"USFWS"]
[3,0,"Flowering Plants","Garrett's mint","Dicerandra christmanii",1046,"USFWS"]
[3,0,"Flowering Plants","Alabama leather flower","Clematis socialis",1048,"USFWS"]
[3,0,"Flowering Plants","Mountain golden heather","Hudsonia montana",1058,"USFWS"]
[3,0,"Flowering Plants","Kral's water-plantain","Sagittaria secundifolia",1064,"USFWS"]
[3,0,"Flowering Plants","White irisette","Sisyrinchium dichotomum",1153,"USFWS"]
[3,0,"Flowering Plants","Etonia rosemary","Conradina etonia",1165,"USFWS"]
[3,0,"Conifers and Cycads","Florida torreya","Torreya taxifolia",1191,"USFWS"]
[3,0,"Flowering Plants","American hart's-tongue fern","Asplenium scolopendrium var. americanum",1195,"USFWS"]
[3,0,"Ferns and Allies","Louisiana quillwort","Isoetes louisianensis",1199,"USFWS"]
[3,0,"Ferns and Allies","Black spored quillwort","Isoetes melanospora",1203,"USFWS"]
[3,0,"Ferns and Allies","Mat-forming quillwort","Isoetes tegetiformans",1204,"USFWS"]
[3,0,"Flowering Plants","Alabama streak-sorus fern","Thelypteris pilosa var. alabamensis",1209,"USFWS"]
[3,0,"Flowering Plants","Florida perforate cladonia","Cladonia perforata",1219,"USFWS"]
[3,0,"Flowering Plants","Rock gnome lichen","Gymnoderma lineare",1220,"USFWS"]
[3,0,"Birds","Everglade snail kite","Rostrhamus sociabilis plumbeus",1221,"USFWS"]
[3,0,"Flowering Plants","Key tree cactus","Pilosocereus robinii",1227,"USFWS"]
[3,0,"Flowering Plants","Deltoid spurge","Chamaesyce deltoidea ssp. deltoidea",1229,"USFWS"]
[3,0,"Flowering Plants","Florida ziziphus","Ziziphus celata",1234,"USFWS"]
[3,0,"Flowering Plants","Avon Park harebells","Crotalaria avonensis",1235,"USFWS"]
[3,0,"Flowering Plants","White fringeless orchid","Platanthera integrilabia",1415,"USFWS"]
[3,0,"Flowering Plants","Florida semaphore Cactus","Consolea corallicola",1525,"USFWS"]
[3,0,"Flowering Plants","Sand flax","Linum arenicola",1535,"USFWS"]
[3,0,"Flowering Plants","[Unnamed] gladecress","Leavenworthia crassa",1710,"USFWS"]
[3,0,"Flowering Plants","Whorled Sunflower","Helianthus verticillatus",1881,"USFWS"]
[3,0,"Flowering Plants","Aboriginal Prickly-apple","Harrisia (=Cereus) aboriginum (=gracilis)",2211,"USFWS"]
[3,0,"Reptiles","Gopher Tortoise (Eastern)","Gopherus polyphemus",3532,"USFWS"]
[3,0,"Insects","Rattlesnake-master borer moth","Papaipema eryngii",3670,"USFWS"]
[3,0,"Flowering Plants","Pineland sandmat","Chamaesyce deltoidea pinetorum",4253,"USFWS"]
[3,0,"Fishes","Barrens topminnow","Fundulus julisia",4318,"USFWS"]
[3,0,"Mammals","Red wolf","Canis rufus",4369,"USFWS"]
[3,0,"Flowering Plants","Everglades bully","Sideroxylon reclinatum ssp. austrofloridense",4395,"USFWS"]
[3,0,"Flowering Plants","Florida brickell-bush","Brickellia mosieri",4420,"USFWS"]
[3,0,"Insects","Butterfly, Miami Blue","Cyclargus (=Hemiargus) thomasi bethunebakeri",4508,"USFWS"]
[3,0,"Birds","Whooping crane","Grus americana",4679,"USFWS"]
[3,0,"Flowering Plants","Florida pineland crabgrass","Digitaria pauciflora",4712,"USFWS"]
[3,0,"Insects","Bartram's Scrub-Hairsterak Butterfly","Strymon acis bartrami",5067,"USFWS"]
[3,0,"Flowering Plants","Blodgett's silverbush","Argythamnia blodgettii",5233,"USFWS"]
[3,0,"Flowering Plants","Florida prairie-clover","Dalea carthagenensis floridana",5273,"USFWS"]
[3,0,"Reptiles","Black pine snake","Pituophis melanoleucus lodingi",6097,"USFWS"]
[3,0,"Flowering Plants","Georgia rockcress","Arabis georgiana",6672,"USFWS"]
[3,0,"Flowering Plants","Big Pine partridge pea","Chamaecrista lineata keyensis",7136,"USFWS"]
[3,0,"Flowering Plants","Carter's small-flowered flax","Linum carteri carteri",7206,"USFWS"]
[3,0,"Birds","Whooping crane","Grus americana",7342,"USFWS"]
[3,0,"Amphibians","Striped newt","Notophthalmus perstriatus",7482,"USFWS"]
[3,0,"Flowering Plants","Wedge spurge","Chamaesyce deltoidea serpyllum",7948,"USFWS"]
[3,0,"Insects","Florida Leafwing Butterfly","Anaea troglodyta floridalis",8083,"USFWS"]
[3,0,"Flowering Plants","Cape Sable Thoroughwort","Chromolaena frustrata",8336,"USFWS"]
[3,0,"Birds","Red knot","Calidris canutus rufa",8621,"USFWS"]
[3,0,"Fishes","Panama City crayfish","Procambarus econfinae",9386,"USFWS"]
[3,0,"Flowering Plants","Florida bristle fern","Trichomanes punctatum ssp. floridanum",9721,"USFWS"]
[3,0,"Mammals","Florida bonneted bat","Eumops floridanus",9725,"USFWS"]
[3,0,"Amphibians","Reticulated flatwoods salamander","Ambystoma bishopi",9943,"USFWS"]
[3,0,"Mammals","Northern Long-Eared Bat","Myotis septentrionalis",10043,"USFWS"]
[3,0,"Birds","Whooping crane","Grus americana",10124,"USFWS"]
[3,0,"Fishes","Slenderclaw crayfish","Cambarus cracens",10757,"USFWS"]
[3,0,"Insects","Miami tiger beetle","Cicindelidia floridana",10909,"USFWS"]
[3,0,"Birds","Eastern Black rail","Laterallus jamaicensis ssp. jamaicensis",11319,"USFWS"]
[3,1,"Mammals","Key deer","Odocoileus virginianus clavium",4,"USFWS"]
[3,1,"Mammals","Rice rat","Oryzomys palustris natator",29,"USFWS"]
[3,1,"Mammals","Lower Keys marsh rabbit","Sylvilagus palustris hefneri",46,"USFWS"]
[3,1,"Mammals","Florida salt marsh vole","Microtus pennsylvanicus dukecampbelli",60,"USFWS"]
[3,1,"Birds","Cape Sable seaside sparrow","Ammodramus maritimus mirabilis",85,"USFWS"]
[3,1,"Birds","Bachman's warbler (=wood)","Vermivora bachmanii",93,"USFWS"]
[3,1,"Birds","Mississippi sandhill crane","Grus canadensis pulla",110,"USFWS"]
[3,1,"Birds","Wood stork","Mycteria americana",124,"USFWS"]
[3,1,"Birds","Audubon's crested caracara","Polyborus plancus audubonii",125,"USFWS"]
[3,1,"Birds","Piping Plover","Charadrius melodus",131,"USFWS"]
[3,1,"Birds","Roseate tern","Sterna dougallii dougallii",135,"USFWS"]
[3,1,"Birds","Roseate tern","Sterna dougallii dougallii",136,"USFWS"]
[3,1,"Reptiles","Atlantic salt marsh snake","Nerodia clarkii taeniata",167,"USFWS"]
[3,1,"Reptiles","Alabama red-belly turtle","Pseudemys alabamensis",168,"USFWS"]
[3,1,"Reptiles","Flattened musk turtle","Sternotherus depressus",169,"USFWS"]
[3,1,"Reptiles","Ringed map turtle","Graptemys oculifera",171,"USFWS"]
[3,1,"Reptiles","Yellow-blotched map turtle","Graptemys flavimaculata",172,"USFWS"]
[3,1,"Reptiles","Eastern indigo snake","Drymarchon corais couperi",173,"USFWS"]
[3,1,"Reptiles","American crocodile","Crocodylus acutus",176,"USFWS"]
[3,1,"Amphibians","Frosted Flatwoods salamander","Ambystoma cingulatum",199,"USFWS"]
[3,1,"Amphibians","dusky gopher frog","Rana sevosa",208,"USFWS"]
[3,1,"Snails","Lacy elimia (snail)","Elimia crenatella",411,"USFWS"]
[3,1,"Insects","Mitchell's satyr Butterfly","Neonympha mitchellii mitchellii",424,"USFWS"]
[3,1,"Flowering Plants","Little amphianthus","Amphianthus pusillus",625,"USFWS"]
[3,1,"Flowering Plants","Brooksville bellflower","Campanula robinsiae",653,"USFWS"]
[3,1,"Flowering Plants","Small-anthered bittercress","Cardamine micranthera",655,"USFWS"]
[3,1,"Flowering Plants","Harper's beauty","Harperocallis flava",723,"USFWS"]
[3,1,"Flowering Plants","Dwarf-flowered heartleaf","Hexastylis naniflora",734,"USFWS"]
[3,1,"Flowering Plants","White birds-in-a-nest","Macbridea alba",761,"USFWS"]
[3,1,"Flowering Plants","Mohr's Barbara's buttons","Marshallia mohrii",764,"USFWS"]
[3,1,"Flowering Plants","Bunched arrowhead","Sagittaria fasciculata",818,"USFWS"]
[3,1,"Flowering Plants","Green pitcher-plant","Sarracenia oreophila",819,"USFWS"]
[3,1,"Flowering Plants","Cooley's meadowrue","Thalictrum cooleyi",852,"USFWS"]
[3,1,"Flowering Plants","Sensitive joint-vetch","Aeschynomene virginica",875,"USFWS"]
[3,1,"Flowering Plants","Okeechobee gourd","Cucurbita okeechobeensis ssp. okeechobeensis",914,"USFWS"]
[3,1,"Flowering Plants","Telephus spurge","Euphorbia telephioides",937,"USFWS"]
[3,1,"Flowering Plants","Swamp pink","Helonias bullata",946,"USFWS"]
[3,1,"Flowering Plants","Pondberry","Lindera melissifolia",960,"USFWS"]
[3,1,"Flowering Plants","Rough-leaved loosestrife","Lysimachia asperulaefolia",967,"USFWS"]
[3,1,"Flowering Plants","Canby's dropwort","Oxypolis canbyi",976,"USFWS"]
[3,1,"Flowering Plants","Godfrey's butterwort","Pinguicula ionantha",982,"USFWS"]
[3,1,"Flowering Plants","Harperella","Ptilimnium nodosum",991,"USFWS"]
[3,1,"Flowering Plants","Alabama canebrake pitcher-plant","Sarracenia rubra ssp. alabamensis",994,"USFWS"]
[3,1,"Flowering Plants","Mountain sweet pitcher-plant","Sarracenia rubra ssp. jonesii",995,"USFWS"]
[3,1,"Flowering Plants","Florida skullcap","Scutellaria floridana",997,"USFWS"]
[3,1,"Flowering Plants","Tennessee yellow-eyed grass","Xyris tennesseensis",1017,"USFWS"]
[3,1,"Flowering Plants","Virginia spiraea","Spiraea virginiana",1039,"USFWS"]
[3,1,"Flowering Plants","Kral's water-plantain","Sagittaria secundifolia",1064,"USFWS"]
[3,1,"Flowering Plants","Golden sedge","Carex lutea",1189,"USFWS"]
[3,1,"Conifers and Cycads","Florida torreya","Torreya taxifolia",1191,"USFWS"]
[3,1,"Ferns and Allies","Louisiana quillwort","Isoetes louisianensis",1199,"USFWS"]
[3,1,"Ferns and Allies","Black spored quillwort","Isoetes melanospora",1203,"USFWS"]
[3,1,"Ferns and Allies","Mat-forming quillwort","Isoetes tegetiformans",1204,"USFWS"]
[3,1,"Birds","Everglade snail kite","Rostrhamus sociabilis plumbeus",1221,"USFWS"]
[3,1,"Flowering Plants","White fringeless orchid","Platanthera integrilabia",1415,"USFWS"]
[3,1,"Flowering Plants","Whorled Sunflower","Helianthus verticillatus",1881,"USFWS"]
[3,1,"Fishes","Barrens topminnow","Fundulus julisia",4318,"USFWS"]
[3,1,"Birds","Whooping crane","Grus americana",4679,"USFWS"]
[3,1,"Flowering Plants","Florida pineland crabgrass","Digitaria pauciflora",4712,"USFWS"]
[3,1,"Reptiles","Black pine snake","Pituophis melanoleucus lodingi",6097,"USFWS"]
[3,1,"Birds","Whooping crane","Grus americana",7342,"USFWS"]
[3,1,"Amphibians","Striped newt","Notophthalmus perstriatus",7482,"USFWS"]
[3,1,"Birds","Red knot","Calidris canutus rufa",8621,"USFWS"]
[3,1,"Fishes","Panama City crayfish","Procambarus econfinae",9386,"USFWS"]
[3,1,"Amphibians","Reticulated flatwoods salamander","Ambystoma bishopi",9943,"USFWS"]
[3,1,"Birds","Whooping crane","Grus americana",10124,"USFWS"]
[3,1,"Fishes","Slenderclaw crayfish","Cambarus cracens",10757,"USFWS"]
[3,1,"Birds","Eastern Black rail","Laterallus jamaicensis ssp. jamaicensis",11319,"USFWS"]
[4,0,"Mammals","Indiana Bat","Myotis sodalis",1,"USFWS"]
[4,0,"Mammals","Gray wolf","Canis lupus",11,"USFWS"]
[4,0,"Mammals","Gray wolf","Canis lupus",12,"USFWS"]
[4,0,"Mammals","Canada Lynx","Lynx canadensis",24,"USFWS"]
[4,0,"Birds","Whooping crane","Grus americana",67,"USFWS"]
[4,0,"Birds","Kirtland's Warbler","Setophaga kirtlandii (= Dendroica kirtlandii)",94,"USFWS"]
[4,0,"Birds","Piping Plover","Charadrius melodus",130,"USFWS"]
[4,0,"Birds","Piping Plover","Charadrius melodus",131,"USFWS"]
[4,0,"Birds","Roseate tern","Sterna dougallii dougallii",135,"USFWS"]
[4,0,"Reptiles","Copperbelly water snake","Nerodia erythrogaster neglecta",180,"USFWS"]
[4,0,"Reptiles","bog turtle","Clemmys muhlenbergii",182,"USFWS"]
[4,0,"Snails","Snail, Chittenango ovate amber","Succinea chittenangoensis",389,"USFWS"]
[4,0,"Insects","Butterfly, Karner blue","Lycaeides melissa samuelis",420,"USFWS"]
[4,0,"Insects","Butterfly, Mitchell's satyr","Neonympha mitchellii mitchellii",424,"USFWS"]
[4,0,"Insects","Hine's emerald dragonfly","Somatochlora hineana",445,"USFWS"]
[4,0,"Flowering Plants","Northern wild monkshood","Aconitum noveboracense",620,"USFWS"]
[4,0,"Flowering Plants","Mead's milkweed","Asclepias meadii",636,"USFWS"]
[4,0,"Flowering Plants","Small whorled pogonia","Isotria medeoloides",742,"USFWS"]
[4,0,"Flowering Plants","Pitcher's thistle","Cirsium pitcheri",905,"USFWS"]
[4,0,"Flowering Plants","Leafy prairie-clover","Dalea foliosa",920,"USFWS"]
[4,0,"Flowering Plants","Dwarf lake iris","Iris lacustris",950,"USFWS"]
[4,0,"Flowering Plants","Prairie bush-clover","Lespedeza leptostachya",957,"USFWS"]
[4,0,"Flowering Plants","Michigan monkey-flower","Mimulus michiganensis",969,"USFWS"]
[4,0,"Flowering Plants","Fassett's locoweed","Oxytropis campestris var. chartacea",977,"USFWS"]
[4,0,"Flowering Plants","Lakeside daisy","Hymenoxys herbacea",1059,"USFWS"]
[4,0,"Flowering Plants","Leedy's roseroot","Rhodiola integrifolia ssp. leedyi",1150,"USFWS"]
[4,0,"Flowering Plants","American hart's-tongue fern","Asplenium scolopendrium var. americanum",1195,"USFWS"]
[4,0,"Insects","Rattlesnake-master borer moth","Papaipema eryngii",3670,"USFWS"]
[4,0,"Birds","Whooping crane","Grus americana",7342,"USFWS"]
[4,0,"Reptiles","Eastern Massasauga (=rattlesnake)","Sistrurus catenatus",7800,"USFWS"]
[4,0,"Birds","Red knot","Calidris canutus rufa",8621,"USFWS"]
[4,0,"Mammals","Northern Long-Eared Bat","Myotis septentrionalis",10043,"USFWS"]
[4,0,"Insects","Poweshiek Skipperling","Oarisma poweshiek",10147,"USFWS"]
[4,0,"Birds","Eastern Black rail","Laterallus jamaicensis ssp. jamaicensis",11319,"USFWS"]
[4,1,"Mammals","Gray wolf","Canis lupus",11,"USFWS"]
[4,1,"Mammals","Gray wolf","Canis lupus",12,"USFWS"]
[4,1,"Mammals","Canada Lynx","Lynx canadensis",24,"USFWS"]
[4,1,"Birds","Whooping crane","Grus americana",67,"USFWS"]
[4,1,"Birds","Piping Plover","Charadrius melodus",130,"USFWS"]
[4,1,"Birds","Piping Plover","Charadrius melodus",131,"USFWS"]
[4,1,"Birds","Roseate tern","Sterna dougallii dougallii",135,"USFWS"]
[4,1,"Reptiles","Copperbelly water snake","Nerodia erythrogaster neglecta",180,"USFWS"]
[4,1,"Reptiles","bog turtle","Clemmys muhlenbergii",182,"USFWS"]
[4,1,"Snails","Snail, Chittenango ovate amber","Succinea chittenangoensis",389,"USFWS"]
[4,1,"Insects","Mitchell's satyr Butterfly","Neonympha mitchellii mitchellii",424,"USFWS"]
[4,1,"Insects","Hine's emerald dragonfly","Somatochlora hineana",445,"USFWS"]
[4,1,"Flowering Plants","Northern wild monkshood","Aconitum noveboracense",620,"USFWS"]
[4,1,"Flowering Plants","Michigan monkey-flower","Mimulus michiganensis",969,"USFWS"]
[4,1,"Flowering Plants","Eastern prairie fringed orchid","Platanthera leucophaea",984,"USFWS"]
[4,1,"Flowering Plants","Houghton's goldenrod","Solidago houghtonii",1003,"USFWS"]
[4,1,"Birds","Whooping crane","Grus americana",7342,"USFWS"]
[4,1,"Reptiles","Eastern Massasauga (=rattlesnake)","Sistrurus catenatus",7800,"USFWS"]
[4,1,"Birds","Red knot","Calidris canutus rufa",8621,"USFWS"]
[4,1,"Birds","Eastern Black rail","Laterallus jamaicensis ssp. jamaicensis",11319,"USFWS"]
[5,0,"Mammals","Indiana Bat","Myotis sodalis",1,"USFWS"]
[5,0,"Mammals","Gray Bat","Myotis grisescens",21,"USFWS"]
[5,0,"Mammals","Virginia Big-eared Bat","Corynorhinus (=Plecotus) townsendii virginianus",27,"USFWS"]
[5,0,"Mammals","Carolina Northern Flying Squirrel","Glaucomys sabrinus coloratus",42,"USFWS"]
[5,0,"Birds","Kirtland's Warbler","Setophaga kirtlandii (= Dendroica kirtlandii)",94,"USFWS"]
[5,0,"Birds","Piping Plover","Charadrius melodus",130,"USFWS"]
[5,0,"Birds","Piping Plover","Charadrius melodus",131,"USFWS"]
[5,0,"Birds","Least tern","Sterna antillarum",134,"USFWS"]
[5,0,"Birds","Roseate tern","Sterna dougallii dougallii",135,"USFWS"]
[5,0,"Birds","Roseate tern","Sterna dougallii dougallii",136,"USFWS"]
[5,0,"Reptiles","Copperbelly water snake","Nerodia erythrogaster neglecta",180,"USFWS"]
[5,0,"Amphibians","Cheat Mountain Salamander","Plethodon nettingi",198,"USFWS"]
[5,0,"Snails","Snail, flat-spired three-toothed","Triodopsis platysayoides",390,"USFWS"]
[5,0,"Snails","Snail, Virginia fringed mountain","Polygyriscus virginianus",395,"USFWS"]
[5,0,"Insects","Butterfly, Mitchell's satyr","Neonympha mitchellii mitchellii",424,"USFWS"]
[5,0,"Insects","Beetle, American burying","Nicrophorus americanus",440,"USFWS"]
[5,0,"Flowering Plants","Northern wild monkshood","Aconitum noveboracense",620,"USFWS"]
[5,0,"Flowering Plants","Price's potato-bean","Apios priceana",628,"USFWS"]
[5,0,"Flowering Plants","Braun's rock-cress","Arabis perstellata",630,"USFWS"]
[5,0,"Flowering Plants","Mead's milkweed","Asclepias meadii",636,"USFWS"]
[5,0,"Flowering Plants","Cumberland rosemary","Conradina verticillata",677,"USFWS"]
[5,0,"Flowering Plants","Spreading avens","Geum radiatum",718,"USFWS"]
[5,0,"Flowering Plants","Dwarf-flowered heartleaf","Hexastylis naniflora",734,"USFWS"]
[5,0,"Flowering Plants","Small whorled pogonia","Isotria medeoloides",742,"USFWS"]
[5,0,"Flowering Plants","Northeastern bulrush","Scirpus ancistrochaetus",823,"USFWS"]
[5,0,"Flowering Plants","Short's goldenrod","Solidago shortii",835,"USFWS"]
[5,0,"Flowering Plants","Cumberland sandwort","Arenaria cumberlandensis",880,"USFWS"]
[5,0,"Flowering Plants","Leafy prairie-clover","Dalea foliosa",920,"USFWS"]
[5,0,"Flowering Plants","Smooth coneflower","Echinacea laevigata",924,"USFWS"]
[5,0,"Flowering Plants","Roan Mountain bluet","Hedyotis purpurea var. montana",943,"USFWS"]
[5,0,"Flowering Plants","Schweinitz's sunflower","Helianthus schweinitzii",945,"USFWS"]
[5,0,"Flowering Plants","Peter's Mountain mallow","Iliamna corei",949,"USFWS"]
[5,0,"Flowering Plants","Prairie bush-clover","Lespedeza leptostachya",957,"USFWS"]
[5,0,"Flowering Plants","Heller's blazingstar","Liatris helleri",959,"USFWS"]
[5,0,"Flowering Plants","Large-flowered skullcap","Scutellaria montana",998,"USFWS"]
[5,0,"Flowering Plants","Blue Ridge goldenrod","Solidago spithamaea",1004,"USFWS"]
[5,0,"Flowering Plants","Running buffalo clover","Trifolium stoloniferum",1041,"USFWS"]
[5,0,"Flowering Plants","Shale barren rock cress","Arabis serotina",1076,"USFWS"]
[5,0,"Flowering Plants","Guthrie's (=Pyne's) ground-plum","Astragalus bibullatus",1087,"USFWS"]
[5,0,"Flowering Plants","Morefield's leather flower","Clematis morefieldii",1096,"USFWS"]
[5,0,"Flowering Plants","American hart's-tongue fern","Asplenium scolopendrium var. americanum",1195,"USFWS"]
[5,0,"Flowering Plants","Rock gnome lichen","Gymnoderma lineare",1220,"USFWS"]
[5,0,"Flowering Plants","White fringeless orchid","Platanthera integrilabia",1415,"USFWS"]
[5,0,"Flowering Plants","Short's bladderpod","Physaria globosa",1831,"USFWS"]
[5,0,"Insects","Rattlesnake-master borer moth","Papaipema eryngii",3670,"USFWS"]
[5,0,"Fishes","Barrens topminnow","Fundulus julisia",4318,"USFWS"]
[5,0,"Flowering Plants","Kentucky glade cress","Leavenworthia exigua laciniata",7167,"USFWS"]
[5,0,"Reptiles","Eastern Massasauga (=rattlesnake)","Sistrurus catenatus",7800,"USFWS"]
[5,0,"Birds","Red knot","Calidris canutus rufa",8621,"USFWS"]
[5,0,"Mammals","Northern Long-Eared Bat","Myotis septentrionalis",10043,"USFWS"]
[5,0,"Birds","Eastern Black rail","Laterallus jamaicensis ssp. jamaicensis",11319,"USFWS"]
[5,1,"Birds","Piping Plover","Charadrius melodus",130,"USFWS"]
[5,1,"Birds","Piping Plover","Charadrius melodus",131,"USFWS"]
[5,1,"Birds","Least tern","Sterna antillarum",134,"USFWS"]
[5,1,"Birds","Roseate tern","Sterna dougallii dougallii",135,"USFWS"]
[5,1,"Birds","Roseate tern","Sterna dougallii dougallii",136,"USFWS"]
[5,1,"Reptiles","Copperbelly water snake","Nerodia erythrogaster neglecta",180,"USFWS"]
[5,1,"Insects","Mitchell's satyr Butterfly","Neonympha mitchellii mitchellii",424,"USFWS"]
[5,1,"Flowering Plants","Spring Creek bladderpod","Lesquerella perforata",568,"USFWS"]
[5,1,"Flowering Plants","Northern wild monkshood","Aconitum noveboracense",620,"USFWS"]
[5,1,"Flowering Plants","Cumberland rosemary","Conradina verticillata",677,"USFWS"]
[5,1,"Flowering Plants","Dwarf-flowered heartleaf","Hexastylis naniflora",734,"USFWS"]
[5,1,"Flowering Plants","Northeastern bulrush","Scirpus ancistrochaetus",823,"USFWS"]
[5,1,"Flowering Plants","Swamp pink","Helonias bullata",946,"USFWS"]
[5,1,"Flowering Plants","Eastern prairie fringed orchid","Platanthera leucophaea",984,"USFWS"]
[5,1,"Flowering Plants","Virginia spiraea","Spiraea virginiana",1039,"USFWS"]
[5,1,"Flowering Plants","Running buffalo clover","Trifolium stoloniferum",1041,"USFWS"]
[5,1,"Flowering Plants","White fringeless orchid","Platanthera integrilabia",1415,"USFWS"]
[5,1,"Fishes","Barrens topminnow","Fundulus julisia",4318,"USFWS"]
[5,1,"Reptiles","Eastern Massasauga (=rattlesnake)","Sistrurus catenatus",7800,"USFWS"]
[5,1,"Birds","Red knot","Calidris canutus rufa",8621,"USFWS"]
[5,1,"Birds","Eastern Black rail","Laterallus jamaicensis ssp. jamaicensis",11319,"USFWS"]
[6,0,"Mammals","Indiana Bat","Myotis sodalis",1,"USFWS"]
[6,0,"Mammals","Gray Bat","Myotis grisescens",21,"USFWS"]
[6,0,"Mammals","Virginia Big-eared Bat","Corynorhinus (=Plecotus) townsendii virginianus",27,"USFWS"]
[6,0,"Mammals","Carolina Northern Flying Squirrel","Glaucomys sabrinus coloratus",42,"USFWS"]
[6,0,"Birds","Wood stork","Mycteria americana",124,"USFWS"]
[6,0,"Birds","Piping Plover","Charadrius melodus",131,"USFWS"]
[6,0,"Birds","Least tern","Sterna antillarum",134,"USFWS"]
[6,0,"Birds","Roseate tern","Sterna dougallii dougallii",136,"USFWS"]
[6,0,"Reptiles","Flattened musk turtle","Sternotherus depressus",169,"USFWS"]
[6,0,"Snails","globe, noonday","Patera clarki nantahala",392,"USFWS"]
[6,0,"Snails","Snail, painted snake coiled forest","Anguispira picta",393,"USFWS"]
[6,0,"Insects","Butterfly, Mitchell's satyr","Neonympha mitchellii mitchellii",424,"USFWS"]
[6,0,"Crustaceans","Alabama cave shrimp","Palaemonias alabamae",480,"USFWS"]
[6,0,"Flowering Plants","Price's potato-bean","Apios priceana",628,"USFWS"]
[6,0,"Flowering Plants","Braun's rock-cress","Arabis perstellata",630,"USFWS"]
[6,0,"Flowering Plants","Virginia round-leaf birch","Betula uber",644,"USFWS"]
[6,0,"Flowering Plants","Cumberland rosemary","Conradina verticillata",677,"USFWS"]
[6,0,"Flowering Plants","Spreading avens","Geum radiatum",718,"USFWS"]
[6,0,"Flowering Plants","Dwarf-flowered heartleaf","Hexastylis naniflora",734,"USFWS"]
[6,0,"Flowering Plants","Small whorled pogonia","Isotria medeoloides",742,"USFWS"]
[6,0,"Flowering Plants","Lyrate bladderpod","Lesquerella lyrata",750,"USFWS"]
[6,0,"Flowering Plants","Cumberland sandwort","Arenaria cumberlandensis",880,"USFWS"]
[6,0,"Flowering Plants","Leafy prairie-clover","Dalea foliosa",920,"USFWS"]
[6,0,"Flowering Plants","Smooth coneflower","Echinacea laevigata",924,"USFWS"]
[6,0,"Flowering Plants","Roan Mountain bluet","Hedyotis purpurea var. montana",943,"USFWS"]
[6,0,"Flowering Plants","Heller's blazingstar","Liatris helleri",959,"USFWS"]
[6,0,"Flowering Plants","Large-flowered skullcap","Scutellaria montana",998,"USFWS"]
[6,0,"Flowering Plants","Blue Ridge goldenrod","Solidago spithamaea",1004,"USFWS"]
[6,0,"Flowering Plants","Ruth's golden aster","Pityopsis ruthii",1036,"USFWS"]
[6,0,"Flowering Plants","Mountain golden heather","Hudsonia montana",1058,"USFWS"]
[6,0,"Flowering Plants","Kral's water-plantain","Sagittaria secundifolia",1064,"USFWS"]
[6,0,"Flowering Plants","Guthrie's (=Pyne's) ground-plum","Astragalus bibullatus",1087,"USFWS"]
[6,0,"Flowering Plants","Morefield's leather flower","Clematis morefieldii",1096,"USFWS"]
[6,0,"Flowering Plants","White irisette","Sisyrinchium dichotomum",1153,"USFWS"]
[6,0,"Flowering Plants","American hart's-tongue fern","Asplenium scolopendrium var. americanum",1195,"USFWS"]
[6,0,"Flowering Plants","Alabama streak-sorus fern","Thelypteris pilosa var. alabamensis",1209,"USFWS"]
[6,0,"Flowering Plants","Rock gnome lichen","Gymnoderma lineare",1220,"USFWS"]
[6,0,"Flowering Plants","White fringeless orchid","Platanthera integrilabia",1415,"USFWS"]
[6,0,"Flowering Plants","[Unnamed] gladecress","Leavenworthia crassa",1710,"USFWS"]
[6,0,"Flowering Plants","Short's bladderpod","Physaria globosa",1831,"USFWS"]
[6,0,"Flowering Plants","Whorled Sunflower","Helianthus verticillatus",1881,"USFWS"]
[6,0,"Fishes","Yellowfin madtom","Noturus flavipinnis",2956,"USFWS"]
[6,0,"Fishes","Barrens topminnow","Fundulus julisia",4318,"USFWS"]
[6,0,"Birds","Red knot","Calidris canutus rufa",8621,"USFWS"]
[6,0,"Mammals","Northern Long-Eared Bat","Myotis septentrionalis",10043,"USFWS"]
[6,0,"Fishes","Slenderclaw crayfish","Cambarus cracens",10757,"USFWS"]
[6,0,"Birds","Eastern Black rail","Laterallus jamaicensis ssp. jamaicensis",11319,"USFWS"]
[6,1,"Birds","Wood stork","Mycteria americana",124,"USFWS"]
[6,1,"Birds","Piping Plover","Charadrius melodus",131,"USFWS"]
[6,1,"Birds","Least tern","Sterna antillarum",134,"USFWS"]
[6,1,"Birds","Roseate tern","Sterna dougallii dougallii",136,"USFWS"]
[6,1,"Reptiles","Flattened musk turtle","Sternotherus depressus",169,"USFWS"]
[6,1,"Snails","noonday snail","Mesodon clarki nantahala",392,"USFWS"]
[6,1,"Insects","Mitchell's satyr Butterfly","Neonympha mitchellii mitchellii",424,"USFWS"]
[6,1,"Crustaceans","Alabama cave shrimp","Palaemonias alabamae",480,"USFWS"]
[6,1,"Flowering Plants","Cumberland rosemary","Conradina verticillata",677,"USFWS"]
[6,1,"Flowering Plants","Dwarf-flowered heartleaf","Hexastylis naniflora",734,"USFWS"]
[6,1,"Flowering Plants","Mohr's Barbara's buttons","Marshallia mohrii",764,"USFWS"]
[6,1,"Flowering Plants","Bunched arrowhead","Sagittaria fasciculata",818,"USFWS"]
[6,1,"Flowering Plants","Green pitcher-plant","Sarracenia oreophila",819,"USFWS"]
[6,1,"Flowering Plants","Swamp pink","Helonias bullata",946,"USFWS"]
[6,1,"Flowering Plants","Harperella","Ptilimnium nodosum",991,"USFWS"]
[6,1,"Flowering Plants","Mountain sweet pitcher-plant","Sarracenia rubra ssp. jonesii",995,"USFWS"]
[6,1,"Flowering Plants","Tennessee yellow-eyed grass","Xyris tennesseensis",1017,"USFWS"]
[6,1,"Flowering Plants","Virginia spiraea","Spiraea virginiana",1039,"USFWS"]
[6,1,"Flowering Plants","Kral's water-plantain","Sagittaria secundifolia",1064,"USFWS"]
[6,1,"Flowering Plants","White fringeless orchid","Platanthera integrilabia",1415,"USFWS"]
[6,1,"Flowering Plants","Whorled Sunflower","Helianthus verticillatus",1881,"USFWS"]
[6,1,"Fishes","Barrens topminnow","Fundulus julisia",4318,"USFWS"]
[6,1,"Birds","Red knot","Calidris canutus rufa",8621,"USFWS"]
[6,1,"Fishes","Slenderclaw crayfish","Cambarus cracens",10757,"USFWS"]
[6,1,"Birds","Eastern Black rail","Laterallus jamaicensis ssp. jamaicensis",11319,"USFWS"]
[7,0,"Mammals","Indiana Bat","Myotis sodalis",1,"USFWS"]
[7,0,"Mammals","Gray wolf","Canis lupus",11,"USFWS"]
[7,0,"Mammals","Gray wolf","Canis lupus",12,"USFWS"]
[7,0,"Mammals","Gray Bat","Myotis grisescens",21,"USFWS"]
[7,0,"Mammals","Canada Lynx","Lynx canadensis",24,"USFWS"]
[7,0,"Birds","Whooping crane","Grus americana",67,"USFWS"]
[7,0,"Birds","Kirtland's Warbler","Setophaga kirtlandii (= Dendroica kirtlandii)",94,"USFWS"]
[7,0,"Birds","Piping Plover","Charadrius melodus",130,"USFWS"]
[7,0,"Birds","Piping Plover","Charadrius melodus",131,"USFWS"]
[7,0,"Birds","Least tern","Sterna antillarum",134,"USFWS"]
[7,0,"Reptiles","Copperbelly water snake","Nerodia erythrogaster neglecta",180,"USFWS"]
[7,0,"Snails","Snail, Iowa Pleistocene","Discus macclintocki",391,"USFWS"]
[7,0,"Insects","Butterfly, Karner blue","Lycaeides melissa samuelis",420,"USFWS"]
[7,0,"Insects","Butterfly, Mitchell's satyr","Neonympha mitchellii mitchellii",424,"USFWS"]
[7,0,"Insects","Hine's emerald dragonfly","Somatochlora hineana",445,"USFWS"]
[7,0,"Flowering Plants","Northern wild monkshood","Aconitum noveboracense",620,"USFWS"]
[7,0,"Flowering Plants","Price's potato-bean","Apios priceana",628,"USFWS"]
[7,0,"Flowering Plants","Mead's milkweed","Asclepias meadii",636,"USFWS"]
[7,0,"Flowering Plants","Small whorled pogonia","Isotria medeoloides",742,"USFWS"]
[7,0,"Flowering Plants","Pitcher's thistle","Cirsium pitcheri",905,"USFWS"]
[7,0,"Flowering Plants","Leafy prairie-clover","Dalea foliosa",920,"USFWS"]
[7,0,"Flowering Plants","Minnesota dwarf trout lily","Erythronium propullans",935,"USFWS"]
[7,0,"Flowering Plants","Prairie bush-clover","Lespedeza leptostachya",957,"USFWS"]
[7,0,"Flowering Plants","Fassett's locoweed","Oxytropis campestris var. chartacea",977,"USFWS"]
[7,0,"Flowering Plants","Virginia sneezeweed","Helenium virginicum",1028,"USFWS"]
[7,0,"Flowering Plants","Running buffalo clover","Trifolium stoloniferum",1041,"USFWS"]
[7,0,"Flowering Plants","Lakeside daisy","Hymenoxys herbacea",1059,"USFWS"]
[7,0,"Flowering Plants","Leedy's roseroot","Rhodiola integrifolia ssp. leedyi",1150,"USFWS"]
[7,0,"Insects","Dakota Skipper","Hesperia dacotae",3412,"USFWS"]
[7,0,"Insects","Rattlesnake-master borer moth","Papaipema eryngii",3670,"USFWS"]
[7,0,"Birds","Whooping crane","Grus americana",7342,"USFWS"]
[7,0,"Reptiles","Eastern Massasauga (=rattlesnake)","Sistrurus catenatus",7800,"USFWS"]
[7,0,"Birds","Red knot","Calidris canutus rufa",8621,"USFWS"]
[7,0,"Mammals","Northern Long-Eared Bat","Myotis septentrionalis",10043,"USFWS"]
[7,0,"Insects","Poweshiek Skipperling","Oarisma poweshiek",10147,"USFWS"]
[7,0,"Birds","Eastern Black rail","Laterallus jamaicensis ssp. jamaicensis",11319,"USFWS"]
[7,1,"Mammals","Gray wolf","Canis lupus",11,"USFWS"]
[7,1,"Mammals","Gray wolf","Canis lupus",12,"USFWS"]
[7,1,"Mammals","Canada Lynx","Lynx canadensis",24,"USFWS"]
[7,1,"Birds","Whooping crane","Grus americana",67,"USFWS"]
[7,1,"Birds","Piping Plover","Charadrius melodus",130,"USFWS"]
[7,1,"Birds","Piping Plover","Charadrius melodus",131,"USFWS"]
[7,1,"Birds","Least tern","Sterna antillarum",134,"USFWS"]
[7,1,"Reptiles","Copperbelly water snake","Nerodia erythrogaster neglecta",180,"USFWS"]
[7,1,"Insects","Mitchell's satyr Butterfly","Neonympha mitchellii mitchellii",424,"USFWS"]
[7,1,"Insects","Hine's emerald dragonfly","Somatochlora hineana",445,"USFWS"]
[7,1,"Flowering Plants","Northern wild monkshood","Aconitum noveboracense",620,"USFWS"]
[7,1,"Flowering Plants","Decurrent false aster","Boltonia decurrens",891,"USFWS"]
[7,1,"Flowering Plants","Minnesota dwarf trout lily","Erythronium propullans",935,"USFWS"]
[7,1,"Flowering Plants","Fassett's locoweed","Oxytropis campestris var. chartacea",977,"USFWS"]
[7,1,"Flowering Plants","Eastern prairie fringed orchid","Platanthera leucophaea",984,"USFWS"]
[7,1,"Flowering Plants","Virginia sneezeweed","Helenium virginicum",1028,"USFWS"]
[7,1,"Flowering Plants","Running buffalo clover","Trifolium stoloniferum",1041,"USFWS"]
[7,1,"Flowering Plants","Western prairie fringed Orchid","Platanthera praeclara",1080,"USFWS"]
[7,1,"Birds","Whooping crane","Grus americana",7342,"USFWS"]
[7,1,"Reptiles","Eastern Massasauga (=rattlesnake)","Sistrurus catenatus",7800,"USFWS"]
[7,1,"Birds","Red knot","Calidris canutus rufa",8621,"USFWS"]
[7,1,"Birds","Eastern Black rail","Laterallus jamaicensis ssp. jamaicensis",11319,"USFWS"]
[8,0,"Mammals","Indiana Bat","Myotis sodalis",1,"USFWS"]
[8,0,"Mammals","Gray Bat","Myotis grisescens",21,"USFWS"]
[8,0,"Mammals","Ozark Big-eared Bat","Corynorhinus (=Plecotus) townsendii ingens",25,"USFWS"]
[8,0,"Birds","Ivory-billed woodpecker","Campephilus principalis",95,"USFWS"]
[8,0,"Birds","Red-cockaded woodpecker","Picoides borealis",107,"USFWS"]
[8,0,"Birds","Wood stork","Mycteria americana",124,"USFWS"]
[8,0,"Birds","Piping Plover","Charadrius melodus",131,"USFWS"]
[8,0,"Birds","Least tern","Sterna antillarum",134,"USFWS"]
[8,0,"Reptiles","Alabama red-belly turtle","Pseudemys alabamensis",168,"USFWS"]
[8,0,"Reptiles","Ringed map turtle","Graptemys oculifera",171,"USFWS"]
[8,0,"Reptiles","Gopher Tortoise (west of Mobile and Tombigbee Rivers in AL, MS, and LA)","Gopherus polyphemus",181,"USFWS"]
[8,0,"Insects","Butterfly, Mitchell's satyr","Neonympha mitchellii mitchellii",424,"USFWS"]
[8,0,"Insects","Beetle, American burying","Nicrophorus americanus",440,"USFWS"]
[8,0,"Insects","Hine's emerald dragonfly","Somatochlora hineana",445,"USFWS"]
[8,0,"Flowering Plants","Price's potato-bean","Apios priceana",628,"USFWS"]
[8,0,"Flowering Plants","Mead's milkweed","Asclepias meadii",636,"USFWS"]
[8,0,"Flowering Plants","No common name","Geocarpon minimum",716,"USFWS"]
[8,0,"Flowering Plants","Small whorled pogonia","Isotria medeoloides",742,"USFWS"]
[8,0,"Flowering Plants","American chaffseed","Schwalbea americana",996,"USFWS"]
[8,0,"Flowering Plants","Running buffalo clover","Trifolium stoloniferum",1041,"USFWS"]
[8,0,"Ferns and Allies","Louisiana quillwort","Isoetes louisianensis",1199,"USFWS"]
[8,0,"Flowering Plants","Whorled Sunflower","Helianthus verticillatus",1881,"USFWS"]
[8,0,"Insects","Rattlesnake-master borer moth","Papaipema eryngii",3670,"USFWS"]
[8,0,"Reptiles","Louisiana pine snake","Pituophis ruthveni",3722,"USFWS"]
[8,0,"Fishes","Barrens topminnow","Fundulus julisia",4318,"USFWS"]
[8,0,"Reptiles","Black pine snake","Pituophis melanoleucus lodingi",6097,"USFWS"]
[8,0,"Birds","Whooping crane","Grus americana",7342,"USFWS"]
[8,0,"Flowering Plants","Missouri bladderpod","Physaria filiformis",8392,"USFWS"]
[8,0,"Birds","Red knot","Calidris canutus rufa",8621,"USFWS"]
[8,0,"Mammals","Northern Long-Eared Bat","Myotis septentrionalis",10043,"USFWS"]
[8,0,"Birds","Whooping crane","Grus americana",10124,"USFWS"]
[8,0,"Birds","Eastern Black rail","Laterallus jamaicensis ssp. jamaicensis",11319,"USFWS"]
[8,1,"Birds","Wood stork","Mycteria americana",124,"USFWS"]
[8,1,"Birds","Piping Plover","Charadrius melodus",131,"USFWS"]
[8,1,"Birds","Least tern","Sterna antillarum",134,"USFWS"]
[8,1,"Reptiles","Alabama red-belly turtle","Pseudemys alabamensis",168,"USFWS"]
[8,1,"Reptiles","Ringed map turtle","Graptemys oculifera",171,"USFWS"]
[8,1,"Insects","Mitchell's satyr Butterfly","Neonympha mitchellii mitchellii",424,"USFWS"]
[8,1,"Insects","Hine's emerald dragonfly","Somatochlora hineana",445,"USFWS"]
[8,1,"Flowering Plants","Decurrent false aster","Boltonia decurrens",891,"USFWS"]
[8,1,"Flowering Plants","Pondberry","Lindera melissifolia",960,"USFWS"]
[8,1,"Flowering Plants","Harperella","Ptilimnium nodosum",991,"USFWS"]
[8,1,"Flowering Plants","Running buffalo clover","Trifolium stoloniferum",1041,"USFWS"]
[8,1,"Ferns and Allies","Louisiana quillwort","Isoetes louisianensis",1199,"USFWS"]
[8,1,"Flowering Plants","White fringeless orchid","Platanthera integrilabia",1415,"USFWS"]
[8,1,"Flowering Plants","Whorled Sunflower","Helianthus verticillatus",1881,"USFWS"]
[8,1,"Fishes","Barrens topminnow","Fundulus julisia",4318,"USFWS"]
[8,1,"Reptiles","Black pine snake","Pituophis melanoleucus lodingi",6097,"USFWS"]
[8,1,"Birds","Whooping crane","Grus americana",7342,"USFWS"]
[8,1,"Birds","Red knot","Calidris canutus rufa",8621,"USFWS"]
[8,1,"Birds","Whooping crane","Grus americana",10124,"USFWS"]
[8,1,"Birds","Eastern Black rail","Laterallus jamaicensis ssp. jamaicensis",11319,"USFWS"]
[9,0,"Mammals","Grizzly bear","Ursus arctos horribilis",2,"USFWS"]
[9,0,"Mammals","Gray wolf","Canis lupus",11,"USFWS"]
[9,0,"Mammals","Gray wolf","Canis lupus",12,"USFWS"]
[9,0,"Mammals","Canada Lynx","Lynx canadensis",24,"USFWS"]
[9,0,"Birds","Whooping crane","Grus americana",67,"USFWS"]
[9,0,"Birds","Piping Plover","Charadrius melodus",130,"USFWS"]
[9,0,"Birds","Piping Plover","Charadrius melodus",131,"USFWS"]
[9,0,"Birds","Least tern","Sterna antillarum",134,"USFWS"]
[9,0,"Flowering Plants","Spalding's Catchfly","Silene spaldingii",613,"USFWS"]
[9,0,"Insects","Meltwater lednian stonefly","Lednia tumana",1849,"USFWS"]
[9,0,"Flowering Plants","Whitebark pine","Pinus albicaulis",1935,"USFWS"]
[9,0,"Insects","Dakota Skipper","Hesperia dacotae",3412,"USFWS"]
[9,0,"Mammals","North American wolverine","Gulo gulo luscus",4016,"USFWS"]
[9,0,"Reptiles","Eastern Massasauga (=rattlesnake)","Sistrurus catenatus",7800,"USFWS"]
[9,0,"Birds","Red knot","Calidris canutus rufa",8621,"USFWS"]
[9,0,"Mammals","Northern Long-Eared Bat","Myotis septentrionalis",10043,"USFWS"]
[9,0,"Insects","Western glacier stonefly","Zapada glacier",10123,"USFWS"]
[9,0,"Insects","Poweshiek Skipperling","Oarisma poweshiek",10147,"USFWS"]
[9,0,"Birds","Eastern Black rail","Laterallus jamaicensis ssp. jamaicensis",11319,"USFWS"]
[9,1,"Mammals","Grizzly bear","Ursus arctos horribilis",2,"USFWS"]
[9,1,"Mammals","Gray wolf","Canis lupus",11,"USFWS"]
[9,1,"Mammals","Gray wolf","Canis lupus",12,"USFWS"]
[9,1,"Mammals","Canada Lynx","Lynx canadensis",24,"USFWS"]
[9,1,"Birds","Whooping crane","Grus americana",67,"USFWS"]
[9,1,"Birds","Piping Plover","Charadrius melodus",130,"USFWS"]
[9,1,"Birds","Piping Plover","Charadrius melodus",131,"USFWS"]
[9,1,"Birds","Least tern","Sterna antillarum",134,"USFWS"]
[9,1,"Flowering Plants","Western prairie fringed Orchid","Platanthera praeclara",1080,"USFWS"]
[9,1,"Insects","Meltwater lednian stonefly","Lednia tumana",1849,"USFWS"]
[9,1,"Birds","Yellow-billed Cuckoo","Coccyzus americanus",6901,"USFWS"]
[9,1,"Reptiles","Eastern Massasauga (=rattlesnake)","Sistrurus catenatus",7800,"USFWS"]
[9,1,"Birds","Red knot","Calidris canutus rufa",8621,"USFWS"]
[9,1,"Insects","Western glacier stonefly","Zapada glacier",10123,"USFWS"]
[9,1,"Birds","Eastern Black rail","Laterallus jamaicensis ssp. jamaicensis",11319,"USFWS"]
["10a",0,"Mammals","Indiana Bat","Myotis sodalis",1,"USFWS"]
["10a",0,"Mammals","Grizzly bear","Ursus arctos horribilis",2,"USFWS"]
["10a",0,"Mammals","Black-footed Ferret","Mustela nigripes",5,"USFWS"]
["10a",0,"Mammals","Gray wolf","Canis lupus",11,"USFWS"]
["10a",0,"Mammals","Gray Bat","Myotis grisescens",21,"USFWS"]
["10a",0,"Mammals","Canada Lynx","Lynx canadensis",24,"USFWS"]
["10a",0,"Mammals","Preble's Meadow Jumping Mouse","Zapus hudsonius preblei",52,"USFWS"]
["10a",0,"Birds","Whooping crane","Grus americana",67,"USFWS"]
["10a",0,"Birds","Eskimo curlew","Numenius borealis",91,"USFWS"]
["10a",0,"Birds","Mexican spotted owl","Strix occidentalis lucida",129,"USFWS"]
["10a",0,"Birds","Piping Plover","Charadrius melodus",131,"USFWS"]
["10a",0,"Birds","Least tern","Sterna antillarum",134,"USFWS"]
["10a",0,"Fishes","Ozark cavefish","Amblyopsis rosae",260,"USFWS"]
["10a",0,"Insects","Skipper, Pawnee montane","Hesperia leonardus montana",434,"USFWS"]
["10a",0,"Insects","Butterfly, Uncompahgre fritillary","Boloria acrocnema",437,"USFWS"]
["10a",0,"Insects","Beetle, American burying","Nicrophorus americanus",440,"USFWS"]
["10a",0,"Insects","Hine's emerald dragonfly","Somatochlora hineana",445,"USFWS"]
["10a",0,"Flowering Plants","Spalding's Catchfly","Silene spaldingii",613,"USFWS"]
["10a",0,"Flowering Plants","Mead's milkweed","Asclepias meadii",636,"USFWS"]
["10a",0,"Flowering Plants","Penland alpine fen mustard","Eutrema penlandii",713,"USFWS"]
["10a",0,"Flowering Plants","No common name","Geocarpon minimum",716,"USFWS"]
["10a",0,"Flowering Plants","North Park phacelia","Phacelia formosula",797,"USFWS"]
["10a",0,"Flowering Plants","Prairie bush-clover","Lespedeza leptostachya",957,"USFWS"]
["10a",0,"Flowering Plants","Blowout penstemon","Penstemon haydenii",978,"USFWS"]
["10a",0,"Flowering Plants","Virginia sneezeweed","Helenium virginicum",1028,"USFWS"]
["10a",0,"Flowering Plants","Running buffalo clover","Trifolium stoloniferum",1041,"USFWS"]
["10a",0,"Flowering Plants","Leedy's roseroot","Rhodiola integrifolia ssp. leedyi",1150,"USFWS"]
["10a",0,"Flowering Plants","Whitebark pine","Pinus albicaulis",1935,"USFWS"]
["10a",0,"Insects","Dakota Skipper","Hesperia dacotae",3412,"USFWS"]
["10a",0,"Mammals","North American wolverine","Gulo gulo luscus",4016,"USFWS"]
["10a",0,"Birds","Gunnison sage-grouse","Centrocercus minimus",4064,"USFWS"]
["10a",0,"Birds","Whooping crane","Grus americana",4679,"USFWS"]
["10a",0,"Insects","Tiger beetle, Salt Creek","Cicindela nevadica lincolniana",4910,"USFWS"]
["10a",0,"Birds","Yellow-billed Cuckoo","Coccyzus americanus",6901,"USFWS"]
["10a",0,"Mammals","Black-footed Ferret","Mustela nigripes",7572,"USFWS"]
["10a",0,"Reptiles","Eastern Massasauga (=rattlesnake)","Sistrurus catenatus",7800,"USFWS"]
["10a",0,"Flowering Plants","Missouri bladderpod","Physaria filiformis",8392,"USFWS"]
["10a",0,"Birds","Red knot","Calidris canutus rufa",8621,"USFWS"]
["10a",0,"Mammals","Northern Long-Eared Bat","Myotis septentrionalis",10043,"USFWS"]
["10a",0,"Insects","Western glacier stonefly","Zapada glacier",10123,"USFWS"]
["10a",0,"Insects","Arapahoe snowfly","Arsapnia arapahoe",10130,"USFWS"]
["10a",0,"Insects","Poweshiek Skipperling","Oarisma poweshiek",10147,"USFWS"]
["10a",0,"Insects","Beetle, American burying","Nicrophorus americanus",10161,"USFWS"]
["10a",0,"Birds","Eastern Black rail","Laterallus jamaicensis ssp. jamaicensis",11319,"USFWS"]
["10a",1,"Mammals","Grizzly bear","Ursus arctos horribilis",2,"USFWS"]
["10a",1,"Mammals","Gray wolf","Canis lupus",11,"USFWS"]
["10a",1,"Mammals","Canada Lynx","Lynx canadensis",24,"USFWS"]
["10a",1,"Mammals","Preble's meadow jumping mouse","Zapus hudsonius preblei",52,"USFWS"]
["10a",1,"Birds","Whooping crane","Grus americana",67,"USFWS"]
["10a",1,"Birds","Eskimo curlew","Numenius borealis",91,"USFWS"]
["10a",1,"Birds","Piping Plover","Charadrius melodus",131,"USFWS"]
["10a",1,"Birds","Least tern","Sterna antillarum",134,"USFWS"]
["10a",1,"Fishes","Ozark cavefish","Amblyopsis rosae",260,"USFWS"]
["10a",1,"Insects","Hine's emerald dragonfly","Somatochlora hineana",445,"USFWS"]
["10a",1,"Flowering Plants","Colorado Butterfly plant","Gaura neomexicana var. coloradensis",554,"USFWS"]
["10a",1,"Flowering Plants","Penland alpine fen mustard","Eutrema penlandii",713,"USFWS"]
["10a",1,"Flowering Plants","Decurrent false aster","Boltonia decurrens",891,"USFWS"]
["10a",1,"Flowering Plants","Eastern prairie fringed orchid","Platanthera leucophaea",984,"USFWS"]
["10a",1,"Flowering Plants","Virginia sneezeweed","Helenium virginicum",1028,"USFWS"]
["10a",1,"Flowering Plants","Running buffalo clover","Trifolium stoloniferum",1041,"USFWS"]
["10a",1,"Flowering Plants","Ute ladies'-tresses","Spiranthes diluvialis",1073,"USFWS"]
["10a",1,"Flowering Plants","Western prairie fringed Orchid","Platanthera praeclara",1080,"USFWS"]
["10a",1,"Birds","Gunnison sage-grouse","Centrocercus minimus",4064,"USFWS"]
["10a",1,"Birds","Whooping crane","Grus americana",4679,"USFWS"]
["10a",1,"Birds","Yellow-billed Cuckoo","Coccyzus americanus",6901,"USFWS"]
["10a",1,"Reptiles","Eastern Massasauga (=rattlesnake)","Sistrurus catenatus",7800,"USFWS"]
["10a",1,"Birds","Red knot","Calidris canutus rufa",8621,"USFWS"]
["10a",1,"Insects","Western glacier stonefly","Zapada glacier",10123,"USFWS"]
["10a",1,"Birds","Eastern Black rail","Laterallus jamaicensis ssp. jamaicensis",11319,"USFWS"]
["10b",0,"Mammals","Grizzly bear","Ursus arctos horribilis",2,"USFWS"]
["10b",0,"Mammals","Black-footed Ferret","Mustela nigripes",5,"USFWS"]
["10b",0,"Mammals","Gray wolf","Canis lupus",11,"USFWS"]
["10b",0,"Mammals","Canada Lynx","Lynx canadensis",24,"USFWS"]
["10b",0,"Mammals","Preble's Meadow Jumping Mouse","Zapus hudsonius preblei",52,"USFWS"]
["10b",0,"Birds","Whooping crane","Grus americana",67,"USFWS"]
["10b",0,"Birds","Mexican spotted owl","Strix occidentalis lucida",129,"USFWS"]
["10b",0,"Birds","Piping Plover","Charadrius melodus",131,"USFWS"]
["10b",0,"Birds","Least tern","Sterna antillarum",134,"USFWS"]
["10b",0,"Amphibians","Wyoming Toad","Bufo hemiophrys baxteri",202,"USFWS"]
["10b",0,"Insects","Skipper, Pawnee montane","Hesperia leonardus montana",434,"USFWS"]
["10b",0,"Insects","Butterfly, Uncompahgre fritillary","Boloria acrocnema",437,"USFWS"]
["10b",0,"Insects","Beetle, American burying","Nicrophorus americanus",440,"USFWS"]
["10b",0,"Flowering Plants","Penland alpine fen mustard","Eutrema penlandii",713,"USFWS"]
["10b",0,"Flowering Plants","North Park phacelia","Phacelia formosula",797,"USFWS"]
["10b",0,"Flowering Plants","Blowout penstemon","Penstemon haydenii",978,"USFWS"]
["10b",0,"Flowering Plants","Leedy's roseroot","Rhodiola integrifolia ssp. leedyi",1150,"USFWS"]
["10b",0,"Flowering Plants","Desert yellowhead","Yermo xanthocephalus",1174,"USFWS"]
["10b",0,"Flowering Plants","Whitebark pine","Pinus albicaulis",1935,"USFWS"]
["10b",0,"Flowering Plants","Fremont County rockcress","Boechera pusilla",2780,"USFWS"]
["10b",0,"Insects","Dakota Skipper","Hesperia dacotae",3412,"USFWS"]
["10b",0,"Mammals","North American wolverine","Gulo gulo luscus",4016,"USFWS"]
["10b",0,"Birds","Gunnison sage-grouse","Centrocercus minimus",4064,"USFWS"]
["10b",0,"Birds","Whooping crane","Grus americana",4679,"USFWS"]
["10b",0,"Birds","Yellow-billed Cuckoo","Coccyzus americanus",6901,"USFWS"]
["10b",0,"Mammals","Black-footed Ferret","Mustela nigripes",7572,"USFWS"]
["10b",0,"Birds","Red knot","Calidris canutus rufa",8621,"USFWS"]
["10b",0,"Mammals","Northern Long-Eared Bat","Myotis septentrionalis",10043,"USFWS"]
["10b",0,"Insects","Arapahoe snowfly","Arsapnia arapahoe",10130,"USFWS"]
["10b",0,"Birds","Eastern Black rail","Laterallus jamaicensis ssp. jamaicensis",11319,"USFWS"]
["10b",1,"Mammals","Grizzly bear","Ursus arctos horribilis",2,"USFWS"]
["10b",1,"Mammals","Gray wolf","Canis lupus",11,"USFWS"]
["10b",1,"Mammals","Canada Lynx","Lynx canadensis",24,"USFWS"]
["10b",1,"Mammals","Preble's meadow jumping mouse","Zapus hudsonius preblei",52,"USFWS"]
["10b",1,"Birds","Whooping crane","Grus americana",67,"USFWS"]
["10b",1,"Birds","Piping Plover","Charadrius melodus",131,"USFWS"]
["10b",1,"Birds","Least tern","Sterna antillarum",134,"USFWS"]
["10b",1,"Amphibians","Wyoming Toad","Bufo hemiophrys baxteri",202,"USFWS"]
["10b",1,"Flowering Plants","Colorado Butterfly plant","Gaura neomexicana var. coloradensis",554,"USFWS"]
["10b",1,"Flowering Plants","Penland alpine fen mustard","Eutrema penlandii",713,"USFWS"]
["10b",1,"Flowering Plants","Ute ladies'-tresses","Spiranthes diluvialis",1073,"USFWS"]
["10b",1,"Flowering Plants","Western prairie fringed Orchid","Platanthera praeclara",1080,"USFWS"]
["10b",1,"Birds","Gunnison sage-grouse","Centrocercus minimus",4064,"USFWS"]
["10b",1,"Birds","Whooping crane","Grus americana",4679,"USFWS"]
["10b",1,"Birds","Yellow-billed Cuckoo","Coccyzus americanus",6901,"USFWS"]
["10b",1,"Birds","Red knot","Calidris canutus rufa",8621,"USFWS"]
["10b",1,"Birds","Eastern Black rail","Laterallus jamaicensis ssp. jamaicensis",11319,"USFWS"]
["11a",0,"Mammals","Indiana Bat","Myotis sodalis",1,"USFWS"]
["11a",0,"Mammals","Gray Bat","Myotis grisescens",21,"USFWS"]
["11a",0,"Mammals","Canada Lynx","Lynx canadensis",24,"USFWS"]
["11a",0,"Mammals","Ozark Big-eared Bat","Corynorhinus (=Plecotus) townsendii ingens",25,"USFWS"]
["11a",0,"Birds","Whooping crane","Grus americana",67,"USFWS"]
["11a",0,"Birds","Ivory-billed woodpecker","Campephilus principalis",95,"USFWS"]
["11a",0,"Birds","Red-cockaded woodpecker","Picoides borealis",107,"USFWS"]
["11a",0,"Birds","Piping Plover","Charadrius melodus",131,"USFWS"]
["11a",0,"Birds","Least tern","Sterna antillarum",134,"USFWS"]
["11a",0,"Fishes","Ozark cavefish","Amblyopsis rosae",260,"USFWS"]
["11a",0,"Insects","Butterfly, Uncompahgre fritillary","Boloria acrocnema",437,"USFWS"]
["11a",0,"Insects","Beetle, American burying","Nicrophorus americanus",440,"USFWS"]
["11a",0,"Insects","Hine's emerald dragonfly","Somatochlora hineana",445,"USFWS"]
["11a",0,"Flowering Plants","Mead's milkweed","Asclepias meadii",636,"USFWS"]
["11a",0,"Flowering Plants","No common name","Geocarpon minimum",716,"USFWS"]
["11a",0,"Flowering Plants","Virginia sneezeweed","Helenium virginicum",1028,"USFWS"]
["11a",0,"Flowering Plants","Running buffalo clover","Trifolium stoloniferum",1041,"USFWS"]
["11a",0,"Insects","Rattlesnake-master borer moth","Papaipema eryngii",3670,"USFWS"]
["11a",0,"Reptiles","Louisiana pine snake","Pituophis ruthveni",3722,"USFWS"]
["11a",0,"Mammals","North American wolverine","Gulo gulo luscus",4016,"USFWS"]
["11a",0,"Birds","Gunnison sage-grouse","Centrocercus minimus",4064,"USFWS"]
["11a",0,"Birds","Whooping crane","Grus americana",4679,"USFWS"]
["11a",0,"Birds","Yellow-billed Cuckoo","Coccyzus americanus",6901,"USFWS"]
["11a",0,"Birds","Whooping crane","Grus americana",7342,"USFWS"]
["11a",0,"Flowering Plants","Missouri bladderpod","Physaria filiformis",8392,"USFWS"]
["11a",0,"Birds","Red knot","Calidris canutus rufa",8621,"USFWS"]
["11a",0,"Mammals","Northern Long-Eared Bat","Myotis septentrionalis",10043,"USFWS"]
["11a",0,"Birds","Whooping crane","Grus americana",10124,"USFWS"]
["11a",0,"Birds","Eastern Black rail","Laterallus jamaicensis ssp. jamaicensis",11319,"USFWS"]
["11a",1,"Mammals","Canada Lynx","Lynx canadensis",24,"USFWS"]
["11a",1,"Mammals","Preble's meadow jumping mouse","Zapus hudsonius preblei",52,"USFWS"]
["11a",1,"Birds","Whooping crane","Grus americana",67,"USFWS"]
["11a",1,"Birds","Piping Plover","Charadrius melodus",131,"USFWS"]
["11a",1,"Birds","Least tern","Sterna antillarum",134,"USFWS"]
["11a",1,"Fishes","Ozark cavefish","Amblyopsis rosae",260,"USFWS"]
["11a",1,"Insects","Hine's emerald dragonfly","Somatochlora hineana",445,"USFWS"]
["11a",1,"Flowering Plants","Decurrent false aster","Boltonia decurrens",891,"USFWS"]
["11a",1,"Flowering Plants","Pondberry","Lindera melissifolia",960,"USFWS"]
["11a",1,"Flowering Plants","Eastern prairie fringed orchid","Platanthera leucophaea",984,"USFWS"]
["11a",1,"Flowering Plants","Harperella","Ptilimnium nodosum",991,"USFWS"]
["11a",1,"Flowering Plants","Virginia sneezeweed","Helenium virginicum",1028,"USFWS"]
["11a",1,"Flowering Plants","Running buffalo clover","Trifolium stoloniferum",1041,"USFWS"]
["11a",1,"Flowering Plants","Ute ladies'-tresses","Spiranthes diluvialis",1073,"USFWS"]
["11a",1,"Flowering Plants","Western prairie fringed Orchid","Platanthera praeclara",1080,"USFWS"]
["11a",1,"Birds","Gunnison sage-grouse","Centrocercus minimus",4064,"USFWS"]
["11a",1,"Birds","Whooping crane","Grus americana",4679,"USFWS"]
["11a",1,"Flowering Plants","Neches River rose-mallow","Hibiscus dasycalyx",6617,"USFWS"]
["11a",1,"Birds","Whooping crane","Grus americana",7342,"USFWS"]
["11a",1,"Birds","Red knot","Calidris canutus rufa",8621,"USFWS"]
["11a",1,"Birds","Whooping crane","Grus americana",10124,"USFWS"]
["11a",1,"Birds","Eastern Black rail","Laterallus jamaicensis ssp. jamaicensis",11319,"USFWS"]
["11b",0,"Mammals","Black-footed Ferret","Mustela nigripes",5,"USFWS"]
["11b",0,"Mammals","Canada Lynx","Lynx canadensis",24,"USFWS"]
["11b",0,"Mammals","Preble's Meadow Jumping Mouse","Zapus hudsonius preblei",52,"USFWS"]
["11b",0,"Birds","Whooping crane","Grus americana",67,"USFWS"]
["11b",0,"Birds","Mexican spotted owl","Strix occidentalis lucida",129,"USFWS"]
["11b",0,"Birds","Piping Plover","Charadrius melodus",131,"USFWS"]
["11b",0,"Birds","Least tern","Sterna antillarum",134,"USFWS"]
["11b",0,"Birds","Southwestern willow flycatcher","Empidonax traillii extimus",149,"USFWS"]
["11b",0,"Insects","Skipper, Pawnee montane","Hesperia leonardus montana",434,"USFWS"]
["11b",0,"Insects","Butterfly, Uncompahgre fritillary","Boloria acrocnema",437,"USFWS"]
["11b",0,"Flowering Plants","Penland alpine fen mustard","Eutrema penlandii",713,"USFWS"]
["11b",0,"Flowering Plants","Holy Ghost ipomopsis","Ipomopsis sancti-spiritus",1120,"USFWS"]
["11b",0,"Amphibians","Jemez Mountains salamander","Plethodon neomexicanus",3849,"USFWS"]
["11b",0,"Mammals","North American wolverine","Gulo gulo luscus",4016,"USFWS"]
["11b",0,"Birds","Gunnison sage-grouse","Centrocercus minimus",4064,"USFWS"]
["11b",0,"Birds","Whooping crane","Grus americana",4679,"USFWS"]
["11b",0,"Mammals","New Mexico meadow jumping mouse","Zapus hudsonius luteus",5210,"USFWS"]
["11b",0,"Birds","Yellow-billed Cuckoo","Coccyzus americanus",6901,"USFWS"]
["11b",0,"Birds","Red knot","Calidris canutus rufa",8621,"USFWS"]
["11b",0,"Flowering Plants","Wright's marsh thistle","Cirsium wrightii",9965,"USFWS"]
["11b",0,"Mammals","Northern Long-Eared Bat","Myotis septentrionalis",10043,"USFWS"]
["11b",0,"Mammals","Mexican gray wolf (AZ and NM)","Canis lupus baileyi",10484,"USFWS"]
["11b",0,"Birds","Eastern Black rail","Laterallus jamaicensis ssp. jamaicensis",11319,"USFWS"]
["11b",1,"Mammals","Canada Lynx","Lynx canadensis",24,"USFWS"]
["11b",1,"Mammals","Preble's meadow jumping mouse","Zapus hudsonius preblei",52,"USFWS"]
["11b",1,"Birds","Whooping crane","Grus americana",67,"USFWS"]
["11b",1,"Birds","Piping Plover","Charadrius melodus",131,"USFWS"]
["11b",1,"Birds","Least tern","Sterna antillarum",134,"USFWS"]
["11b",1,"Birds","Golden-cheeked warbler (=wood)","Dendroica chrysoparia",139,"USFWS"]
["11b",1,"Birds","Southwestern willow flycatcher","Empidonax traillii extimus",149,"USFWS"]
["11b",1,"Flowering Plants","Colorado Butterfly plant","Gaura neomexicana var. coloradensis",554,"USFWS"]
["11b",1,"Flowering Plants","Pecos (=puzzle  =paradox) sunflower","Helianthus paradoxus",558,"USFWS"]
["11b",1,"Flowering Plants","Penland alpine fen mustard","Eutrema penlandii",713,"USFWS"]
["11b",1,"Flowering Plants","Ute ladies'-tresses","Spiranthes diluvialis",1073,"USFWS"]
["11b",1,"Flowering Plants","Western prairie fringed Orchid","Platanthera praeclara",1080,"USFWS"]
["11b",1,"Birds","Gunnison sage-grouse","Centrocercus minimus",4064,"USFWS"]
["11b",1,"Birds","Whooping crane","Grus americana",4679,"USFWS"]
["11b",1,"Mammals","New Mexico meadow jumping mouse","Zapus hudsonius luteus",5210,"USFWS"]
["11b",1,"Birds","Yellow-billed Cuckoo","Coccyzus americanus",6901,"USFWS"]
["11b",1,"Birds","Red knot","Calidris canutus rufa",8621,"USFWS"]
["11b",1,"Birds","Eastern Black rail","Laterallus jamaicensis ssp. jamaicensis",11319,"USFWS"]
["12a",0,"Mammals","Ocelot (AZ, TX)","Leopardus (=Felis) pardalis",30,"USFWS"]
["12a",0,"Birds","Whooping crane","Grus americana",67,"USFWS"]
["12a",0,"Birds","Attwater's greater prairie-chicken","Tympanuchus cupido attwateri",83,"USFWS"]
["12a",0,"Birds","Eskimo curlew","Numenius borealis",91,"USFWS"]
["12a",0,"Birds","Red-cockaded woodpecker","Picoides borealis",107,"USFWS"]
["12a",0,"Birds","Northern aplomado falcon","Falco femoralis septentrionalis",126,"USFWS"]
["12a",0,"Birds","Piping Plover","Charadrius melodus",131,"USFWS"]
["12a",0,"Birds","Least tern","Sterna antillarum",134,"USFWS"]
["12a",0,"Birds","Golden-cheeked warbler (=wood)","Dendroica chrysoparia",139,"USFWS"]
["12a",0,"Amphibians","Houston toad","Bufo houstonensis",190,"USFWS"]
["12a",0,"Flowering Plants","South Texas ambrosia","Ambrosia cheiranthifolia",624,"USFWS"]
["12a",0,"Flowering Plants","Tobusch fishhook cactus","Sclerocactus brevihamatus ssp. tobuschii",627,"USFWS"]
["12a",0,"Flowering Plants","Black lace cactus","Echinocereus reichenbachii var. albertii",702,"USFWS"]
["12a",0,"Flowering Plants","No common name","Geocarpon minimum",716,"USFWS"]
["12a",0,"Flowering Plants","Slender rush-pea","Hoffmannseggia tenella",739,"USFWS"]
["12a",0,"Flowering Plants","Texas trailing phlox","Phlox nivalis ssp. texensis",798,"USFWS"]
["12a",0,"Flowering Plants","Texas snowbells","Styrax texanus",843,"USFWS"]
["12a",0,"Flowering Plants","Texas wild-rice","Zizania texana",870,"USFWS"]
["12a",0,"Flowering Plants","Large-fruited sand-verbena","Abronia macrocarpa",872,"USFWS"]
["12a",0,"Flowering Plants","White bladderpod","Lesquerella pallida",1029,"USFWS"]
["12a",0,"Flowering Plants","Texas prairie dawn-flower","Hymenoxys texana",1045,"USFWS"]
["12a",0,"Flowering Plants","Texas golden Gladecress","Leavenworthia texana",1400,"USFWS"]
["12a",0,"Flowering Plants","Bracted twistflower","Streptanthus bracteatus",1678,"USFWS"]
["12a",0,"Reptiles","Louisiana pine snake","Pituophis ruthveni",3722,"USFWS"]
["12a",0,"Birds","Whooping crane","Grus americana",4679,"USFWS"]
["12a",0,"Birds","Whooping crane","Grus americana",7342,"USFWS"]
["12a",0,"Birds","Red knot","Calidris canutus rufa",8621,"USFWS"]
["12a",0,"Mammals","Northern Long-Eared Bat","Myotis septentrionalis",10043,"USFWS"]
["12a",0,"Birds","Whooping crane","Grus americana",10124,"USFWS"]
["12a",0,"Birds","Eastern Black rail","Laterallus jamaicensis ssp. jamaicensis",11319,"USFWS"]
["12a",1,"Birds","Whooping crane","Grus americana",67,"USFWS"]
["12a",1,"Birds","Eskimo curlew","Numenius borealis",91,"USFWS"]
["12a",1,"Birds","Piping Plover","Charadrius melodus",131,"USFWS"]
["12a",1,"Birds","Least tern","Sterna antillarum",134,"USFWS"]
["12a",1,"Birds","Golden-cheeked warbler (=wood)","Dendroica chrysoparia",139,"USFWS"]
["12a",1,"Amphibians","Houston toad","Bufo houstonensis",190,"USFWS"]
["12a",1,"Flowering Plants","Tobusch fishhook cactus","Sclerocactus brevihamatus ssp. tobuschii",627,"USFWS"]
["12a",1,"Flowering Plants","Slender rush-pea","Hoffmannseggia tenella",739,"USFWS"]
["12a",1,"Flowering Plants","Navasota ladies'-tresses","Spiranthes parksii",837,"USFWS"]
["12a",1,"Flowering Plants","Texas wild-rice","Zizania texana",870,"USFWS"]
["12a",1,"Flowering Plants","Texas golden Gladecress","Leavenworthia texana",1400,"USFWS"]
["12a",1,"Birds","Whooping crane","Grus americana",4679,"USFWS"]
["12a",1,"Flowering Plants","Neches River rose-mallow","Hibiscus dasycalyx",6617,"USFWS"]
["12a",1,"Birds","Whooping crane","Grus americana",7342,"USFWS"]
["12a",1,"Birds","Red knot","Calidris canutus rufa",8621,"USFWS"]
["12a",1,"Birds","Whooping crane","Grus americana",10124,"USFWS"]
["12a",1,"Birds","Eastern Black rail","Laterallus jamaicensis ssp. jamaicensis",11319,"USFWS"]
["12b",0,"Mammals","Ocelot (AZ, TX)","Leopardus (=Felis) pardalis",30,"USFWS"]
["12b",0,"Birds","Whooping crane","Grus americana",67,"USFWS"]
["12b",0,"Birds","Northern aplomado falcon","Falco femoralis septentrionalis",126,"USFWS"]
["12b",0,"Birds","Piping Plover","Charadrius melodus",131,"USFWS"]
["12b",0,"Birds","Least tern","Sterna antillarum",134,"USFWS"]
["12b",0,"Birds","Golden-cheeked warbler (=wood)","Dendroica chrysoparia",139,"USFWS"]
["12b",0,"Flowering Plants","Star cactus","Astrophytum asterias",513,"USFWS"]
["12b",0,"Flowering Plants","Zapata bladderpod","Lesquerella thamnophila",569,"USFWS"]
["12b",0,"Flowering Plants","Ashy dogweed","Thymophylla tephroleuca",615,"USFWS"]
["12b",0,"Flowering Plants","South Texas ambrosia","Ambrosia cheiranthifolia",624,"USFWS"]
["12b",0,"Flowering Plants","Tobusch fishhook cactus","Sclerocactus brevihamatus ssp. tobuschii",627,"USFWS"]
["12b",0,"Flowering Plants","Texas poppy-mallow","Callirhoe scabriuscula",651,"USFWS"]
["12b",0,"Flowering Plants","Kuenzler hedgehog cactus","Echinocereus fendleri var. kuenzleri",701,"USFWS"]
["12b",0,"Flowering Plants","Black lace cactus","Echinocereus reichenbachii var. albertii",702,"USFWS"]
["12b",0,"Flowering Plants","Slender rush-pea","Hoffmannseggia tenella",739,"USFWS"]
["12b",0,"Flowering Plants","Texas snowbells","Styrax texanus",843,"USFWS"]
["12b",0,"Flowering Plants","Texas wild-rice","Zizania texana",870,"USFWS"]
["12b",0,"Flowering Plants","Texas ayenia","Ayenia limitaris",1077,"USFWS"]
["12b",0,"Snails","Pecos assiminea snail","Assiminea pecos",1245,"USFWS"]
["12b",0,"Flowering Plants","Bracted twistflower","Streptanthus bracteatus",1678,"USFWS"]
["12b",0,"Birds","Whooping crane","Grus americana",4679,"USFWS"]
["12b",0,"Birds","Red knot","Calidris canutus rufa",8621,"USFWS"]
["12b",0,"Birds","Northern aplomado falcon (AZ, NM)","Falco femoralis septentrionalis",9122,"USFWS"]
["12b",0,"Flowering Plants","Wright's marsh thistle","Cirsium wrightii",9965,"USFWS"]
["12b",0,"Birds","Red-crowned parrot","Amazona viridigenalis",10021,"USFWS"]
["12b",0,"Mammals","Mexican gray wolf (AZ and NM)","Canis lupus baileyi",10484,"USFWS"]
["12b",0,"Birds","Eastern Black rail","Laterallus jamaicensis ssp. jamaicensis",11319,"USFWS"]
["12b",1,"Birds","Whooping crane","Grus americana",67,"USFWS"]
["12b",1,"Birds","Piping Plover","Charadrius melodus",131,"USFWS"]
["12b",1,"Birds","Least tern","Sterna antillarum",134,"USFWS"]
["12b",1,"Birds","Golden-cheeked warbler (=wood)","Dendroica chrysoparia",139,"USFWS"]
["12b",1,"Flowering Plants","Pecos (=puzzle  =paradox) sunflower","Helianthus paradoxus",558,"USFWS"]
["12b",1,"Flowering Plants","Tobusch fishhook cactus","Sclerocactus brevihamatus ssp. tobuschii",627,"USFWS"]
["12b",1,"Flowering Plants","Slender rush-pea","Hoffmannseggia tenella",739,"USFWS"]
["12b",1,"Flowering Plants","Texas wild-rice","Zizania texana",870,"USFWS"]
["12b",1,"Snails","Pecos assiminea snail","Assiminea pecos",1245,"USFWS"]
["12b",1,"Birds","Whooping crane","Grus americana",4679,"USFWS"]
["12b",1,"Birds","Red knot","Calidris canutus rufa",8621,"USFWS"]
["12b",1,"Birds","Eastern Black rail","Laterallus jamaicensis ssp. jamaicensis",11319,"USFWS"]
[13,0,"Mammals","Black-footed Ferret","Mustela nigripes",5,"USFWS"]
[13,0,"Mammals","Jaguar","Panthera onca",18,"USFWS"]
[13,0,"Mammals","Canada Lynx","Lynx canadensis",24,"USFWS"]
[13,0,"Mammals","Ocelot (AZ, TX)","Leopardus (=Felis) pardalis",30,"USFWS"]
[13,0,"Mammals","Mexican Long-nosed Bat","Leptonycteris nivalis",48,"USFWS"]
[13,0,"Birds","Northern aplomado falcon","Falco femoralis septentrionalis",126,"USFWS"]
[13,0,"Birds","Mexican spotted owl","Strix occidentalis lucida",129,"USFWS"]
[13,0,"Birds","Piping Plover","Charadrius melodus",131,"USFWS"]
[13,0,"Birds","Least tern","Sterna antillarum",134,"USFWS"]
[13,0,"Birds","Golden-cheeked warbler (=wood)","Dendroica chrysoparia",139,"USFWS"]
[13,0,"Birds","Southwestern willow flycatcher","Empidonax traillii extimus",149,"USFWS"]
[13,0,"Reptiles","New Mexican ridge-nosed Rattlesnake","Crotalus willardi obscurus",166,"USFWS"]
[13,0,"Amphibians","Chiricahua leopard frog","Rana chiricahuensis",206,"USFWS"]
[13,0,"Fishes","Gila topminnow (incl. Yaqui)","Poeciliopsis occidentalis",219,"USFWS"]
[13,0,"Insects","Butterfly, Uncompahgre fritillary","Boloria acrocnema",437,"USFWS"]
[13,0,"Flowering Plants","Star cactus","Astrophytum asterias",513,"USFWS"]
[13,0,"Flowering Plants","Zapata bladderpod","Lesquerella thamnophila",569,"USFWS"]
[13,0,"Flowering Plants","Ashy dogweed","Thymophylla tephroleuca",615,"USFWS"]
[13,0,"Flowering Plants","South Texas ambrosia","Ambrosia cheiranthifolia",624,"USFWS"]
[13,0,"Flowering Plants","Tobusch fishhook cactus","Sclerocactus brevihamatus ssp. tobuschii",627,"USFWS"]
[13,0,"Flowering Plants","Sacramento prickly poppy","Argemone pleiacantha ssp. pinnatisecta",633,"USFWS"]
[13,0,"Flowering Plants","Nellie cory cactus","Coryphantha minima",680,"USFWS"]
[13,0,"Flowering Plants","Bunched cory cactus","Coryphantha ramillosa",681,"USFWS"]
[13,0,"Flowering Plants","Lee pincushion cactus","Coryphantha sneedii var. leei",682,"USFWS"]
[13,0,"Flowering Plants","Sneed pincushion cactus","Coryphantha sneedii var. sneedii",683,"USFWS"]
[13,0,"Flowering Plants","Kuenzler hedgehog cactus","Echinocereus fendleri var. kuenzleri",701,"USFWS"]
[13,0,"Flowering Plants","Davis' green pitaya","Echinocereus viridiflorus var. davisii",704,"USFWS"]
[13,0,"Flowering Plants","Lloyd's Mariposa cactus","Echinomastus mariposensis",705,"USFWS"]
[13,0,"Flowering Plants","Zuni fleabane","Erigeron rhizomatus",707,"USFWS"]
[13,0,"Flowering Plants","Gypsum wild-buckwheat","Eriogonum gypsophilum",709,"USFWS"]
[13,0,"Flowering Plants","Walker's manioc","Manihot walkerae",763,"USFWS"]
[13,0,"Flowering Plants","Little Aguja (=Creek) Pondweed","Potamogeton clystocarpus",807,"USFWS"]
[13,0,"Flowering Plants","Hinckley oak","Quercus hinckleyi",812,"USFWS"]
[13,0,"Flowering Plants","Texas snowbells","Styrax texanus",843,"USFWS"]
[13,0,"Flowering Plants","Texas wild-rice","Zizania texana",870,"USFWS"]
[13,0,"Flowering Plants","Todsen's pennyroyal","Hedeoma todsenii",871,"USFWS"]
[13,0,"Flowering Plants","Terlingua Creek cat's-eye","Cryptantha crassipes",913,"USFWS"]
[13,0,"Flowering Plants","Chisos Mountain hedgehog Cactus","Echinocereus chisoensis var. chisoensis",925,"USFWS"]
[13,0,"Flowering Plants","Texas ayenia","Ayenia limitaris",1077,"USFWS"]
[13,0,"Flowering Plants","Holy Ghost ipomopsis","Ipomopsis sancti-spiritus",1120,"USFWS"]
[13,0,"Snails","Pecos assiminea snail","Assiminea pecos",1245,"USFWS"]
[13,0,"Reptiles","Northern Mexican gartersnake","Thamnophis eques megalops",1783,"USFWS"]
[13,0,"Reptiles","Narrow-headed gartersnake","Thamnophis rufipunctatus",3271,"USFWS"]
[13,0,"Amphibians","Jemez Mountains salamander","Plethodon neomexicanus",3849,"USFWS"]
[13,0,"Mammals","North American wolverine","Gulo gulo luscus",4016,"USFWS"]
[13,0,"Birds","Gunnison sage-grouse","Centrocercus minimus",4064,"USFWS"]
[13,0,"Mammals","Penasco least chipmunk","Tamias minimus atristriatus",4228,"USFWS"]
[13,0,"Birds","Whooping crane","Grus americana",4679,"USFWS"]
[13,0,"Mammals","New Mexico meadow jumping mouse","Zapus hudsonius luteus",5210,"USFWS"]
[13,0,"Flowering Plants","Guadalupe fescue","Festuca ligulata",6782,"USFWS"]
[13,0,"Birds","Yellow-billed Cuckoo","Coccyzus americanus",6901,"USFWS"]
[13,0,"Birds","Red knot","Calidris canutus rufa",8621,"USFWS"]
[13,0,"Birds","Northern aplomado falcon (AZ, NM)","Falco femoralis septentrionalis",9122,"USFWS"]
[13,0,"Flowering Plants","Wright's marsh thistle","Cirsium wrightii",9965,"USFWS"]
[13,0,"Birds","Red-crowned parrot","Amazona viridigenalis",10021,"USFWS"]
[13,0,"Mammals","Mexican gray wolf (AZ and NM)","Canis lupus baileyi",10484,"USFWS"]
[13,0,"Birds","Eastern Black rail","Laterallus jamaicensis ssp. jamaicensis",11319,"USFWS"]
[13,1,"Mammals","Jaguar","Panthera onca",18,"USFWS"]
[13,1,"Mammals","Canada Lynx","Lynx canadensis",24,"USFWS"]
[13,1,"Mammals","Preble's meadow jumping mouse","Zapus hudsonius preblei",52,"USFWS"]
[13,1,"Birds","Piping Plover","Charadrius melodus",131,"USFWS"]
[13,1,"Birds","Least tern","Sterna antillarum",134,"USFWS"]
[13,1,"Birds","Golden-cheeked warbler (=wood)","Dendroica chrysoparia",139,"USFWS"]
[13,1,"Birds","Southwestern willow flycatcher","Empidonax traillii extimus",149,"USFWS"]
[13,1,"Amphibians","Chiricahua leopard frog","Rana chiricahuensis",206,"USFWS"]
[13,1,"Fishes","Gila topminnow (incl. Yaqui)","Poeciliopsis occidentalis",219,"USFWS"]
[13,1,"Flowering Plants","Pecos (=puzzle  =paradox) sunflower","Helianthus paradoxus",558,"USFWS"]
[13,1,"Flowering Plants","Tobusch fishhook cactus","Sclerocactus brevihamatus ssp. tobuschii",627,"USFWS"]
[13,1,"Flowering Plants","Little Aguja (=Creek) Pondweed","Potamogeton clystocarpus",807,"USFWS"]
[13,1,"Flowering Plants","Texas wild-rice","Zizania texana",870,"USFWS"]
[13,1,"Flowering Plants","Sacramento Mountains thistle","Cirsium vinaceum",906,"USFWS"]
[13,1,"Flowering Plants","Chisos Mountain hedgehog Cactus","Echinocereus chisoensis var. chisoensis",925,"USFWS"]
[13,1,"Snails","Pecos assiminea snail","Assiminea pecos",1245,"USFWS"]
[13,1,"Reptiles","Northern Mexican gartersnake","Thamnophis eques megalops",1783,"USFWS"]
[13,1,"Reptiles","Narrow-headed gartersnake","Thamnophis rufipunctatus",3271,"USFWS"]
[13,1,"Birds","Gunnison sage-grouse","Centrocercus minimus",4064,"USFWS"]
[13,1,"Birds","Whooping crane","Grus americana",4679,"USFWS"]
[13,1,"Mammals","New Mexico meadow jumping mouse","Zapus hudsonius luteus",5210,"USFWS"]
[13,1,"Birds","Yellow-billed Cuckoo","Coccyzus americanus",6901,"USFWS"]
[13,1,"Birds","Red knot","Calidris canutus rufa",8621,"USFWS"]
[13,1,"Birds","Eastern Black rail","Laterallus jamaicensis ssp. jamaicensis",11319,"USFWS"]
[14,0,"Mammals","Grizzly bear","Ursus arctos horribilis",2,"USFWS"]
[14,0,"Mammals","Black-footed Ferret","Mustela nigripes",5,"USFWS"]
[14,0,"Mammals","Utah Prairie Dog","Cynomys parvidens",20,"USFWS"]
[14,0,"Mammals","Canada Lynx","Lynx canadensis",24,"USFWS"]
[14,0,"Mammals","Preble's Meadow Jumping Mouse","Zapus hudsonius preblei",52,"USFWS"]
[14,0,"Birds","Mexican spotted owl","Strix occidentalis lucida",129,"USFWS"]
[14,0,"Birds","Piping Plover","Charadrius melodus",131,"USFWS"]
[14,0,"Birds","Least tern","Sterna antillarum",134,"USFWS"]
[14,0,"Birds","Southwestern willow flycatcher","Empidonax traillii extimus",149,"USFWS"]
[14,0,"Insects","Butterfly, Uncompahgre fritillary","Boloria acrocnema",437,"USFWS"]
[14,0,"Flowering Plants","Shrubby reed-mustard","Schoenocrambe suffrutescens",607,"USFWS"]
[14,0,"Flowering Plants","Mancos milk-vetch","Astragalus humillimus",639,"USFWS"]
[14,0,"Flowering Plants","Osterhout milkvetch","Astragalus osterhoutii",640,"USFWS"]
[14,0,"Flowering Plants","Jones Cycladenia","Cycladenia humilis var. jonesii",689,"USFWS"]
[14,0,"Flowering Plants","Zuni fleabane","Erigeron rhizomatus",707,"USFWS"]
[14,0,"Flowering Plants","Penland alpine fen mustard","Eutrema penlandii",713,"USFWS"]
[14,0,"Flowering Plants","Barneby ridge-cress","Lepidium barnebyanum",749,"USFWS"]
[14,0,"Flowering Plants","Kodachrome bladderpod","Lesquerella tumulosa",751,"USFWS"]
[14,0,"Flowering Plants","Brady pincushion cactus","Pediocactus bradyi",791,"USFWS"]
[14,0,"Flowering Plants","Knowlton's cactus","Pediocactus knowltonii",792,"USFWS"]
[14,0,"Flowering Plants","Siler pincushion cactus","Pediocactus (=Echinocactus,=Utahia) sileri",794,"USFWS"]
[14,0,"Flowering Plants","Clay phacelia","Phacelia argillacea",796,"USFWS"]
[14,0,"Flowering Plants","North Park phacelia","Phacelia formosula",797,"USFWS"]
[14,0,"Flowering Plants","Colorado hookless Cactus","Sclerocactus glaucus",824,"USFWS"]
[14,0,"Flowering Plants","Mesa Verde cactus","Sclerocactus mesae-verdae",825,"USFWS"]
[14,0,"Flowering Plants","Wright fishhook cactus","Sclerocactus wrightiae",826,"USFWS"]
[14,0,"Flowering Plants","Last Chance townsendia","Townsendia aprica",853,"USFWS"]
[14,0,"Flowering Plants","Welsh's milkweed","Asclepias welshii",884,"USFWS"]
[14,0,"Flowering Plants","Heliotrope milk-vetch","Astragalus montii",888,"USFWS"]
[14,0,"Flowering Plants","Clay-Loving wild buckwheat","Eriogonum pelinophilum",930,"USFWS"]
[14,0,"Flowering Plants","Blowout penstemon","Penstemon haydenii",978,"USFWS"]
[14,0,"Flowering Plants","San Rafael cactus","Pediocactus despainii",1034,"USFWS"]
[14,0,"Flowering Plants","Winkler cactus","Pediocactus winkleri",1035,"USFWS"]
[14,0,"Flowering Plants","Barneby reed-mustard","Schoenocrambe barnebyi",1037,"USFWS"]
[14,0,"Flowering Plants","Dudley Bluffs twinpod","Physaria obcordata",1061,"USFWS"]
[14,0,"Flowering Plants","Penland beardtongue","Penstemon penlandii",1079,"USFWS"]
[14,0,"Flowering Plants","Dudley Bluffs bladderpod","Lesquerella congesta",1125,"USFWS"]
[14,0,"Flowering Plants","Clay reed-mustard","Schoenocrambe argillacea",1149,"USFWS"]
[14,0,"Flowering Plants","Parachute beardtongue","Penstemon debilis",1283,"USFWS"]
[14,0,"Birds","California condor (specific portions of AZ, NV and UT)","Gymnogyps californianus",1737,"USFWS"]
[14,0,"Reptiles","Northern Mexican gartersnake","Thamnophis eques megalops",1783,"USFWS"]
[14,0,"Flowering Plants","Whitebark pine","Pinus albicaulis",1935,"USFWS"]
[14,0,"Flowering Plants","Skiff milkvetch","Astragalus microcymbus",2567,"USFWS"]
[14,0,"Flowering Plants","Schmoll milk-vetch","Astragalus schmolliae",2730,"USFWS"]
[14,0,"Reptiles","Narrow-headed gartersnake","Thamnophis rufipunctatus",3271,"USFWS"]
[14,0,"Amphibians","Jemez Mountains salamander","Plethodon neomexicanus",3849,"USFWS"]
[14,0,"Mammals","North American wolverine","Gulo gulo luscus",4016,"USFWS"]
[14,0,"Birds","Gunnison sage-grouse","Centrocercus minimus",4064,"USFWS"]
[14,0,"Flowering Plants","Fickeisen plains cactus","Pediocactus peeblesianus fickeiseniae",4179,"USFWS"]
[14,0,"Birds","Whooping crane","Grus americana",4679,"USFWS"]
[14,0,"Flowering Plants","Pagosa skyrocket","Ipomopsis polyantha",4724,"USFWS"]
[14,0,"Mammals","New Mexico meadow jumping mouse","Zapus hudsonius luteus",5210,"USFWS"]
[14,0,"Birds","Yellow-billed Cuckoo","Coccyzus americanus",6901,"USFWS"]
[14,0,"Flowering Plants","DeBeque phacelia","Phacelia submutica",7220,"USFWS"]
[14,0,"Mammals","Black-footed Ferret","Mustela nigripes",7572,"USFWS"]
[14,0,"Flowering Plants","Pariette cactus","Sclerocactus brevispinus",9338,"USFWS"]
[14,0,"Flowering Plants","Uinta Basin hookless cactus","Sclerocactus wetlandicus",10034,"USFWS"]
[14,0,"Insects","Arapahoe snowfly","Arsapnia arapahoe",10130,"USFWS"]
[14,0,"Birds","Eastern Black rail","Laterallus jamaicensis ssp. jamaicensis",11319,"USFWS"]
[14,1,"Mammals","Grizzly bear","Ursus arctos horribilis",2,"USFWS"]
[14,1,"Mammals","Canada Lynx","Lynx canadensis",24,"USFWS"]
[14,1,"Mammals","Preble's meadow jumping mouse","Zapus hudsonius preblei",52,"USFWS"]
[14,1,"Birds","Piping Plover","Charadrius melodus",131,"USFWS"]
[14,1,"Birds","Least tern","Sterna antillarum",134,"USFWS"]
[14,1,"Birds","Southwestern willow flycatcher","Empidonax traillii extimus",149,"USFWS"]
[14,1,"Flowering Plants","Colorado Butterfly plant","Gaura neomexicana var. coloradensis",554,"USFWS"]
[14,1,"Flowering Plants","Navajo sedge","Carex specuicola",656,"USFWS"]
[14,1,"Flowering Plants","Penland alpine fen mustard","Eutrema penlandii",713,"USFWS"]
[14,1,"Flowering Plants","Clay-Loving wild buckwheat","Eriogonum pelinophilum",930,"USFWS"]
[14,1,"Flowering Plants","Ute ladies'-tresses","Spiranthes diluvialis",1073,"USFWS"]
[14,1,"Flowering Plants","Western prairie fringed Orchid","Platanthera praeclara",1080,"USFWS"]
[14,1,"Reptiles","Northern Mexican gartersnake","Thamnophis eques megalops",1783,"USFWS"]
[14,1,"Reptiles","Narrow-headed gartersnake","Thamnophis rufipunctatus",3271,"USFWS"]
[14,1,"Birds","Gunnison sage-grouse","Centrocercus minimus",4064,"USFWS"]
[14,1,"Birds","Whooping crane","Grus americana",4679,"USFWS"]
[14,1,"Mammals","New Mexico meadow jumping mouse","Zapus hudsonius luteus",5210,"USFWS"]
[14,1,"Birds","Yellow-billed Cuckoo","Coccyzus americanus",6901,"USFWS"]
[14,1,"Birds","Eastern Black rail","Laterallus jamaicensis ssp. jamaicensis",11319,"USFWS"]
["15a",0,"Mammals","Black-footed Ferret","Mustela nigripes",5,"USFWS"]
["15a",0,"Mammals","Sonoran Pronghorn","Antilocapra americana sonoriensis",9,"USFWS"]
["15a",0,"Mammals","Mexican gray wolf","Canis lupus baileyi",13,"USFWS"]
["15a",0,"Mammals","Jaguar","Panthera onca",18,"USFWS"]
["15a",0,"Mammals","Utah Prairie Dog","Cynomys parvidens",20,"USFWS"]
["15a",0,"Mammals","Canada Lynx","Lynx canadensis",24,"USFWS"]
["15a",0,"Mammals","Ocelot (AZ, TX)","Leopardus (=Felis) pardalis",30,"USFWS"]
["15a",0,"Mammals","Mount Graham Red Squirrel","Tamiasciurus hudsonicus grahamensis",43,"USFWS"]
["15a",0,"Mammals","Mexican Long-nosed Bat","Leptonycteris nivalis",48,"USFWS"]
["15a",0,"Birds","Yuma clapper rail","Rallus longirostris yumanensis",84,"USFWS"]
["15a",0,"Birds","Masked bobwhite quail","Colinus virginianus ridgwayi",89,"USFWS"]
["15a",0,"Birds","California least tern","Sterna antillarum browni",96,"USFWS"]
["15a",0,"Birds","Mexican spotted owl","Strix occidentalis lucida",129,"USFWS"]
["15a",0,"Birds","Least tern","Sterna antillarum",134,"USFWS"]
["15a",0,"Birds","Southwestern willow flycatcher","Empidonax traillii extimus",149,"USFWS"]
["15a",0,"Reptiles","New Mexican ridge-nosed Rattlesnake","Crotalus willardi obscurus",166,"USFWS"]
["15a",0,"Reptiles","Desert Tortoise (except AZ south and east of Colorado River)","Gopherus agassizii",185,"USFWS"]
["15a",0,"Amphibians","Sonora tiger Salamander","Ambystoma tigrinum stebbinsi",201,"USFWS"]
["15a",0,"Amphibians","Chiricahua leopard frog","Rana chiricahuensis",206,"USFWS"]
["15a",0,"Fishes","Gila topminnow (incl. Yaqui)","Poeciliopsis occidentalis",219,"USFWS"]
["15a",0,"Snails","Kanab ambersnail","Oxyloma haydeni kanabensis",400,"USFWS"]
["15a",0,"Flowering Plants","Dwarf Bear-poppy","Arctomecon humilis",631,"USFWS"]
["15a",0,"Flowering Plants","Sentry milk-vetch","Astragalus cremnophylax var. cremnophylax",638,"USFWS"]
["15a",0,"Flowering Plants","Mancos milk-vetch","Astragalus humillimus",639,"USFWS"]
["15a",0,"Flowering Plants","Jones Cycladenia","Cycladenia humilis var. jonesii",689,"USFWS"]
["15a",0,"Flowering Plants","Arizona hedgehog cactus","Echinocereus triglochidiatus var. arizonicus",703,"USFWS"]
["15a",0,"Flowering Plants","Zuni fleabane","Erigeron rhizomatus",707,"USFWS"]
["15a",0,"Flowering Plants","Brady pincushion cactus","Pediocactus bradyi",791,"USFWS"]
["15a",0,"Flowering Plants","Knowlton's cactus","Pediocactus knowltonii",792,"USFWS"]
["15a",0,"Flowering Plants","Siler pincushion cactus","Pediocactus (=Echinocactus,=Utahia) sileri",794,"USFWS"]
["15a",0,"Flowering Plants","Arizona Cliff-rose","Purshia (=Cowania) subintegra",811,"USFWS"]
["15a",0,"Flowering Plants","Mesa Verde cactus","Sclerocactus mesae-verdae",825,"USFWS"]
["15a",0,"Flowering Plants","San Francisco Peaks ragwort","Packera franciscana",827,"USFWS"]
["15a",0,"Flowering Plants","Todsen's pennyroyal","Hedeoma todsenii",871,"USFWS"]
["15a",0,"Flowering Plants","Kearney's blue-star","Amsonia kearneyana",878,"USFWS"]
["15a",0,"Flowering Plants","Welsh's milkweed","Asclepias welshii",884,"USFWS"]
["15a",0,"Flowering Plants","Cochise pincushion cactus","Coryphantha robbinsiorum",910,"USFWS"]
["15a",0,"Flowering Plants","Pima pineapple cactus","Coryphantha scheeri var. robustispina",911,"USFWS"]
["15a",0,"Flowering Plants","Huachuca water-umbel","Lilaeopsis schaffneriana var. recurva",1030,"USFWS"]
["15a",0,"Flowering Plants","Shivwits milk-vetch","Astragalus ampullarioides",1088,"USFWS"]
["15a",0,"Birds","California condor (specific portions of AZ, NV and UT)","Gymnogyps californianus",1737,"USFWS"]
["15a",0,"Reptiles","Northern Mexican gartersnake","Thamnophis eques megalops",1783,"USFWS"]
["15a",0,"Reptiles","Narrow-headed gartersnake","Thamnophis rufipunctatus",3271,"USFWS"]
["15a",0,"Mammals","North American wolverine","Gulo gulo luscus",4016,"USFWS"]
["15a",0,"Flowering Plants","Fickeisen plains cactus","Pediocactus peeblesianus fickeiseniae",4179,"USFWS"]
["15a",0,"Mammals","New Mexico meadow jumping mouse","Zapus hudsonius luteus",5210,"USFWS"]
["15a",0,"Birds","Yellow-billed Cuckoo","Coccyzus americanus",6901,"USFWS"]
["15a",0,"Flowering Plants","Acuna Cactus","Echinomastus erectocentrus var. acunensis",7054,"USFWS"]
["15a",0,"Mammals","Black-footed Ferret","Mustela nigripes",7572,"USFWS"]
["15a",0,"Insects","Butterfly, Mount Charleston blue","Plebejus shasta charlestonensis",9001,"USFWS"]
["15a",0,"Birds","Northern aplomado falcon (AZ, NM)","Falco femoralis septentrionalis",9122,"USFWS"]
["15a",0,"Flowering Plants","Wright's marsh thistle","Cirsium wrightii",9965,"USFWS"]
["15a",0,"Mammals","Sonoran Pronghorn","Antilocapra americana sonoriensis",10141,"USFWS"]
["15a",0,"Mammals","Mexican gray wolf (AZ and NM)","Canis lupus baileyi",10484,"USFWS"]
["15a",0,"Birds","Eastern Black rail","Laterallus jamaicensis ssp. jamaicensis",11319,"USFWS"]
["15a",1,"Mammals","Jaguar","Panthera onca",18,"USFWS"]
["15a",1,"Mammals","Canada Lynx","Lynx canadensis",24,"USFWS"]
["15a",1,"Birds","Yuma clapper rail","Rallus longirostris yumanensis",84,"USFWS"]
["15a",1,"Birds","California least tern","Sterna antillarum browni",96,"USFWS"]
["15a",1,"Birds","Least tern","Sterna antillarum",134,"USFWS"]
["15a",1,"Birds","Southwestern willow flycatcher","Empidonax traillii extimus",149,"USFWS"]
["15a",1,"Amphibians","Sonora tiger Salamander","Ambystoma tigrinum stebbinsi",201,"USFWS"]
["15a",1,"Amphibians","Chiricahua leopard frog","Rana chiricahuensis",206,"USFWS"]
["15a",1,"Fishes","Gila topminnow (incl. Yaqui)","Poeciliopsis occidentalis",219,"USFWS"]
["15a",1,"Snails","Kanab ambersnail","Oxyloma haydeni kanabensis",400,"USFWS"]
["15a",1,"Flowering Plants","Pecos (=puzzle  =paradox) sunflower","Helianthus paradoxus",558,"USFWS"]
["15a",1,"Flowering Plants","Navajo sedge","Carex specuicola",656,"USFWS"]
["15a",1,"Flowering Plants","Huachuca water-umbel","Lilaeopsis schaffneriana var. recurva",1030,"USFWS"]
["15a",1,"Flowering Plants","Canelo Hills ladies'-tresses","Spiranthes delitescens",1172,"USFWS"]
["15a",1,"Reptiles","Northern Mexican gartersnake","Thamnophis eques megalops",1783,"USFWS"]
["15a",1,"Reptiles","Narrow-headed gartersnake","Thamnophis rufipunctatus",3271,"USFWS"]
["15a",1,"Mammals","New Mexico meadow jumping mouse","Zapus hudsonius luteus",5210,"USFWS"]
["15a",1,"Reptiles","Sonoyta mud turtle","Kinosternon sonoriense longifemorale",6620,"USFWS"]
["15a",1,"Birds","Yellow-billed Cuckoo","Coccyzus americanus",6901,"USFWS"]
["15a",1,"Birds","Eastern Black rail","Laterallus jamaicensis ssp. jamaicensis",11319,"USFWS"]
["15b",0,"Mammals","Black-footed Ferret","Mustela nigripes",5,"USFWS"]
["15b",0,"Mammals","Sonoran Pronghorn","Antilocapra americana sonoriensis",9,"USFWS"]
["15b",0,"Mammals","Mexican gray wolf","Canis lupus baileyi",13,"USFWS"]
["15b",0,"Mammals","Jaguar","Panthera onca",18,"USFWS"]
["15b",0,"Mammals","Canada Lynx","Lynx canadensis",24,"USFWS"]
["15b",0,"Mammals","Ocelot (AZ, TX)","Leopardus (=Felis) pardalis",30,"USFWS"]
["15b",0,"Mammals","Mount Graham Red Squirrel","Tamiasciurus hudsonicus grahamensis",43,"USFWS"]
["15b",0,"Mammals","Mexican Long-nosed Bat","Leptonycteris nivalis",48,"USFWS"]
["15b",0,"Birds","Yuma clapper rail","Rallus longirostris yumanensis",84,"USFWS"]
["15b",0,"Birds","Masked bobwhite quail","Colinus virginianus ridgwayi",89,"USFWS"]
["15b",0,"Birds","California least tern","Sterna antillarum browni",96,"USFWS"]
["15b",0,"Birds","Least Bell's vireo","Vireo bellii pusillus",123,"USFWS"]
["15b",0,"Birds","Mexican spotted owl","Strix occidentalis lucida",129,"USFWS"]
["15b",0,"Birds","Least tern","Sterna antillarum",134,"USFWS"]
["15b",0,"Birds","Southwestern willow flycatcher","Empidonax traillii extimus",149,"USFWS"]
["15b",0,"Reptiles","New Mexican ridge-nosed Rattlesnake","Crotalus willardi obscurus",166,"USFWS"]
["15b",0,"Reptiles","Desert Tortoise (except AZ south and east of Colorado River)","Gopherus agassizii",185,"USFWS"]
["15b",0,"Amphibians","Sonora tiger Salamander","Ambystoma tigrinum stebbinsi",201,"USFWS"]
["15b",0,"Amphibians","Chiricahua leopard frog","Rana chiricahuensis",206,"USFWS"]
["15b",0,"Fishes","Gila topminnow (incl. Yaqui)","Poeciliopsis occidentalis",219,"USFWS"]
["15b",0,"Snails","Kanab ambersnail","Oxyloma haydeni kanabensis",400,"USFWS"]
["15b",0,"Flowering Plants","Dwarf Bear-poppy","Arctomecon humilis",631,"USFWS"]
["15b",0,"Flowering Plants","Sentry milk-vetch","Astragalus cremnophylax var. cremnophylax",638,"USFWS"]
["15b",0,"Flowering Plants","Mancos milk-vetch","Astragalus humillimus",639,"USFWS"]
["15b",0,"Flowering Plants","Jones Cycladenia","Cycladenia humilis var. jonesii",689,"USFWS"]
["15b",0,"Flowering Plants","Nichol's Turk's head cactus","Echinocactus horizonthalonius var. nicholii",700,"USFWS"]
["15b",0,"Flowering Plants","Arizona hedgehog cactus","Echinocereus triglochidiatus var. arizonicus",703,"USFWS"]
["15b",0,"Flowering Plants","Zuni fleabane","Erigeron rhizomatus",707,"USFWS"]
["15b",0,"Flowering Plants","Brady pincushion cactus","Pediocactus bradyi",791,"USFWS"]
["15b",0,"Flowering Plants","Knowlton's cactus","Pediocactus knowltonii",792,"USFWS"]
["15b",0,"Flowering Plants","Peebles Navajo cactus","Pediocactus peeblesianus var. peeblesianus",793,"USFWS"]
["15b",0,"Flowering Plants","Siler pincushion cactus","Pediocactus (=Echinocactus,=Utahia) sileri",794,"USFWS"]
["15b",0,"Flowering Plants","Arizona Cliff-rose","Purshia (=Cowania) subintegra",811,"USFWS"]
["15b",0,"Flowering Plants","Mesa Verde cactus","Sclerocactus mesae-verdae",825,"USFWS"]
["15b",0,"Flowering Plants","San Francisco Peaks ragwort","Packera franciscana",827,"USFWS"]
["15b",0,"Flowering Plants","Kearney's blue-star","Amsonia kearneyana",878,"USFWS"]
["15b",0,"Flowering Plants","Welsh's milkweed","Asclepias welshii",884,"USFWS"]
["15b",0,"Flowering Plants","Cochise pincushion cactus","Coryphantha robbinsiorum",910,"USFWS"]
["15b",0,"Flowering Plants","Pima pineapple cactus","Coryphantha scheeri var. robustispina",911,"USFWS"]
["15b",0,"Flowering Plants","Holmgren milk-vetch","Astragalus holmgreniorum",1020,"USFWS"]
["15b",0,"Flowering Plants","Peirson's milk-vetch","Astragalus magdalenae var. peirsonii",1021,"USFWS"]
["15b",0,"Flowering Plants","Huachuca water-umbel","Lilaeopsis schaffneriana var. recurva",1030,"USFWS"]
["15b",0,"Flowering Plants","Shivwits milk-vetch","Astragalus ampullarioides",1088,"USFWS"]
["15b",0,"Birds","California condor (specific portions of AZ, NV and UT)","Gymnogyps californianus",1737,"USFWS"]
["15b",0,"Reptiles","Northern Mexican gartersnake","Thamnophis eques megalops",1783,"USFWS"]
["15b",0,"Reptiles","Narrow-headed gartersnake","Thamnophis rufipunctatus",3271,"USFWS"]
["15b",0,"Mammals","North American wolverine","Gulo gulo luscus",4016,"USFWS"]
["15b",0,"Flowering Plants","Fickeisen plains cactus","Pediocactus peeblesianus fickeiseniae",4179,"USFWS"]
["15b",0,"Mammals","New Mexico meadow jumping mouse","Zapus hudsonius luteus",5210,"USFWS"]
["15b",0,"Birds","Yellow-billed Cuckoo","Coccyzus americanus",6901,"USFWS"]
["15b",0,"Flowering Plants","Acuna Cactus","Echinomastus erectocentrus var. acunensis",7054,"USFWS"]
["15b",0,"Mammals","Black-footed Ferret","Mustela nigripes",7572,"USFWS"]
["15b",0,"Insects","Butterfly, Mount Charleston blue","Plebejus shasta charlestonensis",9001,"USFWS"]
["15b",0,"Birds","Northern aplomado falcon (AZ, NM)","Falco femoralis septentrionalis",9122,"USFWS"]
["15b",0,"Flowering Plants","Gierisch mallow","Sphaeralcea gierischii",9929,"USFWS"]
["15b",0,"Flowering Plants","Wright's marsh thistle","Cirsium wrightii",9965,"USFWS"]
["15b",0,"Mammals","Sonoran Pronghorn","Antilocapra americana sonoriensis",10141,"USFWS"]
["15b",0,"Mammals","Mexican gray wolf (AZ and NM)","Canis lupus baileyi",10484,"USFWS"]
["15b",0,"Birds","Eastern Black rail","Laterallus jamaicensis ssp. jamaicensis",11319,"USFWS"]
["15b",1,"Mammals","Jaguar","Panthera onca",18,"USFWS"]
["15b",1,"Mammals","Canada Lynx","Lynx canadensis",24,"USFWS"]
["15b",1,"Birds","Yuma clapper rail","Rallus longirostris yumanensis",84,"USFWS"]
["15b",1,"Birds","California least tern","Sterna antillarum browni",96,"USFWS"]
["15b",1,"Birds","Least tern","Sterna antillarum",134,"USFWS"]
["15b",1,"Birds","Southwestern willow flycatcher","Empidonax traillii extimus",149,"USFWS"]
["15b",1,"Amphibians","Sonora tiger Salamander","Ambystoma tigrinum stebbinsi",201,"USFWS"]
["15b",1,"Amphibians","Chiricahua leopard frog","Rana chiricahuensis",206,"USFWS"]
["15b",1,"Fishes","Gila topminnow (incl. Yaqui)","Poeciliopsis occidentalis",219,"USFWS"]
["15b",1,"Snails","Kanab ambersnail","Oxyloma haydeni kanabensis",400,"USFWS"]
["15b",1,"Flowering Plants","Pecos (=puzzle  =paradox) sunflower","Helianthus paradoxus",558,"USFWS"]
["15b",1,"Flowering Plants","Navajo sedge","Carex specuicola",656,"USFWS"]
["15b",1,"Flowering Plants","Huachuca water-umbel","Lilaeopsis schaffneriana var. recurva",1030,"USFWS"]
["15b",1,"Flowering Plants","Ute ladies'-tresses","Spiranthes diluvialis",1073,"USFWS"]
["15b",1,"Flowering Plants","Canelo Hills ladies'-tresses","Spiranthes delitescens",1172,"USFWS"]
["15b",1,"Reptiles","Northern Mexican gartersnake","Thamnophis eques megalops",1783,"USFWS"]
["15b",1,"Reptiles","Narrow-headed gartersnake","Thamnophis rufipunctatus",3271,"USFWS"]
["15b",1,"Mammals","New Mexico meadow jumping mouse","Zapus hudsonius luteus",5210,"USFWS"]
["15b",1,"Reptiles","Sonoyta mud turtle","Kinosternon sonoriense longifemorale",6620,"USFWS"]
["15b",1,"Birds","Yellow-billed Cuckoo","Coccyzus americanus",6901,"USFWS"]
["15b",1,"Birds","Eastern Black rail","Laterallus jamaicensis ssp. jamaicensis",11319,"USFWS"]
["16a",0,"Mammals","Grizzly bear","Ursus arctos horribilis",2,"USFWS"]
["16a",0,"Mammals","Utah Prairie Dog","Cynomys parvidens",20,"USFWS"]
["16a",0,"Mammals","Canada Lynx","Lynx canadensis",24,"USFWS"]
["16a",0,"Mammals","Sierra Nevada Bighorn Sheep","Ovis canadensis sierrae",57,"USFWS"]
["16a",0,"Mammals","Buena Vista Lake ornate Shrew","Sorex ornatus relictus",58,"USFWS"]
["16a",0,"Birds","Least Bell's vireo","Vireo bellii pusillus",123,"USFWS"]
["16a",0,"Birds","Mexican spotted owl","Strix occidentalis lucida",129,"USFWS"]
["16a",0,"Birds","Southwestern willow flycatcher","Empidonax traillii extimus",149,"USFWS"]
["16a",0,"Reptiles","Desert Tortoise (except AZ south and east of Colorado River)","Gopherus agassizii",185,"USFWS"]
["16a",0,"Amphibians","California tiger Salamander","Ambystoma californiense",203,"USFWS"]
["16a",0,"Amphibians","Arroyo (=arroyo southwestern) toad","Anaxyrus californicus",204,"USFWS"]
["16a",0,"Amphibians","California red-legged frog","Rana draytonii",205,"USFWS"]
["16a",0,"Insects","Skipper, Carson wandering","Pseudocopaeodes eunus obscurus",462,"USFWS"]
["16a",0,"Flowering Plants","Slender Orcutt grass","Orcuttia tenuis",583,"USFWS"]
["16a",0,"Flowering Plants","Jones Cycladenia","Cycladenia humilis var. jonesii",689,"USFWS"]
["16a",0,"Flowering Plants","Siler pincushion cactus","Pediocactus (=Echinocactus,=Utahia) sileri",794,"USFWS"]
["16a",0,"Flowering Plants","Clay phacelia","Phacelia argillacea",796,"USFWS"]
["16a",0,"Flowering Plants","Eureka Dune grass","Swallenia alexandrae",844,"USFWS"]
["16a",0,"Flowering Plants","Last Chance townsendia","Townsendia aprica",853,"USFWS"]
["16a",0,"Flowering Plants","Fish Slough milk-vetch","Astragalus lentiginosus var. piscinensis",887,"USFWS"]
["16a",0,"Flowering Plants","Heliotrope milk-vetch","Astragalus montii",888,"USFWS"]
["16a",0,"Flowering Plants","Maguire primrose","Primula maguirei",990,"USFWS"]
["16a",0,"Flowering Plants","Steamboat buckwheat","Eriogonum ovalifolium var. williamsiae",1026,"USFWS"]
["16a",0,"Flowering Plants","Barneby reed-mustard","Schoenocrambe barnebyi",1037,"USFWS"]
["16a",0,"Amphibians","Yosemite toad","Anaxyrus canorus",1707,"USFWS"]
["16a",0,"Birds","California condor (specific portions of AZ, NV and UT)","Gymnogyps californianus",1737,"USFWS"]
["16a",0,"Flowering Plants","Whitebark pine","Pinus albicaulis",1935,"USFWS"]
["16a",0,"Flowering Plants","Webber Ivesia","Ivesia webberi",2458,"USFWS"]
["16a",0,"Mammals","North American wolverine","Gulo gulo luscus",4016,"USFWS"]
["16a",0,"Amphibians","Oregon spotted frog","Rana pretiosa",4090,"USFWS"]
["16a",0,"Flowering Plants","Frisco buckwheat","Eriogonum soredium",5468,"USFWS"]
["16a",0,"Birds","Yellow-billed Cuckoo","Coccyzus americanus",6901,"USFWS"]
["16a",0,"Mammals","Black-footed Ferret","Mustela nigripes",7572,"USFWS"]
["16a",0,"Flowering Plants","Ostler's peppergrass","Lepidium ostleri",7992,"USFWS"]
["16a",0,"Insects","Butterfly, Mount Charleston blue","Plebejus shasta charlestonensis",9001,"USFWS"]
["16a",0,"Birds","Greater sage-grouse","Centrocercus urophasianus",9337,"USFWS"]
["16a",0,"Flowering Plants","Frisco clover","Trifolium friscanum",10028,"USFWS"]
["16a",0,"Amphibians","Sierra Nevada Yellow-legged Frog","Rana sierrae",10517,"USFWS"]
["16a",0,"Mammals","Sierra Nevada red fox","Vulpes vulpes necator",11260,"USFWS"]
["16a",1,"Mammals","Grizzly bear","Ursus arctos horribilis",2,"USFWS"]
["16a",1,"Mammals","Canada Lynx","Lynx canadensis",24,"USFWS"]
["16a",1,"Mammals","Amargosa vole","Microtus californicus scirpensis",28,"USFWS"]
["16a",1,"Mammals","Buena Vista Lake ornate Shrew","Sorex ornatus relictus",58,"USFWS"]
["16a",1,"Birds","Inyo California towhee","Pipilo crissalis eremophilus",137,"USFWS"]
["16a",1,"Birds","Southwestern willow flycatcher","Empidonax traillii extimus",149,"USFWS"]
["16a",1,"Amphibians","California tiger Salamander","Ambystoma californiense",203,"USFWS"]
["16a",1,"Amphibians","Arroyo (=arroyo southwestern) toad","Anaxyrus californicus",204,"USFWS"]
["16a",1,"Amphibians","California red-legged frog","Rana draytonii",205,"USFWS"]
["16a",1,"Flowering Plants","Slender Orcutt grass","Orcuttia tenuis",583,"USFWS"]
["16a",1,"Flowering Plants","Kenwood Marsh checker-mallow","Sidalcea oregana ssp. valida",612,"USFWS"]
["16a",1,"Flowering Plants","Autumn Buttercup","Ranunculus aestivalis (=acriformis)",813,"USFWS"]
["16a",1,"Flowering Plants","Ute ladies'-tresses","Spiranthes diluvialis",1073,"USFWS"]
["16a",1,"Amphibians","Yosemite toad","Anaxyrus canorus",1707,"USFWS"]
["16a",1,"Amphibians","Oregon spotted frog","Rana pretiosa",4090,"USFWS"]
["16a",1,"Birds","Yellow-billed Cuckoo","Coccyzus americanus",6901,"USFWS"]
["16a",1,"Birds","Greater sage-grouse","Centrocercus urophasianus",9337,"USFWS"]
["16a",1,"Amphibians","Sierra Nevada Yellow-legged Frog","Rana sierrae",10517,"USFWS"]
["16b",0,"Mammals","Utah Prairie Dog","Cynomys parvidens",20,"USFWS"]
["16b",0,"Mammals","Canada Lynx","Lynx canadensis",24,"USFWS"]
["16b",0,"Mammals","Buena Vista Lake ornate Shrew","Sorex ornatus relictus",58,"USFWS"]
["16b",0,"Birds","Least Bell's vireo","Vireo bellii pusillus",123,"USFWS"]
["16b",0,"Birds","Southwestern willow flycatcher","Empidonax traillii extimus",149,"USFWS"]
["16b",0,"Reptiles","Desert Tortoise (except AZ south and east of Colorado River)","Gopherus agassizii",185,"USFWS"]
["16b",0,"Amphibians","California tiger Salamander","Ambystoma californiense",203,"USFWS"]
["16b",0,"Insects","Skipper, Carson wandering","Pseudocopaeodes eunus obscurus",462,"USFWS"]
["16b",0,"Flowering Plants","Slender Orcutt grass","Orcuttia tenuis",583,"USFWS"]
["16b",0,"Flowering Plants","Jones Cycladenia","Cycladenia humilis var. jonesii",689,"USFWS"]
["16b",0,"Flowering Plants","Ash Meadows blazingstar","Mentzelia leucophylla",776,"USFWS"]
["16b",0,"Flowering Plants","Siler pincushion cactus","Pediocactus (=Echinocactus,=Utahia) sileri",794,"USFWS"]
["16b",0,"Flowering Plants","Fish Slough milk-vetch","Astragalus lentiginosus var. piscinensis",887,"USFWS"]
["16b",0,"Flowering Plants","Ash Meadows sunray","Enceliopsis nudicaulis var. corrugata",926,"USFWS"]
["16b",0,"Flowering Plants","Amargosa niterwort","Nitrophila mohavensis",973,"USFWS"]
["16b",0,"Flowering Plants","Steamboat buckwheat","Eriogonum ovalifolium var. williamsiae",1026,"USFWS"]
["16b",0,"Amphibians","Yosemite toad","Anaxyrus canorus",1707,"USFWS"]
["16b",0,"Birds","California condor (specific portions of AZ, NV and UT)","Gymnogyps californianus",1737,"USFWS"]
["16b",0,"Amphibians","Mountain yellow-legged frog","Rana muscosa",1740,"USFWS"]
["16b",0,"Flowering Plants","Whitebark pine","Pinus albicaulis",1935,"USFWS"]
["16b",0,"Flowering Plants","Webber Ivesia","Ivesia webberi",2458,"USFWS"]
["16b",0,"Mammals","North American wolverine","Gulo gulo luscus",4016,"USFWS"]
["16b",0,"Amphibians","Oregon spotted frog","Rana pretiosa",4090,"USFWS"]
["16b",0,"Flowering Plants","Frisco buckwheat","Eriogonum soredium",5468,"USFWS"]
["16b",0,"Birds","Yellow-billed Cuckoo","Coccyzus americanus",6901,"USFWS"]
["16b",0,"Flowering Plants","Ostler's peppergrass","Lepidium ostleri",7992,"USFWS"]
["16b",0,"Insects","Butterfly, Mount Charleston blue","Plebejus shasta charlestonensis",9001,"USFWS"]
["16b",0,"Birds","Greater sage-grouse","Centrocercus urophasianus",9337,"USFWS"]
["16b",0,"Flowering Plants","Frisco clover","Trifolium friscanum",10028,"USFWS"]
["16b",0,"Mammals","Sierra Nevada red fox","Vulpes vulpes necator",11260,"USFWS"]
["16b",1,"Mammals","Canada Lynx","Lynx canadensis",24,"USFWS"]
["16b",1,"Mammals","Buena Vista Lake ornate Shrew","Sorex ornatus relictus",58,"USFWS"]
["16b",1,"Birds","Southwestern willow flycatcher","Empidonax traillii extimus",149,"USFWS"]
["16b",1,"Amphibians","California tiger Salamander","Ambystoma californiense",203,"USFWS"]
["16b",1,"Flowering Plants","Slender Orcutt grass","Orcuttia tenuis",583,"USFWS"]
["16b",1,"Flowering Plants","Kenwood Marsh checker-mallow","Sidalcea oregana ssp. valida",612,"USFWS"]
["16b",1,"Flowering Plants","Ash meadows milk-vetch","Astragalus phoenix",641,"USFWS"]
["16b",1,"Flowering Plants","Spring-loving centaury","Centaurium namophilum",660,"USFWS"]
["16b",1,"Flowering Plants","Ash Meadows ivesia","Ivesia kingii var. eremica",743,"USFWS"]
["16b",1,"Flowering Plants","Autumn Buttercup","Ranunculus aestivalis (=acriformis)",813,"USFWS"]
["16b",1,"Flowering Plants","Ash Meadows sunray","Enceliopsis nudicaulis var. corrugata",926,"USFWS"]
["16b",1,"Flowering Plants","Amargosa niterwort","Nitrophila mohavensis",973,"USFWS"]
["16b",1,"Flowering Plants","Ute ladies'-tresses","Spiranthes diluvialis",1073,"USFWS"]
["16b",1,"Amphibians","Yosemite toad","Anaxyrus canorus",1707,"USFWS"]
["16b",1,"Amphibians","Mountain yellow-legged frog","Rana muscosa",1740,"USFWS"]
["16b",1,"Amphibians","Oregon spotted frog","Rana pretiosa",4090,"USFWS"]
["16b",1,"Birds","Yellow-billed Cuckoo","Coccyzus americanus",6901,"USFWS"]
["16b",1,"Birds","Greater sage-grouse","Centrocercus urophasianus",9337,"USFWS"]
["17a",0,"Mammals","Grizzly bear","Ursus arctos horribilis",2,"USFWS"]
["17a",0,"Mammals","Columbian White-tailed Deer (Columbia River DPS)","Odocoileus virginianus leucurus",3,"USFWS"]
["17a",0,"Mammals","Gray wolf","Canis lupus",11,"USFWS"]
["17a",0,"Mammals","Canada Lynx","Lynx canadensis",24,"USFWS"]
["17a",0,"Mammals","Woodland Caribou (Selkirk Mountain Population)","Rangifer tarandus caribou",33,"USFWS"]
["17a",0,"Mammals","Northern Idaho Ground Squirrel","Spermophilus brunneus brunneus",59,"USFWS"]
["17a",0,"Birds","Western snowy plover","Charadrius alexandrinus nivosus",132,"USFWS"]
["17a",0,"Birds","Northern spotted owl","Strix occidentalis caurina",142,"USFWS"]
["17a",0,"Insects","Butterfly, Oregon silverspot","Speyeria zerene hippolyta",431,"USFWS"]
["17a",0,"Insects","Butterfly, Fender's blue","Icaricia icarioides fenderi",450,"USFWS"]
["17a",0,"Crustaceans","Vernal pool fairy shrimp","Branchinecta lynchi",493,"USFWS"]
["17a",0,"Crustaceans","Vernal pool tadpole shrimp","Lepidurus packardi",494,"USFWS"]
["17a",0,"Flowering Plants","Hoover's spurge","Chamaesyce hooveri",527,"USFWS"]
["17a",0,"Flowering Plants","Gentner's Fritillary","Fritillaria gentneri",551,"USFWS"]
["17a",0,"Flowering Plants","Showy stickseed","Hackelia venusta",556,"USFWS"]
["17a",0,"Flowering Plants","Slender Orcutt grass","Orcuttia tenuis",583,"USFWS"]
["17a",0,"Flowering Plants","Spalding's Catchfly","Silene spaldingii",613,"USFWS"]
["17a",0,"Flowering Plants","McDonald's rock-cress","Arabis macdonaldiana",629,"USFWS"]
["17a",0,"Flowering Plants","Western lily","Lilium occidentale",753,"USFWS"]
["17a",0,"Flowering Plants","MacFarlane's four-o'clock","Mirabilis macfarlanei",777,"USFWS"]
["17a",0,"Flowering Plants","Greene's tuctoria","Tuctoria greenei",858,"USFWS"]
["17a",0,"Flowering Plants","Applegate's milk-vetch","Astragalus applegatei",885,"USFWS"]
["17a",0,"Flowering Plants","Golden Paintbrush","Castilleja levisecta",899,"USFWS"]
["17a",0,"Flowering Plants","Water howellia","Howellia aquatilis",1047,"USFWS"]
["17a",0,"Flowering Plants","Kincaid's Lupine","Lupinus sulphureus ssp. kincaidii",1126,"USFWS"]
["17a",0,"Flowering Plants","Willamette daisy","Erigeron decumbens",1233,"USFWS"]
["17a",0,"Flowering Plants","Large-flowered woolly Meadowfoam","Limnanthes floccosa ssp. grandiflora",1262,"USFWS"]
["17a",0,"Insects","Meltwater lednian stonefly","Lednia tumana",1849,"USFWS"]
["17a",0,"Flowering Plants","Whitebark pine","Pinus albicaulis",1935,"USFWS"]
["17a",0,"Mammals","Roy Prairie pocket gopher","Thomomys mazama glacialis",3194,"USFWS"]
["17a",0,"Mammals","North American wolverine","Gulo gulo luscus",4016,"USFWS"]
["17a",0,"Amphibians","Oregon spotted frog","Rana pretiosa",4090,"USFWS"]
["17a",0,"Birds","Streaked Horned lark","Eremophila alpestris strigata",4296,"USFWS"]
["17a",0,"Insects","Island marble Butterfly","Euchloe ausonides insulanus",5610,"USFWS"]
["17a",0,"Birds","Yellow-billed Cuckoo","Coccyzus americanus",6901,"USFWS"]
["17a",0,"Insects","Checkerspot, Taylor's (=whulge)","Euphydryas editha taylori",7495,"USFWS"]
["17a",0,"Mammals","Black-footed Ferret","Mustela nigripes",7572,"USFWS"]
["17a",0,"Birds","Red knot","Calidris canutus rufa",8621,"USFWS"]
["17a",0,"Mammals","Olympia pocket gopher","Thomomys mazama pugetensis",8683,"USFWS"]
["17a",0,"Mammals","Tenino pocket gopher","Thomomys mazama tumuli",8684,"USFWS"]
["17a",0,"Mammals","Yelm pocket gopher","Thomomys mazama yelmensis",8685,"USFWS"]
["17a",0,"Mammals","Humboldt Marten","Martes caurina ssp. humboldtensis",10078,"USFWS"]
["17a",0,"Mammals","red tree vole","Arborimus longicaudus",10178,"USFWS"]
["17a",0,"Mammals","Sierra Nevada red fox","Vulpes vulpes necator",11260,"USFWS"]
["17a",0,"Insects","Butterfly, Oregon silverspot","Speyeria zerene hippolyta",11398,"USFWS"]
["17a",1,"Mammals","Grizzly bear","Ursus arctos horribilis",2,"USFWS"]
["17a",1,"Mammals","Gray wolf","Canis lupus",11,"USFWS"]
["17a",1,"Mammals","Canada Lynx","Lynx canadensis",24,"USFWS"]
["17a",1,"Birds","Western snowy plover","Charadrius alexandrinus nivosus",132,"USFWS"]
["17a",1,"Crustaceans","Vernal pool fairy shrimp","Branchinecta lynchi",493,"USFWS"]
["17a",1,"Crustaceans","Vernal pool tadpole shrimp","Lepidurus packardi",494,"USFWS"]
["17a",1,"Flowering Plants","Hoover's spurge","Chamaesyce hooveri",527,"USFWS"]
["17a",1,"Flowering Plants","Slender Orcutt grass","Orcuttia tenuis",583,"USFWS"]
["17a",1,"Flowering Plants","rough popcornflower","Plagiobothrys hirtus",592,"USFWS"]
["17a",1,"Flowering Plants","Wenatchee Mountains checkermallow","Sidalcea oregana var. calva",611,"USFWS"]
["17a",1,"Flowering Plants","Western lily","Lilium occidentale",753,"USFWS"]
["17a",1,"Flowering Plants","Nelson's checker-mallow","Sidalcea nelsoniana",828,"USFWS"]
["17a",1,"Flowering Plants","Greene's tuctoria","Tuctoria greenei",858,"USFWS"]
["17a",1,"Flowering Plants","Marsh Sandwort","Arenaria paludicola",881,"USFWS"]
["17a",1,"Flowering Plants","Howell's spectacular thelypody","Thelypodium howellii spectabilis",1008,"USFWS"]
["17a",1,"Flowering Plants","Water howellia","Howellia aquatilis",1047,"USFWS"]
["17a",1,"Flowering Plants","Ute ladies'-tresses","Spiranthes diluvialis",1073,"USFWS"]
["17a",1,"Flowering Plants","Bradshaw's desert-parsley","Lomatium bradshawii",1225,"USFWS"]
["17a",1,"Flowering Plants","Willamette daisy","Erigeron decumbens",1233,"USFWS"]
["17a",1,"Flowering Plants","Large-flowered woolly Meadowfoam","Limnanthes floccosa ssp. grandiflora",1262,"USFWS"]
["17a",1,"Flowering Plants","Cook's lomatium","Lomatium cookii",1263,"USFWS"]
["17a",1,"Insects","Meltwater lednian stonefly","Lednia tumana",1849,"USFWS"]
["17a",1,"Amphibians","Oregon spotted frog","Rana pretiosa",4090,"USFWS"]
["17a",1,"Birds","Streaked Horned lark","Eremophila alpestris strigata",4296,"USFWS"]
["17a",1,"Birds","Yellow-billed Cuckoo","Coccyzus americanus",6901,"USFWS"]
["17a",1,"Birds","Red knot","Calidris canutus rufa",8621,"USFWS"]
["17b",0,"Mammals","Grizzly bear","Ursus arctos horribilis",2,"USFWS"]
["17b",0,"Mammals","Gray wolf","Canis lupus",11,"USFWS"]
["17b",0,"Mammals","Canada Lynx","Lynx canadensis",24,"USFWS"]
["17b",0,"Mammals","Woodland Caribou (Selkirk Mountain Population)","Rangifer tarandus caribou",33,"USFWS"]
["17b",0,"Mammals","Northern Idaho Ground Squirrel","Spermophilus brunneus brunneus",59,"USFWS"]
["17b",0,"Birds","Northern spotted owl","Strix occidentalis caurina",142,"USFWS"]
["17b",0,"Crustaceans","Vernal pool fairy shrimp","Branchinecta lynchi",493,"USFWS"]
["17b",0,"Crustaceans","Vernal pool tadpole shrimp","Lepidurus packardi",494,"USFWS"]
["17b",0,"Flowering Plants","Gentner's Fritillary","Fritillaria gentneri",551,"USFWS"]
["17b",0,"Flowering Plants","Showy stickseed","Hackelia venusta",556,"USFWS"]
["17b",0,"Flowering Plants","Slender Orcutt grass","Orcuttia tenuis",583,"USFWS"]
["17b",0,"Flowering Plants","Spalding's Catchfly","Silene spaldingii",613,"USFWS"]
["17b",0,"Flowering Plants","MacFarlane's four-o'clock","Mirabilis macfarlanei",777,"USFWS"]
["17b",0,"Flowering Plants","Malheur wire-lettuce","Stephanomeria malheurensis",840,"USFWS"]
["17b",0,"Flowering Plants","Greene's tuctoria","Tuctoria greenei",858,"USFWS"]
["17b",0,"Flowering Plants","Applegate's milk-vetch","Astragalus applegatei",885,"USFWS"]
["17b",0,"Flowering Plants","Golden Paintbrush","Castilleja levisecta",899,"USFWS"]
["17b",0,"Flowering Plants","Water howellia","Howellia aquatilis",1047,"USFWS"]
["17b",0,"Flowering Plants","Large-flowered woolly Meadowfoam","Limnanthes floccosa ssp. grandiflora",1262,"USFWS"]
["17b",0,"Flowering Plants","Whitebark pine","Pinus albicaulis",1935,"USFWS"]
["17b",0,"Flowering Plants","Slickspot peppergrass","Lepidium papilliferum",2810,"USFWS"]
["17b",0,"Mammals","North American wolverine","Gulo gulo luscus",4016,"USFWS"]
["17b",0,"Amphibians","Oregon spotted frog","Rana pretiosa",4090,"USFWS"]
["17b",0,"Birds","Streaked Horned lark","Eremophila alpestris strigata",4296,"USFWS"]
["17b",0,"Flowering Plants","White Bluffs bladderpod","Physaria douglasii ssp. tuplashensis",4565,"USFWS"]
["17b",0,"Insects","Island marble Butterfly","Euchloe ausonides insulanus",5610,"USFWS"]
["17b",0,"Flowering Plants","Umtanum Desert buckwheat","Eriogonum codium",6490,"USFWS"]
["17b",0,"Birds","Yellow-billed Cuckoo","Coccyzus americanus",6901,"USFWS"]
["17b",0,"Insects","Checkerspot, Taylor's (=whulge)","Euphydryas editha taylori",7495,"USFWS"]
["17b",0,"Mammals","Black-footed Ferret","Mustela nigripes",7572,"USFWS"]
["17b",0,"Birds","Red knot","Calidris canutus rufa",8621,"USFWS"]
["17b",0,"Insects","Butterfly, Oregon silverspot","Speyeria zerene hippolyta",11398,"USFWS"]
["17b",1,"Mammals","Grizzly bear","Ursus arctos horribilis",2,"USFWS"]
["17b",1,"Mammals","Gray wolf","Canis lupus",11,"USFWS"]
["17b",1,"Mammals","Canada Lynx","Lynx canadensis",24,"USFWS"]
["17b",1,"Crustaceans","Vernal pool fairy shrimp","Branchinecta lynchi",493,"USFWS"]
["17b",1,"Crustaceans","Vernal pool tadpole shrimp","Lepidurus packardi",494,"USFWS"]
["17b",1,"Flowering Plants","Slender Orcutt grass","Orcuttia tenuis",583,"USFWS"]
["17b",1,"Flowering Plants","Wenatchee Mountains checkermallow","Sidalcea oregana var. calva",611,"USFWS"]
["17b",1,"Flowering Plants","Western lily","Lilium occidentale",753,"USFWS"]
["17b",1,"Flowering Plants","Greene's tuctoria","Tuctoria greenei",858,"USFWS"]
["17b",1,"Flowering Plants","Howell's spectacular thelypody","Thelypodium howellii spectabilis",1008,"USFWS"]
["17b",1,"Flowering Plants","Water howellia","Howellia aquatilis",1047,"USFWS"]
["17b",1,"Flowering Plants","Ute ladies'-tresses","Spiranthes diluvialis",1073,"USFWS"]
["17b",1,"Flowering Plants","Large-flowered woolly Meadowfoam","Limnanthes floccosa ssp. grandiflora",1262,"USFWS"]
["17b",1,"Flowering Plants","Cook's lomatium","Lomatium cookii",1263,"USFWS"]
["17b",1,"Amphibians","Oregon spotted frog","Rana pretiosa",4090,"USFWS"]
["17b",1,"Birds","Streaked Horned lark","Eremophila alpestris strigata",4296,"USFWS"]
["17b",1,"Birds","Yellow-billed Cuckoo","Coccyzus americanus",6901,"USFWS"]
["17b",1,"Birds","Red knot","Calidris canutus rufa",8621,"USFWS"]
["18a",0,"Mammals","San Joaquin Kit Fox (CA population)","Vulpes macrotis mutica",6,"USFWS"]
["18a",0,"Mammals","Gray wolf","Canis lupus",11,"USFWS"]
["18a",0,"Mammals","Salt marsh harvest mouse","Reithrodontomys raviventris",17,"USFWS"]
["18a",0,"Mammals","Canada Lynx","Lynx canadensis",24,"USFWS"]
["18a",0,"Mammals","Fresno Kangaroo Rat","Dipodomys nitratoides exilis",37,"USFWS"]
["18a",0,"Mammals","Giant Kangaroo Rat","Dipodomys ingens",38,"USFWS"]
["18a",0,"Mammals","Stephens' Kangaroo Rat","Dipodomys stephensi (and D. cascus)",39,"USFWS"]
["18a",0,"Mammals","Tipton Kangaroo Rat","Dipodomys nitratoides nitratoides",40,"USFWS"]
["18a",0,"Mammals","Point Arena Mountain Beaver","Aplodontia rufa nigra",49,"USFWS"]
["18a",0,"Mammals","Pacific Pocket Mouse","Perognathus longimembris pacificus",51,"USFWS"]
["18a",0,"Mammals","Riparian Brush Rabbit (CA population)","Sylvilagus bachmani riparius",55,"USFWS"]
["18a",0,"Mammals","Peninsular Bighorn Sheep (Peninsular CA Population)","Ovis canadensis nelsoni",56,"USFWS"]
["18a",0,"Mammals","Sierra Nevada Bighorn Sheep","Ovis canadensis sierrae",57,"USFWS"]
["18a",0,"Mammals","Buena Vista Lake ornate Shrew","Sorex ornatus relictus",58,"USFWS"]
["18a",0,"Mammals","San Bernardino Merriam's Kangaroo Rat","Dipodomys merriami parvus",63,"USFWS"]
["18a",0,"Birds","California condor","Gymnogyps californianus",66,"USFWS"]
["18a",0,"Birds","Yuma clapper rail","Rallus longirostris yumanensis",84,"USFWS"]
["18a",0,"Birds","California least tern","Sterna antillarum browni",96,"USFWS"]
["18a",0,"Birds","California clapper rail","Rallus longirostris obsoletus",102,"USFWS"]
["18a",0,"Birds","Light-footed clapper rail","Rallus longirostris levipes",103,"USFWS"]
["18a",0,"Birds","Least Bell's vireo","Vireo bellii pusillus",123,"USFWS"]
["18a",0,"Birds","Western snowy plover","Charadrius alexandrinus nivosus",132,"USFWS"]
["18a",0,"Birds","Northern spotted owl","Strix occidentalis caurina",142,"USFWS"]
["18a",0,"Birds","Coastal California gnatcatcher","Polioptila californica californica",145,"USFWS"]
["18a",0,"Birds","Southwestern willow flycatcher","Empidonax traillii extimus",149,"USFWS"]
["18a",0,"Reptiles","Blunt-nosed Leopard Lizard","Gambelia silus",151,"USFWS"]
["18a",0,"Reptiles","San Francisco garter snake","Thamnophis sirtalis tetrataenia",152,"USFWS"]
["18a",0,"Reptiles","Coachella Valley Fringe-toed Lizard","Uma inornata",175,"USFWS"]
["18a",0,"Reptiles","Alameda Whipsnake","Masticophis lateralis euryxanthus",183,"USFWS"]
["18a",0,"Reptiles","Desert Tortoise (except AZ south and east of Colorado River)","Gopherus agassizii",185,"USFWS"]
["18a",0,"Reptiles","Giant garter snake","Thamnophis gigas",187,"USFWS"]
["18a",0,"Amphibians","Santa Cruz long-toed salamander","Ambystoma macrodactylum croceum",188,"USFWS"]
["18a",0,"Amphibians","California tiger Salamander","Ambystoma californiense",203,"USFWS"]
["18a",0,"Amphibians","Arroyo (=arroyo southwestern) toad","Anaxyrus californicus",204,"USFWS"]
["18a",0,"Amphibians","California red-legged frog","Rana draytonii",205,"USFWS"]
["18a",0,"Amphibians","Mountain yellow-legged frog","Rana muscosa",207,"USFWS"]
["18a",0,"Snails","Snail, Morro shoulderband (=Banded dune)","Helminthoglypta walkeriana",387,"USFWS"]
["18a",0,"Insects","Butterfly, El Segundo blue","Euphilotes battoides allyni",419,"USFWS"]
["18a",0,"Insects","Butterfly, Lange's metalmark","Apodemia mormo langei",421,"USFWS"]
["18a",0,"Insects","Lotis blue butterfly","Lycaeides argyrognomon lotis",422,"USFWS"]
["18a",0,"Insects","Butterfly, mission blue","Icaricia icarioides missionensis",423,"USFWS"]
["18a",0,"Insects","Butterfly, Myrtle's silverspot","Speyeria zerene myrtleae",425,"USFWS"]
["18a",0,"Insects","Butterfly, Quino checkerspot","Euphydryas editha quino (=E. e. wrighti)",426,"USFWS"]
["18a",0,"Insects","Butterfly, San Bruno elfin","Callophrys mossii bayensis",427,"USFWS"]
["18a",0,"Insects","Butterfly, Smith's blue","Euphilotes enoptes smithi",428,"USFWS"]
["18a",0,"Insects","Butterfly, callippe silverspot","Speyeria callippe callippe",430,"USFWS"]
["18a",0,"Insects","Butterfly, Oregon silverspot","Speyeria zerene hippolyta",431,"USFWS"]
["18a",0,"Insects","Moth, Kern primrose sphinx","Euproserpinus euterpe",433,"USFWS"]
["18a",0,"Insects","Beetle, delta green ground","Elaphrus viridis",435,"USFWS"]
["18a",0,"Insects","Beetle, valley elderberry longhorn","Desmocerus californicus dimorphus",436,"USFWS"]
["18a",0,"Insects","Butterfly, bay checkerspot","Euphydryas editha bayensis",438,"USFWS"]
["18a",0,"Insects","Butterfly, Behren's silverspot","Speyeria zerene behrensii",444,"USFWS"]
["18a",0,"Insects","Skipper, Laguna Mountains","Pyrgus ruralis lagunae",451,"USFWS"]
["18a",0,"Insects","Fly, Delhi Sands flower-loving","Rhaphiomidas terminatus abdominalis",452,"USFWS"]
["18a",0,"Insects","June Beetle, Mount Hermon","Polyphylla barbata",456,"USFWS"]
["18a",0,"Insects","Tiger beetle, Ohlone","Cicindela ohlone",457,"USFWS"]
["18a",0,"Insects","Grasshopper, Zayante band-winged","Trimerotropis infantilis",458,"USFWS"]
["18a",0,"Insects","Skipper, Carson wandering","Pseudocopaeodes eunus obscurus",462,"USFWS"]
["18a",0,"Crustaceans","California freshwater shrimp","Syncaris pacifica",481,"USFWS"]
["18a",0,"Crustaceans","Conservancy fairy shrimp","Branchinecta conservatio",490,"USFWS"]
["18a",0,"Crustaceans","Longhorn fairy shrimp","Branchinecta longiantenna",491,"USFWS"]
["18a",0,"Crustaceans","Riverside fairy shrimp","Streptocephalus woottoni",492,"USFWS"]
["18a",0,"Crustaceans","Vernal pool fairy shrimp","Branchinecta lynchi",493,"USFWS"]
["18a",0,"Crustaceans","Vernal pool tadpole shrimp","Lepidurus packardi",494,"USFWS"]
["18a",0,"Crustaceans","San Diego fairy shrimp","Branchinecta sandiegonensis",495,"USFWS"]
["18a",0,"Flowering Plants","San Diego thornmint","Acanthomintha ilicifolia",496,"USFWS"]
["18a",0,"Flowering Plants","San Diego ambrosia","Ambrosia pumila",500,"USFWS"]
["18a",0,"Flowering Plants","Hoffmann's rock-cress","Arabis hoffmannii",501,"USFWS"]
["18a",0,"Flowering Plants","Del Mar manzanita","Arctostaphylos glandulosa ssp. crassifolia",502,"USFWS"]
["18a",0,"Flowering Plants","Santa Rosa Island manzanita","Arctostaphylos confertiflora",503,"USFWS"]
["18a",0,"Flowering Plants","Ione manzanita","Arctostaphylos myrtifolia",504,"USFWS"]
["18a",0,"Flowering Plants","Pallid manzanita","Arctostaphylos pallida",505,"USFWS"]
["18a",0,"Flowering Plants","Bear Valley sandwort","Arenaria ursina",506,"USFWS"]
["18a",0,"Flowering Plants","Braunton's milk-vetch","Astragalus brauntonii",507,"USFWS"]
["18a",0,"Flowering Plants","Clara Hunt's milk-vetch","Astragalus clarianus",508,"USFWS"]
["18a",0,"Flowering Plants","Ventura Marsh Milk-vetch","Astragalus pycnostachyus var. lanosissimus",511,"USFWS"]
["18a",0,"Flowering Plants","Coastal dunes milk-vetch","Astragalus tener var. titi",512,"USFWS"]
["18a",0,"Flowering Plants","Nevin's barberry","Berberis nevinii",514,"USFWS"]
["18a",0,"Flowering Plants","Island Barberry","Berberis pinnata ssp. insularis",515,"USFWS"]
["18a",0,"Flowering Plants","Thread-leaved brodiaea","Brodiaea filifolia",516,"USFWS"]
["18a",0,"Flowering Plants","Chinese Camp brodiaea","Brodiaea pallida",517,"USFWS"]
["18a",0,"Flowering Plants","Mariposa pussypaws","Calyptridium pulchellum",519,"USFWS"]
["18a",0,"Flowering Plants","Stebbins' morning-glory","Calystegia stebbinsii",520,"USFWS"]
["18a",0,"Flowering Plants","Fleshy owl's-clover","Castilleja campestris ssp. succulenta",522,"USFWS"]
["18a",0,"Flowering Plants","Ash-grey paintbrush","Castilleja cinerea",523,"USFWS"]
["18a",0,"Flowering Plants","Soft-leaved paintbrush","Castilleja mollis",524,"USFWS"]
["18a",0,"Flowering Plants","Pine Hill ceanothus","Ceanothus roderickii",525,"USFWS"]
["18a",0,"Flowering Plants","Catalina Island mountain-mahogany","Cercocarpus traskiae",526,"USFWS"]
["18a",0,"Flowering Plants","Hoover's spurge","Chamaesyce hooveri",527,"USFWS"]
["18a",0,"Flowering Plants","Purple amole","Chlorogalum purpureum",528,"USFWS"]
["18a",0,"Flowering Plants","Orcutt's spineflower","Chorizanthe orcuttiana",529,"USFWS"]
["18a",0,"Flowering Plants","Vine Hill clarkia","Clarkia imbricata",532,"USFWS"]
["18a",0,"Flowering Plants","Soft bird's-beak","Cordylanthus mollis ssp. mollis",534,"USFWS"]
["18a",0,"Flowering Plants","Baker's larkspur","Delphinium bakeri",539,"USFWS"]
["18a",0,"Flowering Plants","Yellow larkspur","Delphinium luteum",540,"USFWS"]
["18a",0,"Flowering Plants","Conejo dudleya","Dudleya abramsii ssp. parva",541,"USFWS"]
["18a",0,"Flowering Plants","Marcescent dudleya","Dudleya cymosa ssp. marcescens",542,"USFWS"]
["18a",0,"Flowering Plants","Santa Cruz Island dudleya","Dudleya nesiotica",543,"USFWS"]
["18a",0,"Flowering Plants","Laguna Beach liveforever","Dudleya stolonifera",544,"USFWS"]
["18a",0,"Flowering Plants","Lompoc yerba santa","Eriodictyon capitatum",546,"USFWS"]
["18a",0,"Flowering Plants","Ione (incl. Irish Hill) buckwheat","Eriogonum apricum (incl. var. prostratum)",547,"USFWS"]
["18a",0,"Flowering Plants","Southern mountain wild-buckwheat","Eriogonum kennedyi var. austromontanum",548,"USFWS"]
["18a",0,"Flowering Plants","Pine Hill flannelbush","Fremontodendron californicum ssp. decumbens",550,"USFWS"]
["18a",0,"Flowering Plants","Gentner's Fritillary","Fritillaria gentneri",551,"USFWS"]
["18a",0,"Flowering Plants","Island bedstraw","Galium buxifolium",552,"USFWS"]
["18a",0,"Flowering Plants","El Dorado bedstraw","Galium californicum ssp. sierrae",553,"USFWS"]
["18a",0,"Flowering Plants","Hoffmann's slender-flowered gilia","Gilia tenuiflora ssp. hoffmannii",555,"USFWS"]
["18a",0,"Flowering Plants","Island rush-rose","Helianthemum greenei",557,"USFWS"]
["18a",0,"Flowering Plants","Otay tarplant","Deinandra (=Hemizonia) conjugens",559,"USFWS"]
["18a",0,"Flowering Plants","Santa Cruz tarplant","Holocarpha macradenia",562,"USFWS"]
["18a",0,"Flowering Plants","Nipomo Mesa lupine","Lupinus nipomensis",573,"USFWS"]
["18a",0,"Flowering Plants","Santa Cruz Island bush-mallow","Malacothamnus fasciculatus var. nesioticus",574,"USFWS"]
["18a",0,"Flowering Plants","Willowy monardella","Monardella viminea",576,"USFWS"]
["18a",0,"Flowering Plants","Few-flowered navarretia","Navarretia leucocephala ssp. pauciflora (=N. pauciflora)",578,"USFWS"]
["18a",0,"Flowering Plants","Many-flowered navarretia","Navarretia leucocephala ssp. plieantha",579,"USFWS"]
["18a",0,"Flowering Plants","Colusa grass","Neostapfia colusana",580,"USFWS"]
["18a",0,"Flowering Plants","Hairy Orcutt grass","Orcuttia pilosa",582,"USFWS"]
["18a",0,"Flowering Plants","Slender Orcutt grass","Orcuttia tenuis",583,"USFWS"]
["18a",0,"Flowering Plants","Lyon's pentachaeta","Pentachaeta lyonii",586,"USFWS"]
["18a",0,"Flowering Plants","Island phacelia","Phacelia insularis ssp. insularis",587,"USFWS"]
["18a",0,"Flowering Plants","Yreka phlox","Phlox hirsuta",588,"USFWS"]
["18a",0,"Flowering Plants","Hartweg's golden sunburst","Pseudobahia bahiifolia",599,"USFWS"]
["18a",0,"Flowering Plants","San Joaquin adobe sunburst","Pseudobahia peirsonii",600,"USFWS"]
["18a",0,"Flowering Plants","Layne's butterweed","Senecio layneae",608,"USFWS"]
["18a",0,"Flowering Plants","Santa Cruz Island rockcress","Sibara filifolia",609,"USFWS"]
["18a",0,"Flowering Plants","Keck's Checker-mallow","Sidalcea keckii",610,"USFWS"]
["18a",0,"Flowering Plants","California taraxacum","Taraxacum californicum",614,"USFWS"]
["18a",0,"Flowering Plants","Large-flowered fiddleneck","Amsinckia grandiflora",626,"USFWS"]
["18a",0,"Flowering Plants","McDonald's rock-cress","Arabis macdonaldiana",629,"USFWS"]
["18a",0,"Flowering Plants","Presidio Manzanita","Arctostaphylos hookeri var. ravenii",632,"USFWS"]
["18a",0,"Flowering Plants","Tiburon mariposa lily","Calochortus tiburonensis",652,"USFWS"]
["18a",0,"Flowering Plants","Coyote ceanothus","Ceanothus ferrisae",658,"USFWS"]
["18a",0,"Flowering Plants","Sonoma spineflower","Chorizanthe valida",666,"USFWS"]
["18a",0,"Flowering Plants","Presidio clarkia","Clarkia franciscana",669,"USFWS"]
["18a",0,"Flowering Plants","Pismo clarkia","Clarkia speciosa ssp. immaculata",670,"USFWS"]
["18a",0,"Flowering Plants","Salt marsh bird's-beak","Cordylanthus maritimus ssp. maritimus",678,"USFWS"]
["18a",0,"Flowering Plants","Santa Barbara Island liveforever","Dudleya traskiae",698,"USFWS"]
["18a",0,"Flowering Plants","Indian Knob mountain balm","Eriodictyon altissimum",708,"USFWS"]
["18a",0,"Flowering Plants","Cushenbury buckwheat","Eriogonum ovalifolium var. vineum",710,"USFWS"]
["18a",0,"Flowering Plants","San Diego button-celery","Eryngium aristulatum var. parishii",711,"USFWS"]
["18a",0,"Flowering Plants","Contra Costa wallflower","Erysimum capitatum var. angustatum",712,"USFWS"]
["18a",0,"Flowering Plants","Marin dwarf-flax","Hesperolinon congestum",730,"USFWS"]
["18a",0,"Flowering Plants","Western lily","Lilium occidentale",753,"USFWS"]
["18a",0,"Flowering Plants","Sebastopol meadowfoam","Limnanthes vinculans",754,"USFWS"]
["18a",0,"Flowering Plants","Antioch Dunes evening-primrose","Oenothera deltoides ssp. howellii",784,"USFWS"]
["18a",0,"Flowering Plants","California Orcutt grass","Orcuttia californica",785,"USFWS"]
["18a",0,"Flowering Plants","San Joaquin Orcutt grass","Orcuttia inaequalis",786,"USFWS"]
["18a",0,"Flowering Plants","Sacramento Orcutt grass","Orcuttia viscida",787,"USFWS"]
["18a",0,"Flowering Plants","San Diego mesa-mint","Pogogyne abramsii",802,"USFWS"]
["18a",0,"Flowering Plants","Metcalf Canyon jewelflower","Streptanthus albidus ssp. albidus",841,"USFWS"]
["18a",0,"Flowering Plants","Tiburon jewelflower","Streptanthus niger",842,"USFWS"]
["18a",0,"Flowering Plants","Eureka Dune grass","Swallenia alexandrae",844,"USFWS"]
["18a",0,"Flowering Plants","Showy Indian clover","Trifolium amoenum",855,"USFWS"]
["18a",0,"Flowering Plants","Monterey clover","Trifolium trichocalyx",856,"USFWS"]
["18a",0,"Flowering Plants","Greene's tuctoria","Tuctoria greenei",858,"USFWS"]
["18a",0,"Flowering Plants","San Mateo thornmint","Acanthomintha obovata ssp. duttonii",873,"USFWS"]
["18a",0,"Flowering Plants","Morro manzanita","Arctostaphylos morroensis",879,"USFWS"]
["18a",0,"Flowering Plants","Applegate's milk-vetch","Astragalus applegatei",885,"USFWS"]
["18a",0,"Flowering Plants","Coachella Valley milk-vetch","Astragalus lentiginosus var. coachellae",886,"USFWS"]
["18a",0,"Flowering Plants","Encinitas baccharis","Baccharis vanessae",889,"USFWS"]
["18a",0,"Flowering Plants","San Benito evening-primrose","Camissonia benitensis",897,"USFWS"]
["18a",0,"Flowering Plants","Tiburon paintbrush","Castilleja affinis ssp. neglecta",898,"USFWS"]
["18a",0,"Flowering Plants","Howell's spineflower","Chorizanthe howellii",902,"USFWS"]
["18a",0,"Flowering Plants","Monterey spineflower","Chorizanthe pungens var. pungens",903,"USFWS"]
["18a",0,"Flowering Plants","Parish's daisy","Erigeron parishii",928,"USFWS"]
["18a",0,"Flowering Plants","Loch Lomond coyote thistle","Eryngium constancei",931,"USFWS"]
["18a",0,"Flowering Plants","Menzies' wallflower","Erysimum menziesii",933,"USFWS"]
["18a",0,"Flowering Plants","Ben Lomond wallflower","Erysimum teretifolium",934,"USFWS"]
["18a",0,"Flowering Plants","Monterey gilia","Gilia tenuiflora ssp. arenaria",940,"USFWS"]
["18a",0,"Flowering Plants","San Bernardino Mountains bladderpod","Lesquerella kingii ssp. bernardina",958,"USFWS"]
["18a",0,"Flowering Plants","Clover lupine","Lupinus tidestromii",966,"USFWS"]
["18a",0,"Flowering Plants","Spreading navarretia","Navarretia fossalis",972,"USFWS"]
["18a",0,"Flowering Plants","White-rayed pentachaeta","Pentachaeta bellidiflora",979,"USFWS"]
["18a",0,"Flowering Plants","Otay mesa-mint","Pogogyne nudiuscula",988,"USFWS"]
["18a",0,"Flowering Plants","Slender-petaled mustard","Thelypodium stenopetalum",1009,"USFWS"]
["18a",0,"Flowering Plants","Kneeland Prairie penny-cress","Thlaspi californicum",1010,"USFWS"]
["18a",0,"Flowering Plants","Santa Cruz Island fringepod","Thysanocarpus conchuliferus",1011,"USFWS"]
["18a",0,"Flowering Plants","Red Hills vervain","Verbena californica",1013,"USFWS"]
["18a",0,"Flowering Plants","Springville clarkia","Clarkia springvillensis",1022,"USFWS"]
["18a",0,"Flowering Plants","Pennell's bird's-beak","Cordylanthus tenuis ssp. capillaris",1023,"USFWS"]
["18a",0,"Flowering Plants","Verity's dudleya","Dudleya verityi",1025,"USFWS"]
["18a",0,"Flowering Plants","Mexican flannelbush","Fremontodendron mexicanum",1027,"USFWS"]
["18a",0,"Flowering Plants","Water howellia","Howellia aquatilis",1047,"USFWS"]
["18a",0,"Flowering Plants","Slender-horned spineflower","Dodecahema leptoceras",1053,"USFWS"]
["18a",0,"Flowering Plants","San Mateo woolly sunflower","Eriophyllum latilobum",1056,"USFWS"]
["18a",0,"Flowering Plants","Munz's onion","Allium munzii",1074,"USFWS"]
["18a",0,"Flowering Plants","California jewelflower","Caulanthus californicus",1078,"USFWS"]
["18a",0,"Flowering Plants","Bakersfield cactus","Opuntia treleasei",1082,"USFWS"]
["18a",0,"Flowering Plants","Cushenbury milk-vetch","Astragalus albens",1086,"USFWS"]
["18a",0,"Flowering Plants","Triple-ribbed milk-vetch","Astragalus tricarinatus",1089,"USFWS"]
["18a",0,"Flowering Plants","Ben Lomond spineflower","Chorizanthe pungens var. hartwegiana",1095,"USFWS"]
["18a",0,"Flowering Plants","Santa Clara Valley dudleya","Dudleya setchellii",1115,"USFWS"]
["18a",0,"Flowering Plants","Gaviota Tarplant","Deinandra increscens ssp. villosa",1119,"USFWS"]
["18a",0,"Flowering Plants","Beach layia","Layia carnosa",1122,"USFWS"]
["18a",0,"Flowering Plants","San Joaquin wooly-threads","Monolopia (=Lembertia) congdonii",1123,"USFWS"]
["18a",0,"Flowering Plants","Santa Cruz Island malacothrix","Malacothrix indecora",1130,"USFWS"]
["18a",0,"Flowering Plants","Cushenbury oxytheca","Oxytheca parishii var. goodmaniana",1134,"USFWS"]
["18a",0,"Flowering Plants","Vail Lake ceanothus","Ceanothus ophiochilus",1166,"USFWS"]
["18a",0,"Flowering Plants","San Francisco lessingia","Lessingia germanorum (=L.g. var. germanorum)",1167,"USFWS"]
["18a",0,"Flowering Plants","Santa Monica Mountains dudleyea","Dudleya cymosa ssp. ovatifolia",1168,"USFWS"]
["18a",0,"Flowering Plants","Island malacothrix","Malacothrix squalida",1170,"USFWS"]
["18a",0,"Flowering Plants","Yadon's piperia","Piperia yadonii",1171,"USFWS"]
["18a",0,"Flowering Plants","Big-leaved crownbeard","Verbesina dissita",1173,"USFWS"]
["18a",0,"Flowering Plants","Santa Cruz cypress","Cupressus abramsiana",1190,"USFWS"]
["18a",0,"Flowering Plants","Gowen cypress","Cupressus goveniana ssp. goveniana",1192,"USFWS"]
["18a",0,"Mammals","Santa Catalina Island Fox","Urocyon littoralis catalinae",1237,"USFWS"]
["18a",0,"Flowering Plants","Scotts Valley Polygonum","Polygonum hickmanii",1267,"USFWS"]
["18a",0,"Flowering Plants","Scotts Valley spineflower","Chorizanthe robusta var. hartwegii",1378,"USFWS"]
["18a",0,"Amphibians","Yosemite toad","Anaxyrus canorus",1707,"USFWS"]
["18a",0,"Amphibians","Mountain yellow-legged frog","Rana muscosa",1740,"USFWS"]
["18a",0,"Flowering Plants","Whitebark pine","Pinus albicaulis",1935,"USFWS"]
["18a",0,"Insects","Hermes copper butterfly","Lycaena hermes",1984,"USFWS"]
["18a",0,"Flowering Plants","Webber Ivesia","Ivesia webberi",2458,"USFWS"]
["18a",0,"Flowering Plants","San Francisco manzanita","Arctostaphylos franciscana",2823,"USFWS"]
["18a",0,"Mammals","North American wolverine","Gulo gulo luscus",4016,"USFWS"]
["18a",0,"Amphibians","Oregon spotted frog","Rana pretiosa",4090,"USFWS"]
["18a",0,"Amphibians","California tiger Salamander","Ambystoma californiense",4773,"USFWS"]
["18a",0,"Birds","Yellow-billed Cuckoo","Coccyzus americanus",6901,"USFWS"]
["18a",0,"Amphibians","California tiger Salamander","Ambystoma californiense",8395,"USFWS"]
["18a",0,"Insects","June Beetle, Caseys","Dinacoma caseyi",8503,"USFWS"]
["18a",0,"Birds","Greater sage-grouse","Centrocercus urophasianus",9337,"USFWS"]
["18a",0,"Flowering Plants","Vandenberg monkeyflower","Mimulus fremontii var. vandenbergensis",10076,"USFWS"]
["18a",0,"Mammals","Humboldt Marten","Martes caurina ssp. humboldtensis",10078,"USFWS"]
["18a",0,"Amphibians","Sierra Nevada Yellow-legged Frog","Rana sierrae",10517,"USFWS"]
["18a",0,"Mammals","Sierra Nevada red fox","Vulpes vulpes necator",11260,"USFWS"]
["18a",0,"Insects","Butterfly, Oregon silverspot","Speyeria zerene hippolyta",11398,"USFWS"]
["18a",1,"Mammals","Gray wolf","Canis lupus",11,"USFWS"]
["18a",1,"Mammals","Salt marsh harvest mouse","Reithrodontomys raviventris",17,"USFWS"]
["18a",1,"Mammals","Canada Lynx","Lynx canadensis",24,"USFWS"]
["18a",1,"Mammals","Amargosa vole","Microtus californicus scirpensis",28,"USFWS"]
["18a",1,"Mammals","Buena Vista Lake ornate Shrew","Sorex ornatus relictus",58,"USFWS"]
["18a",1,"Birds","Yuma clapper rail","Rallus longirostris yumanensis",84,"USFWS"]
["18a",1,"Birds","California least tern","Sterna antillarum browni",96,"USFWS"]
["18a",1,"Birds","California clapper rail","Rallus longirostris obsoletus",102,"USFWS"]
["18a",1,"Birds","Light-footed clapper rail","Rallus longirostris levipes",103,"USFWS"]
["18a",1,"Birds","San Clemente loggerhead shrike","Lanius ludovicianus mearnsi",115,"USFWS"]
["18a",1,"Birds","Least Bell's vireo","Vireo bellii pusillus",123,"USFWS"]
["18a",1,"Birds","Western snowy plover","Charadrius alexandrinus nivosus",132,"USFWS"]
["18a",1,"Birds","Inyo California towhee","Pipilo crissalis eremophilus",137,"USFWS"]
["18a",1,"Birds","Coastal California gnatcatcher","Polioptila californica californica",145,"USFWS"]
["18a",1,"Birds","Southwestern willow flycatcher","Empidonax traillii extimus",149,"USFWS"]
["18a",1,"Reptiles","San Francisco garter snake","Thamnophis sirtalis tetrataenia",152,"USFWS"]
["18a",1,"Reptiles","Giant garter snake","Thamnophis gigas",187,"USFWS"]
["18a",1,"Amphibians","Santa Cruz long-toed salamander","Ambystoma macrodactylum croceum",188,"USFWS"]
["18a",1,"Amphibians","California tiger Salamander","Ambystoma californiense",203,"USFWS"]
["18a",1,"Amphibians","Arroyo (=arroyo southwestern) toad","Anaxyrus californicus",204,"USFWS"]
["18a",1,"Amphibians","California red-legged frog","Rana draytonii",205,"USFWS"]
["18a",1,"Amphibians","Mountain yellow-legged frog","Rana muscosa",207,"USFWS"]
["18a",1,"Insects","Lotis blue butterfly","Lycaeides argyrognomon lotis",422,"USFWS"]
["18a",1,"Crustaceans","California freshwater shrimp","Syncaris pacifica",481,"USFWS"]
["18a",1,"Crustaceans","Conservancy fairy shrimp","Branchinecta conservatio",490,"USFWS"]
["18a",1,"Crustaceans","Longhorn fairy shrimp","Branchinecta longiantenna",491,"USFWS"]
["18a",1,"Crustaceans","Riverside fairy shrimp","Streptocephalus woottoni",492,"USFWS"]
["18a",1,"Crustaceans","Vernal pool fairy shrimp","Branchinecta lynchi",493,"USFWS"]
["18a",1,"Crustaceans","Vernal pool tadpole shrimp","Lepidurus packardi",494,"USFWS"]
["18a",1,"Crustaceans","San Diego fairy shrimp","Branchinecta sandiegonensis",495,"USFWS"]
["18a",1,"Flowering Plants","Sonoma alopecurus","Alopecurus aequalis var. sonomensis",498,"USFWS"]
["18a",1,"Flowering Plants","Ventura Marsh Milk-vetch","Astragalus pycnostachyus var. lanosissimus",511,"USFWS"]
["18a",1,"Flowering Plants","Chinese Camp brodiaea","Brodiaea pallida",517,"USFWS"]
["18a",1,"Flowering Plants","White sedge","Carex albida",521,"USFWS"]
["18a",1,"Flowering Plants","Fleshy owl's-clover","Castilleja campestris ssp. succulenta",522,"USFWS"]
["18a",1,"Flowering Plants","Hoover's spurge","Chamaesyce hooveri",527,"USFWS"]
["18a",1,"Flowering Plants","Suisun thistle","Cirsium hydrophilum var. hydrophilum",530,"USFWS"]
["18a",1,"Flowering Plants","La Graciosa thistle","Cirsium loncholepis",531,"USFWS"]
["18a",1,"Flowering Plants","Vine Hill clarkia","Clarkia imbricata",532,"USFWS"]
["18a",1,"Flowering Plants","Soft bird's-beak","Cordylanthus mollis ssp. mollis",534,"USFWS"]
["18a",1,"Flowering Plants","Contra Costa goldfields","Lasthenia conjugens",566,"USFWS"]
["18a",1,"Flowering Plants","Pitkin Marsh lily","Lilium pardalinum ssp. pitkinense",570,"USFWS"]
["18a",1,"Flowering Plants","Willowy monardella","Monardella viminea",576,"USFWS"]
["18a",1,"Flowering Plants","Few-flowered navarretia","Navarretia leucocephala ssp. pauciflora (=N. pauciflora)",578,"USFWS"]
["18a",1,"Flowering Plants","Many-flowered navarretia","Navarretia leucocephala ssp. plieantha",579,"USFWS"]
["18a",1,"Flowering Plants","Colusa grass","Neostapfia colusana",580,"USFWS"]
["18a",1,"Flowering Plants","Hairy Orcutt grass","Orcuttia pilosa",582,"USFWS"]
["18a",1,"Flowering Plants","Slender Orcutt grass","Orcuttia tenuis",583,"USFWS"]
["18a",1,"Flowering Plants","Lake County stonecrop","Parvisedum leiocarpum",585,"USFWS"]
["18a",1,"Flowering Plants","Calistoga allocarya","Plagiobothrys strictus",593,"USFWS"]
["18a",1,"Flowering Plants","San Bernardino bluegrass","Poa atropurpurea",594,"USFWS"]
["18a",1,"Flowering Plants","Napa bluegrass","Poa napensis",595,"USFWS"]
["18a",1,"Flowering Plants","Hickman's potentilla","Potentilla hickmanii",596,"USFWS"]
["18a",1,"Flowering Plants","Kenwood Marsh checker-mallow","Sidalcea oregana ssp. valida",612,"USFWS"]
["18a",1,"Flowering Plants","California taraxacum","Taraxacum californicum",614,"USFWS"]
["18a",1,"Flowering Plants","Sonoma sunshine","Blennosperma bakeri",647,"USFWS"]
["18a",1,"Flowering Plants","Chorro Creek bog thistle","Cirsium fontinale var. obispoense",667,"USFWS"]
["18a",1,"Flowering Plants","Fountain thistle","Cirsium fontinale var. fontinale",668,"USFWS"]
["18a",1,"Flowering Plants","Salt marsh bird's-beak","Cordylanthus maritimus ssp. maritimus",678,"USFWS"]
["18a",1,"Flowering Plants","Palmate-bracted bird's beak","Cordylanthus palmatus",679,"USFWS"]
["18a",1,"Flowering Plants","San Diego button-celery","Eryngium aristulatum var. parishii",711,"USFWS"]
["18a",1,"Flowering Plants","Burke's goldfields","Lasthenia burkei",748,"USFWS"]
["18a",1,"Flowering Plants","Western lily","Lilium occidentale",753,"USFWS"]
["18a",1,"Flowering Plants","Sebastopol meadowfoam","Limnanthes vinculans",754,"USFWS"]
["18a",1,"Flowering Plants","California Orcutt grass","Orcuttia californica",785,"USFWS"]
["18a",1,"Flowering Plants","San Joaquin Orcutt grass","Orcuttia inaequalis",786,"USFWS"]
["18a",1,"Flowering Plants","Sacramento Orcutt grass","Orcuttia viscida",787,"USFWS"]
["18a",1,"Flowering Plants","San Diego mesa-mint","Pogogyne abramsii",802,"USFWS"]
["18a",1,"Flowering Plants","Showy Indian clover","Trifolium amoenum",855,"USFWS"]
["18a",1,"Flowering Plants","Greene's tuctoria","Tuctoria greenei",858,"USFWS"]
["18a",1,"Flowering Plants","Solano grass","Tuctoria mucronata",859,"USFWS"]
["18a",1,"Flowering Plants","Marsh Sandwort","Arenaria paludicola",881,"USFWS"]
["18a",1,"Flowering Plants","Santa Ana River woolly-star","Eriastrum densifolium ssp. sanctorum",927,"USFWS"]
["18a",1,"Flowering Plants","Loch Lomond coyote thistle","Eryngium constancei",931,"USFWS"]
["18a",1,"Flowering Plants","Spreading navarretia","Navarretia fossalis",972,"USFWS"]
["18a",1,"Flowering Plants","Otay mesa-mint","Pogogyne nudiuscula",988,"USFWS"]
["18a",1,"Flowering Plants","Pedate checker-mallow","Sidalcea pedata",1000,"USFWS"]
["18a",1,"Flowering Plants","Red Hills vervain","Verbena californica",1013,"USFWS"]
["18a",1,"Flowering Plants","Water howellia","Howellia aquatilis",1047,"USFWS"]
["18a",1,"Flowering Plants","Slender-horned spineflower","Dodecahema leptoceras",1053,"USFWS"]
["18a",1,"Flowering Plants","Butte County meadowfoam","Limnanthes floccosa ssp. californica",1081,"USFWS"]
["18a",1,"Flowering Plants","Bakersfield cactus","Opuntia treleasei",1082,"USFWS"]
["18a",1,"Flowering Plants","San Jacinto Valley crownscale","Atriplex coronata var. notatior",1090,"USFWS"]
["18a",1,"Flowering Plants","Gambel's watercress","Rorippa gambellii",1145,"USFWS"]
["18a",1,"Flowering Plants","California seablite","Suaeda californica",1164,"USFWS"]
["18a",1,"Mammals","Santa Catalina Island Fox","Urocyon littoralis catalinae",1237,"USFWS"]
["18a",1,"Amphibians","Yosemite toad","Anaxyrus canorus",1707,"USFWS"]
["18a",1,"Amphibians","Mountain yellow-legged frog","Rana muscosa",1740,"USFWS"]
["18a",1,"Amphibians","Oregon spotted frog","Rana pretiosa",4090,"USFWS"]
["18a",1,"Amphibians","California tiger Salamander","Ambystoma californiense",4773,"USFWS"]
["18a",1,"Birds","Yellow-billed Cuckoo","Coccyzus americanus",6901,"USFWS"]
["18a",1,"Amphibians","California tiger Salamander","Ambystoma californiense",8395,"USFWS"]
["18a",1,"Birds","Greater sage-grouse","Centrocercus urophasianus",9337,"USFWS"]
["18a",1,"Flowering Plants","Robust spineflower","Chorizanthe robusta var. robusta",10290,"USFWS"]
["18a",1,"Amphibians","Sierra Nevada Yellow-legged Frog","Rana sierrae",10517,"USFWS"]
["18b",0,"Mammals","San Joaquin Kit Fox (CA population)","Vulpes macrotis mutica",6,"USFWS"]
["18b",0,"Mammals","Gray wolf","Canis lupus",11,"USFWS"]
["18b",0,"Mammals","Canada Lynx","Lynx canadensis",24,"USFWS"]
["18b",0,"Mammals","Amargosa Vole","Microtus californicus scirpensis",28,"USFWS"]
["18b",0,"Mammals","Fresno Kangaroo Rat","Dipodomys nitratoides exilis",37,"USFWS"]
["18b",0,"Mammals","Giant Kangaroo Rat","Dipodomys ingens",38,"USFWS"]
["18b",0,"Mammals","Stephens' Kangaroo Rat","Dipodomys stephensi (and D. cascus)",39,"USFWS"]
["18b",0,"Mammals","Tipton Kangaroo Rat","Dipodomys nitratoides nitratoides",40,"USFWS"]
["18b",0,"Mammals","Pacific Pocket Mouse","Perognathus longimembris pacificus",51,"USFWS"]
["18b",0,"Mammals","Riparian Brush Rabbit (CA population)","Sylvilagus bachmani riparius",55,"USFWS"]
["18b",0,"Mammals","Peninsular Bighorn Sheep (Peninsular CA Population)","Ovis canadensis nelsoni",56,"USFWS"]
["18b",0,"Mammals","Sierra Nevada Bighorn Sheep","Ovis canadensis sierrae",57,"USFWS"]
["18b",0,"Mammals","Buena Vista Lake ornate Shrew","Sorex ornatus relictus",58,"USFWS"]
["18b",0,"Mammals","Riparian Woodrat","Neotoma fuscipes riparia",62,"USFWS"]
["18b",0,"Mammals","San Bernardino Merriam's Kangaroo Rat","Dipodomys merriami parvus",63,"USFWS"]
["18b",0,"Birds","California condor","Gymnogyps californianus",66,"USFWS"]
["18b",0,"Birds","Yuma clapper rail","Rallus longirostris yumanensis",84,"USFWS"]
["18b",0,"Birds","California least tern","Sterna antillarum browni",96,"USFWS"]
["18b",0,"Birds","California clapper rail","Rallus longirostris obsoletus",102,"USFWS"]
["18b",0,"Birds","Light-footed clapper rail","Rallus longirostris levipes",103,"USFWS"]
["18b",0,"Birds","San Clemente loggerhead shrike","Lanius ludovicianus mearnsi",115,"USFWS"]
["18b",0,"Birds","San Clemente sage sparrow","Amphispiza belli clementeae",116,"USFWS"]
["18b",0,"Birds","Least Bell's vireo","Vireo bellii pusillus",123,"USFWS"]
["18b",0,"Birds","Western snowy plover","Charadrius alexandrinus nivosus",132,"USFWS"]
["18b",0,"Birds","Inyo California towhee","Pipilo crissalis eremophilus",137,"USFWS"]
["18b",0,"Birds","Coastal California gnatcatcher","Polioptila californica californica",145,"USFWS"]
["18b",0,"Birds","Southwestern willow flycatcher","Empidonax traillii extimus",149,"USFWS"]
["18b",0,"Reptiles","Blunt-nosed Leopard Lizard","Gambelia silus",151,"USFWS"]
["18b",0,"Reptiles","Coachella Valley Fringe-toed Lizard","Uma inornata",175,"USFWS"]
["18b",0,"Reptiles","Alameda Whipsnake","Masticophis lateralis euryxanthus",183,"USFWS"]
["18b",0,"Reptiles","Desert Tortoise (except AZ south and east of Colorado River)","Gopherus agassizii",185,"USFWS"]
["18b",0,"Reptiles","Giant garter snake","Thamnophis gigas",187,"USFWS"]
["18b",0,"Amphibians","California tiger Salamander","Ambystoma californiense",203,"USFWS"]
["18b",0,"Amphibians","Arroyo (=arroyo southwestern) toad","Anaxyrus californicus",204,"USFWS"]
["18b",0,"Amphibians","California red-legged frog","Rana draytonii",205,"USFWS"]
["18b",0,"Amphibians","Mountain yellow-legged frog","Rana muscosa",207,"USFWS"]
["18b",0,"Fishes","Razorback sucker","Xyrauchen texanus",290,"USFWS"]
["18b",0,"Insects","Butterfly, El Segundo blue","Euphilotes battoides allyni",419,"USFWS"]
["18b",0,"Insects","Butterfly, Lange's metalmark","Apodemia mormo langei",421,"USFWS"]
["18b",0,"Insects","Butterfly, Quino checkerspot","Euphydryas editha quino (=E. e. wrighti)",426,"USFWS"]
["18b",0,"Insects","Butterfly, San Bruno elfin","Callophrys mossii bayensis",427,"USFWS"]
["18b",0,"Insects","Butterfly, Palos Verdes blue","Glaucopsyche lygdamus palosverdesensis",432,"USFWS"]
["18b",0,"Insects","Moth, Kern primrose sphinx","Euproserpinus euterpe",433,"USFWS"]
["18b",0,"Insects","Beetle, valley elderberry longhorn","Desmocerus californicus dimorphus",436,"USFWS"]
["18b",0,"Insects","Skipper, Laguna Mountains","Pyrgus ruralis lagunae",451,"USFWS"]
["18b",0,"Insects","Fly, Delhi Sands flower-loving","Rhaphiomidas terminatus abdominalis",452,"USFWS"]
["18b",0,"Insects","Skipper, Carson wandering","Pseudocopaeodes eunus obscurus",462,"USFWS"]
["18b",0,"Crustaceans","Conservancy fairy shrimp","Branchinecta conservatio",490,"USFWS"]
["18b",0,"Crustaceans","Longhorn fairy shrimp","Branchinecta longiantenna",491,"USFWS"]
["18b",0,"Crustaceans","Riverside fairy shrimp","Streptocephalus woottoni",492,"USFWS"]
["18b",0,"Crustaceans","Vernal pool fairy shrimp","Branchinecta lynchi",493,"USFWS"]
["18b",0,"Crustaceans","Vernal pool tadpole shrimp","Lepidurus packardi",494,"USFWS"]
["18b",0,"Crustaceans","San Diego fairy shrimp","Branchinecta sandiegonensis",495,"USFWS"]
["18b",0,"Flowering Plants","San Diego thornmint","Acanthomintha ilicifolia",496,"USFWS"]
["18b",0,"Flowering Plants","San Diego ambrosia","Ambrosia pumila",500,"USFWS"]
["18b",0,"Flowering Plants","Del Mar manzanita","Arctostaphylos glandulosa ssp. crassifolia",502,"USFWS"]
["18b",0,"Flowering Plants","Bear Valley sandwort","Arenaria ursina",506,"USFWS"]
["18b",0,"Flowering Plants","Braunton's milk-vetch","Astragalus brauntonii",507,"USFWS"]
["18b",0,"Flowering Plants","Lane Mountain milk-vetch","Astragalus jaegerianus",510,"USFWS"]
["18b",0,"Flowering Plants","Ventura Marsh Milk-vetch","Astragalus pycnostachyus var. lanosissimus",511,"USFWS"]
["18b",0,"Flowering Plants","Coastal dunes milk-vetch","Astragalus tener var. titi",512,"USFWS"]
["18b",0,"Flowering Plants","Nevin's barberry","Berberis nevinii",514,"USFWS"]
["18b",0,"Flowering Plants","Thread-leaved brodiaea","Brodiaea filifolia",516,"USFWS"]
["18b",0,"Flowering Plants","Fleshy owl's-clover","Castilleja campestris ssp. succulenta",522,"USFWS"]
["18b",0,"Flowering Plants","Ash-grey paintbrush","Castilleja cinerea",523,"USFWS"]
["18b",0,"Flowering Plants","Catalina Island mountain-mahogany","Cercocarpus traskiae",526,"USFWS"]
["18b",0,"Flowering Plants","Hoover's spurge","Chamaesyce hooveri",527,"USFWS"]
["18b",0,"Flowering Plants","Purple amole","Chlorogalum purpureum",528,"USFWS"]
["18b",0,"Flowering Plants","Orcutt's spineflower","Chorizanthe orcuttiana",529,"USFWS"]
["18b",0,"Flowering Plants","Laguna Beach liveforever","Dudleya stolonifera",544,"USFWS"]
["18b",0,"Flowering Plants","Southern mountain wild-buckwheat","Eriogonum kennedyi var. austromontanum",548,"USFWS"]
["18b",0,"Flowering Plants","Otay tarplant","Deinandra (=Hemizonia) conjugens",559,"USFWS"]
["18b",0,"Flowering Plants","San Clemente Island woodland-star","Lithophragma maximum",571,"USFWS"]
["18b",0,"Flowering Plants","Willowy monardella","Monardella viminea",576,"USFWS"]
["18b",0,"Flowering Plants","Colusa grass","Neostapfia colusana",580,"USFWS"]
["18b",0,"Flowering Plants","Hairy Orcutt grass","Orcuttia pilosa",582,"USFWS"]
["18b",0,"Flowering Plants","Slender Orcutt grass","Orcuttia tenuis",583,"USFWS"]
["18b",0,"Flowering Plants","Lyon's pentachaeta","Pentachaeta lyonii",586,"USFWS"]
["18b",0,"Flowering Plants","Hartweg's golden sunburst","Pseudobahia bahiifolia",599,"USFWS"]
["18b",0,"Flowering Plants","San Joaquin adobe sunburst","Pseudobahia peirsonii",600,"USFWS"]
["18b",0,"Flowering Plants","Santa Cruz Island rockcress","Sibara filifolia",609,"USFWS"]
["18b",0,"Flowering Plants","Keck's Checker-mallow","Sidalcea keckii",610,"USFWS"]
["18b",0,"Flowering Plants","California taraxacum","Taraxacum californicum",614,"USFWS"]
["18b",0,"Flowering Plants","Large-flowered fiddleneck","Amsinckia grandiflora",626,"USFWS"]
["18b",0,"Flowering Plants","Ash meadows milk-vetch","Astragalus phoenix",641,"USFWS"]
["18b",0,"Flowering Plants","San Clemente Island indian paintbrush","Castilleja grisea",657,"USFWS"]
["18b",0,"Flowering Plants","Salt marsh bird's-beak","Cordylanthus maritimus ssp. maritimus",678,"USFWS"]
["18b",0,"Flowering Plants","San Clemente Island larkspur","Delphinium variegatum ssp. kinkiense",694,"USFWS"]
["18b",0,"Flowering Plants","Santa Barbara Island liveforever","Dudleya traskiae",698,"USFWS"]
["18b",0,"Flowering Plants","Cushenbury buckwheat","Eriogonum ovalifolium var. vineum",710,"USFWS"]
["18b",0,"Flowering Plants","San Diego button-celery","Eryngium aristulatum var. parishii",711,"USFWS"]
["18b",0,"Flowering Plants","San Clemente Island lotus (=broom)","Acmispon dendroideus var. traskiae (=Lotus d. ssp. traskiae)",760,"USFWS"]
["18b",0,"Flowering Plants","San Clemente Island bush-mallow","Malacothamnus clementinus",762,"USFWS"]
["18b",0,"Flowering Plants","Ash Meadows blazingstar","Mentzelia leucophylla",776,"USFWS"]
["18b",0,"Flowering Plants","Antioch Dunes evening-primrose","Oenothera deltoides ssp. howellii",784,"USFWS"]
["18b",0,"Flowering Plants","California Orcutt grass","Orcuttia californica",785,"USFWS"]
["18b",0,"Flowering Plants","San Joaquin Orcutt grass","Orcuttia inaequalis",786,"USFWS"]
["18b",0,"Flowering Plants","San Diego mesa-mint","Pogogyne abramsii",802,"USFWS"]
["18b",0,"Flowering Plants","Eureka Dune grass","Swallenia alexandrae",844,"USFWS"]
["18b",0,"Flowering Plants","Greene's tuctoria","Tuctoria greenei",858,"USFWS"]
["18b",0,"Flowering Plants","San Mateo thornmint","Acanthomintha obovata ssp. duttonii",873,"USFWS"]
["18b",0,"Flowering Plants","Applegate's milk-vetch","Astragalus applegatei",885,"USFWS"]
["18b",0,"Flowering Plants","Coachella Valley milk-vetch","Astragalus lentiginosus var. coachellae",886,"USFWS"]
["18b",0,"Flowering Plants","Fish Slough milk-vetch","Astragalus lentiginosus var. piscinensis",887,"USFWS"]
["18b",0,"Flowering Plants","Encinitas baccharis","Baccharis vanessae",889,"USFWS"]
["18b",0,"Flowering Plants","San Benito evening-primrose","Camissonia benitensis",897,"USFWS"]
["18b",0,"Flowering Plants","Ash Meadows sunray","Enceliopsis nudicaulis var. corrugata",926,"USFWS"]
["18b",0,"Flowering Plants","Parish's daisy","Erigeron parishii",928,"USFWS"]
["18b",0,"Flowering Plants","San Bernardino Mountains bladderpod","Lesquerella kingii ssp. bernardina",958,"USFWS"]
["18b",0,"Flowering Plants","Spreading navarretia","Navarretia fossalis",972,"USFWS"]
["18b",0,"Flowering Plants","Amargosa niterwort","Nitrophila mohavensis",973,"USFWS"]
["18b",0,"Flowering Plants","Otay mesa-mint","Pogogyne nudiuscula",988,"USFWS"]
["18b",0,"Flowering Plants","Slender-petaled mustard","Thelypodium stenopetalum",1009,"USFWS"]
["18b",0,"Flowering Plants","Peirson's milk-vetch","Astragalus magdalenae var. peirsonii",1021,"USFWS"]
["18b",0,"Flowering Plants","Springville clarkia","Clarkia springvillensis",1022,"USFWS"]
["18b",0,"Flowering Plants","Mexican flannelbush","Fremontodendron mexicanum",1027,"USFWS"]
["18b",0,"Flowering Plants","Slender-horned spineflower","Dodecahema leptoceras",1053,"USFWS"]
["18b",0,"Flowering Plants","Kern mallow","Eremalche kernensis",1055,"USFWS"]
["18b",0,"Flowering Plants","Munz's onion","Allium munzii",1074,"USFWS"]
["18b",0,"Flowering Plants","California jewelflower","Caulanthus californicus",1078,"USFWS"]
["18b",0,"Flowering Plants","Bakersfield cactus","Opuntia treleasei",1082,"USFWS"]
["18b",0,"Flowering Plants","Cushenbury milk-vetch","Astragalus albens",1086,"USFWS"]
["18b",0,"Flowering Plants","Triple-ribbed milk-vetch","Astragalus tricarinatus",1089,"USFWS"]
["18b",0,"Flowering Plants","San Joaquin wooly-threads","Monolopia (=Lembertia) congdonii",1123,"USFWS"]
["18b",0,"Flowering Plants","Cushenbury oxytheca","Oxytheca parishii var. goodmaniana",1134,"USFWS"]
["18b",0,"Flowering Plants","Vail Lake ceanothus","Ceanothus ophiochilus",1166,"USFWS"]
["18b",0,"Flowering Plants","Santa Monica Mountains dudleyea","Dudleya cymosa ssp. ovatifolia",1168,"USFWS"]
["18b",0,"Flowering Plants","Big-leaved crownbeard","Verbesina dissita",1173,"USFWS"]
["18b",0,"Mammals","Santa Catalina Island Fox","Urocyon littoralis catalinae",1237,"USFWS"]
["18b",0,"Amphibians","Yosemite toad","Anaxyrus canorus",1707,"USFWS"]
["18b",0,"Amphibians","Mountain yellow-legged frog","Rana muscosa",1740,"USFWS"]
["18b",0,"Flowering Plants","Whitebark pine","Pinus albicaulis",1935,"USFWS"]
["18b",0,"Insects","Hermes copper butterfly","Lycaena hermes",1984,"USFWS"]
["18b",0,"Flowering Plants","Webber Ivesia","Ivesia webberi",2458,"USFWS"]
["18b",0,"Mammals","North American wolverine","Gulo gulo luscus",4016,"USFWS"]
["18b",0,"Amphibians","Oregon spotted frog","Rana pretiosa",4090,"USFWS"]
["18b",0,"Amphibians","California tiger Salamander","Ambystoma californiense",4773,"USFWS"]
["18b",0,"Birds","Yellow-billed Cuckoo","Coccyzus americanus",6901,"USFWS"]
["18b",0,"Amphibians","California tiger Salamander","Ambystoma californiense",8395,"USFWS"]
["18b",0,"Insects","June Beetle, Caseys","Dinacoma caseyi",8503,"USFWS"]
["18b",0,"Birds","Greater sage-grouse","Centrocercus urophasianus",9337,"USFWS"]
["18b",0,"Flowering Plants","Vandenberg monkeyflower","Mimulus fremontii var. vandenbergensis",10076,"USFWS"]
["18b",0,"Mammals","Humboldt Marten","Martes caurina ssp. humboldtensis",10078,"USFWS"]
["18b",0,"Amphibians","Sierra Nevada Yellow-legged Frog","Rana sierrae",10517,"USFWS"]
["18b",0,"Mammals","Sierra Nevada red fox","Vulpes vulpes necator",11260,"USFWS"]
["18b",1,"Mammals","Gray wolf","Canis lupus",11,"USFWS"]
["18b",1,"Mammals","Canada Lynx","Lynx canadensis",24,"USFWS"]
["18b",1,"Mammals","Amargosa vole","Microtus californicus scirpensis",28,"USFWS"]
["18b",1,"Mammals","Buena Vista Lake ornate Shrew","Sorex ornatus relictus",58,"USFWS"]
["18b",1,"Mammals","Riparian woodrat (=San Joaquin Valley)","Neotoma fuscipes riparia",62,"USFWS"]
["18b",1,"Birds","Yuma clapper rail","Rallus longirostris yumanensis",84,"USFWS"]
["18b",1,"Birds","California least tern","Sterna antillarum browni",96,"USFWS"]
["18b",1,"Birds","California clapper rail","Rallus longirostris obsoletus",102,"USFWS"]
["18b",1,"Birds","Light-footed clapper rail","Rallus longirostris levipes",103,"USFWS"]
["18b",1,"Birds","San Clemente loggerhead shrike","Lanius ludovicianus mearnsi",115,"USFWS"]
["18b",1,"Birds","Least Bell's vireo","Vireo bellii pusillus",123,"USFWS"]
["18b",1,"Birds","Western snowy plover","Charadrius alexandrinus nivosus",132,"USFWS"]
["18b",1,"Birds","Inyo California towhee","Pipilo crissalis eremophilus",137,"USFWS"]
["18b",1,"Birds","Coastal California gnatcatcher","Polioptila californica californica",145,"USFWS"]
["18b",1,"Birds","Southwestern willow flycatcher","Empidonax traillii extimus",149,"USFWS"]
["18b",1,"Reptiles","Giant garter snake","Thamnophis gigas",187,"USFWS"]
["18b",1,"Amphibians","California tiger Salamander","Ambystoma californiense",203,"USFWS"]
["18b",1,"Amphibians","Arroyo (=arroyo southwestern) toad","Anaxyrus californicus",204,"USFWS"]
["18b",1,"Amphibians","California red-legged frog","Rana draytonii",205,"USFWS"]
["18b",1,"Amphibians","Mountain yellow-legged frog","Rana muscosa",207,"USFWS"]
["18b",1,"Fishes","Razorback sucker","Xyrauchen texanus",290,"USFWS"]
["18b",1,"Crustaceans","Conservancy fairy shrimp","Branchinecta conservatio",490,"USFWS"]
["18b",1,"Crustaceans","Longhorn fairy shrimp","Branchinecta longiantenna",491,"USFWS"]
["18b",1,"Crustaceans","Riverside fairy shrimp","Streptocephalus woottoni",492,"USFWS"]
["18b",1,"Crustaceans","Vernal pool fairy shrimp","Branchinecta lynchi",493,"USFWS"]
["18b",1,"Crustaceans","Vernal pool tadpole shrimp","Lepidurus packardi",494,"USFWS"]
["18b",1,"Crustaceans","San Diego fairy shrimp","Branchinecta sandiegonensis",495,"USFWS"]
["18b",1,"Flowering Plants","Ventura Marsh Milk-vetch","Astragalus pycnostachyus var. lanosissimus",511,"USFWS"]
["18b",1,"Flowering Plants","Fleshy owl's-clover","Castilleja campestris ssp. succulenta",522,"USFWS"]
["18b",1,"Flowering Plants","Hoover's spurge","Chamaesyce hooveri",527,"USFWS"]
["18b",1,"Flowering Plants","La Graciosa thistle","Cirsium loncholepis",531,"USFWS"]
["18b",1,"Flowering Plants","Contra Costa goldfields","Lasthenia conjugens",566,"USFWS"]
["18b",1,"Flowering Plants","Willowy monardella","Monardella viminea",576,"USFWS"]
["18b",1,"Flowering Plants","Colusa grass","Neostapfia colusana",580,"USFWS"]
["18b",1,"Flowering Plants","Hairy Orcutt grass","Orcuttia pilosa",582,"USFWS"]
["18b",1,"Flowering Plants","Slender Orcutt grass","Orcuttia tenuis",583,"USFWS"]
["18b",1,"Flowering Plants","San Bernardino bluegrass","Poa atropurpurea",594,"USFWS"]
["18b",1,"Flowering Plants","Kenwood Marsh checker-mallow","Sidalcea oregana ssp. valida",612,"USFWS"]
["18b",1,"Flowering Plants","California taraxacum","Taraxacum californicum",614,"USFWS"]
["18b",1,"Flowering Plants","Ash meadows milk-vetch","Astragalus phoenix",641,"USFWS"]
["18b",1,"Flowering Plants","Spring-loving centaury","Centaurium namophilum",660,"USFWS"]
["18b",1,"Flowering Plants","Chorro Creek bog thistle","Cirsium fontinale var. obispoense",667,"USFWS"]
["18b",1,"Flowering Plants","Salt marsh bird's-beak","Cordylanthus maritimus ssp. maritimus",678,"USFWS"]
["18b",1,"Flowering Plants","Palmate-bracted bird's beak","Cordylanthus palmatus",679,"USFWS"]
["18b",1,"Flowering Plants","San Diego button-celery","Eryngium aristulatum var. parishii",711,"USFWS"]
["18b",1,"Flowering Plants","Ash Meadows ivesia","Ivesia kingii var. eremica",743,"USFWS"]
["18b",1,"Flowering Plants","California Orcutt grass","Orcuttia californica",785,"USFWS"]
["18b",1,"Flowering Plants","San Joaquin Orcutt grass","Orcuttia inaequalis",786,"USFWS"]
["18b",1,"Flowering Plants","San Diego mesa-mint","Pogogyne abramsii",802,"USFWS"]
["18b",1,"Flowering Plants","Greene's tuctoria","Tuctoria greenei",858,"USFWS"]
["18b",1,"Flowering Plants","Marsh Sandwort","Arenaria paludicola",881,"USFWS"]
["18b",1,"Flowering Plants","Ash Meadows sunray","Enceliopsis nudicaulis var. corrugata",926,"USFWS"]
["18b",1,"Flowering Plants","Santa Ana River woolly-star","Eriastrum densifolium ssp. sanctorum",927,"USFWS"]
["18b",1,"Flowering Plants","Ash Meadows gumplant","Grindelia fraxinipratensis",941,"USFWS"]
["18b",1,"Flowering Plants","Spreading navarretia","Navarretia fossalis",972,"USFWS"]
["18b",1,"Flowering Plants","Amargosa niterwort","Nitrophila mohavensis",973,"USFWS"]
["18b",1,"Flowering Plants","Otay mesa-mint","Pogogyne nudiuscula",988,"USFWS"]
["18b",1,"Flowering Plants","Pedate checker-mallow","Sidalcea pedata",1000,"USFWS"]
["18b",1,"Flowering Plants","Slender-horned spineflower","Dodecahema leptoceras",1053,"USFWS"]
["18b",1,"Flowering Plants","Bakersfield cactus","Opuntia treleasei",1082,"USFWS"]
["18b",1,"Flowering Plants","San Jacinto Valley crownscale","Atriplex coronata var. notatior",1090,"USFWS"]
["18b",1,"Flowering Plants","Gambel's watercress","Rorippa gambellii",1145,"USFWS"]
["18b",1,"Mammals","Santa Catalina Island Fox","Urocyon littoralis catalinae",1237,"USFWS"]
["18b",1,"Amphibians","Yosemite toad","Anaxyrus canorus",1707,"USFWS"]
["18b",1,"Amphibians","Mountain yellow-legged frog","Rana muscosa",1740,"USFWS"]
["18b",1,"Amphibians","Oregon spotted frog","Rana pretiosa",4090,"USFWS"]
["18b",1,"Amphibians","California tiger Salamander","Ambystoma californiense",4773,"USFWS"]
["18b",1,"Birds","Yellow-billed Cuckoo","Coccyzus americanus",6901,"USFWS"]
["18b",1,"Amphibians","California tiger Salamander","Ambystoma californiense",8395,"USFWS"]
["18b",1,"Birds","Greater sage-grouse","Centrocercus urophasianus",9337,"USFWS"]
["18b",1,"Amphibians","Sierra Nevada Yellow-legged Frog","Rana sierrae",10517,"USFWS"]
["19a",0,"Birds","Eskimo curlew","Numenius borealis",91,"USFWS"]
["19a",0,"Birds","Spectacled eider","Somateria fischeri",146,"USFWS"]
["19a",0,"Birds","Steller's Eider","Polysticta stelleri",147,"USFWS"]
["19a",0,"Flowering Plants","Aleutian shield fern","Polystichum aleuticum",1201,"USFWS"]
["19a",1,"Birds","Eskimo curlew","Numenius borealis",91,"USFWS"]
["19a",1,"Birds","Spectacled eider","Somateria fischeri",146,"USFWS"]
["19a",1,"Birds","Steller's Eider","Polysticta stelleri",147,"USFWS"]
["19b",0,"Birds","Eskimo curlew","Numenius borealis",91,"USFWS"]
["19b",0,"Birds","Spectacled eider","Somateria fischeri",146,"USFWS"]
["19b",0,"Birds","Steller's Eider","Polysticta stelleri",147,"USFWS"]
["19b",0,"Flowering Plants","Aleutian shield fern","Polystichum aleuticum",1201,"USFWS"]
["19b",1,"Birds","Eskimo curlew","Numenius borealis",91,"USFWS"]
["19b",1,"Birds","Spectacled eider","Somateria fischeri",146,"USFWS"]
["19b",1,"Birds","Steller's Eider","Polysticta stelleri",147,"USFWS"]
["20a",0,"Mammals","Hawaiian Hoary Bat","Lasiurus cinereus semotus",15,"USFWS"]
["20a",0,"Birds","Akiapola`au (honeycreeper)","Hemignathus munroi",65,"USFWS"]
["20a",0,"Birds","Hawaiian (=koloa) Duck","Anas wyvilliana",69,"USFWS"]
["20a",0,"Birds","Hawaiian goose","Branta (=Nesochen) sandvicensis",73,"USFWS"]
["20a",0,"Birds","Crested honeycreeper","Palmeria dolei",74,"USFWS"]
["20a",0,"Birds","Hawaiian common gallinule","Gallinula chloropus sandvicensis",76,"USFWS"]
["20a",0,"Birds","Palila (honeycreeper)","Loxioides bailleui",79,"USFWS"]
["20a",0,"Birds","Maui parrotbill (honeycreeper)","Pseudonestor xanthophrys",81,"USFWS"]
["20a",0,"Birds","Small Kauai thrush (=puaiohi)","Myadestes palmeri",86,"USFWS"]
["20a",0,"Birds","Micronesian megapode","Megapodius laperouse",87,"USFWS"]
["20a",0,"Birds","Hawaii akepa (honeycreeper)","Loxops coccineus coccineus",97,"USFWS"]
["20a",0,"Birds","Maui akepa (honeycreeper)","Loxops coccineus ochraceus",98,"USFWS"]
["20a",0,"Birds","Oahu creeper","Paroreomyza maculata",99,"USFWS"]
["20a",0,"Birds","Hawaiian stilt","Himantopus mexicanus knudseni",104,"USFWS"]
["20a",0,"Birds","Hawaiian coot","Fulica americana alai",108,"USFWS"]
["20a",0,"Birds","Hawaii creeper","Oreomystis mana",112,"USFWS"]
["20a",0,"Birds","Po`ouli (honeycreeper)","Melamprosops phaeosoma",113,"USFWS"]
["20a",0,"Birds","Newell's Townsend's shearwater","Puffinus auricularis newelli",114,"USFWS"]
["20a",0,"Birds","Mariana crow (=aga)","Corvus kubaryi",118,"USFWS"]
["20a",0,"Birds","Guam kingfisher","Todiramphus cinnamominus",119,"USFWS"]
["20a",0,"Birds","Mariana common moorhen","Gallinula chloropus guami",120,"USFWS"]
["20a",0,"Birds","Guam rail","Rallus owstoni",121,"USFWS"]
["20a",0,"Birds","Mariana gray swiftlet","Aerodramus vanikorensis bartschi",148,"USFWS"]
["20a",0,"Birds","Oahu elepaio","Chasiempis sandwichensis ibidis",150,"USFWS"]
["20a",0,"Insects","Moth, Blackburn's sphinx","Manduca blackburni",446,"USFWS"]
["20a",0,"Flowering Plants","No common name","Achyranthes mutica",497,"USFWS"]
["20a",0,"Flowering Plants","Uhiuhi","Caesalpinia kavaiense",518,"USFWS"]
["20a",0,"Flowering Plants","`Oha wai","Clermontia drepanomorpha",533,"USFWS"]
["20a",0,"Flowering Plants","Haha","Cyanea humboldtiana",535,"USFWS"]
["20a",0,"Flowering Plants","Ha`iwale","Cyrtandra dentata",536,"USFWS"]
["20a",0,"Flowering Plants","Oha","Delissea rivularis",537,"USFWS"]
["20a",0,"Flowering Plants","Fosberg's love grass","Eragrostis fosbergii",545,"USFWS"]
["20a",0,"Flowering Plants","`Akoko","Euphorbia haeleeleana",549,"USFWS"]
["20a",0,"Flowering Plants","Hau kuahiwi","Hibiscadelphus giffardianus",560,"USFWS"]
["20a",0,"Flowering Plants","Hau kuahiwi","Hibiscadelphus hualalaiensis",561,"USFWS"]
["20a",0,"Flowering Plants","Aupaka","Isodendrion laurifolium",563,"USFWS"]
["20a",0,"Flowering Plants","Aupaka","Isodendrion longifolium",564,"USFWS"]
["20a",0,"Flowering Plants","Kamakahala","Labordia triflora",565,"USFWS"]
["20a",0,"Flowering Plants","`Anaunau","Lepidium arbuscula",567,"USFWS"]
["20a",0,"Flowering Plants","No common name","Lobelia gaudichaudii ssp. koolauensis",572,"USFWS"]
["20a",0,"Flowering Plants","Alani","Melicope saint-johnii",575,"USFWS"]
["20a",0,"Flowering Plants","Kolea","Myrsine linearifolia",577,"USFWS"]
["20a",0,"Flowering Plants","No common name","Neraudia ovata",581,"USFWS"]
["20a",0,"Flowering Plants","Lau `ehu","Panicum niihauense",584,"USFWS"]
["20a",0,"Flowering Plants","No common name","Phyllostegia hirsuta",589,"USFWS"]
["20a",0,"Flowering Plants","No common name","Phyllostegia knudsenii",590,"USFWS"]
["20a",0,"Flowering Plants","No common name","Phyllostegia parviflora",591,"USFWS"]
["20a",0,"Flowering Plants","Wahane","Pritchardia aylmer-robinsonii",597,"USFWS"]
["20a",0,"Flowering Plants","Lo`ulu","Pritchardia remota",598,"USFWS"]
["20a",0,"Flowering Plants","No common name","Sanicula purpurea",601,"USFWS"]
["20a",0,"Flowering Plants","No common name","Schiedea hookeri",602,"USFWS"]
["20a",0,"Flowering Plants","Ma`oli`oli","Schiedea kealiae",603,"USFWS"]
["20a",0,"Flowering Plants","No common name","Schiedea membranacea",604,"USFWS"]
["20a",0,"Flowering Plants","No common name","Schiedea sarmentosa",605,"USFWS"]
["20a",0,"Flowering Plants","No common name","Abutilon eremitopetalum",616,"USFWS"]
["20a",0,"Flowering Plants","Ko`oloa`ula","Abutilon menziesii",617,"USFWS"]
["20a",0,"Flowering Plants","No common name","Abutilon sandwicense",618,"USFWS"]
["20a",0,"Flowering Plants","Liliwai","Acaena exigua",619,"USFWS"]
["20a",0,"Flowering Plants","Mahoe","Alectryon macrococcus",621,"USFWS"]
["20a",0,"Flowering Plants","No common name","Schiedea obovata",622,"USFWS"]
["20a",0,"Flowering Plants","No common name","Schiedea trinervis",623,"USFWS"]
["20a",0,"Flowering Plants","Mauna Loa (=Ka'u) silversword","Argyroxiphium kauense",634,"USFWS"]
["20a",0,"Flowering Plants","`Ahinahina","Argyroxiphium sandwicense ssp. macrocephalum",635,"USFWS"]
["20a",0,"Flowering Plants","Ko`oko`olau","Bidens micrantha ssp. kalealaha",645,"USFWS"]
["20a",0,"Flowering Plants","Ko`oko`olau","Bidens wiebkei",646,"USFWS"]
["20a",0,"Flowering Plants","No common name","Bonamia menziesii",648,"USFWS"]
["20a",0,"Flowering Plants","Olulu","Brighamia insignis",649,"USFWS"]
["20a",0,"Flowering Plants","Pua `ala","Brighamia rockii",650,"USFWS"]
["20a",0,"Flowering Plants","`Awikiwiki","Canavalia molokaiensis",654,"USFWS"]
["20a",0,"Flowering Plants","Kamanomano","Cenchrus agrimonioides",659,"USFWS"]
["20a",0,"Flowering Plants","`Akoko","Chamaesyce celastroides var. kaenana",662,"USFWS"]
["20a",0,"Flowering Plants","No common name","Chamaesyce halemanui",664,"USFWS"]
["20a",0,"Flowering Plants","Ewa Plains `akoko","Chamaesyce skottsbergii var. skottsbergii",665,"USFWS"]
["20a",0,"Flowering Plants","`Oha wai","Clermontia lindseyana",671,"USFWS"]
["20a",0,"Flowering Plants","`Oha wai","Clermontia peleana",672,"USFWS"]
["20a",0,"Flowering Plants","`Oha wai","Clermontia pyrularia",673,"USFWS"]
["20a",0,"Flowering Plants","Kauila","Colubrina oppositifolia",674,"USFWS"]
["20a",0,"Flowering Plants","Haha","Cyanea grimesiana ssp. grimesiana",684,"USFWS"]
["20a",0,"Flowering Plants","Haha","Cyanea mceldowneyi",685,"USFWS"]
["20a",0,"Flowering Plants","Haha","Cyanea shipmanii",686,"USFWS"]
["20a",0,"Flowering Plants","Haha","Cyanea st.-johnii",687,"USFWS"]
["20a",0,"Flowering Plants","Haha","Cyanea superba",688,"USFWS"]
["20a",0,"Flowering Plants","Ha`iwale","Cyrtandra polyantha",690,"USFWS"]
["20a",0,"Flowering Plants","Ha`iwale","Cyrtandra subumbellata",691,"USFWS"]
["20a",0,"Flowering Plants","No common name","Delissea rhytidosperma",692,"USFWS"]
["20a",0,"Flowering Plants","Oha","Delissea subcordata",693,"USFWS"]
["20a",0,"Flowering Plants","Na`ena`e","Dubautia latifolia",697,"USFWS"]
["20a",0,"Flowering Plants","Hawaiian gardenia (=Na`u)","Gardenia brighamii",715,"USFWS"]
["20a",0,"Flowering Plants","Hawaiian red-flowered geranium","Geranium arboreum",717,"USFWS"]
["20a",0,"Flowering Plants","No common name","Gouania hillebrandii",719,"USFWS"]
["20a",0,"Flowering Plants","No common name","Gouania meyenii",720,"USFWS"]
["20a",0,"Flowering Plants","No common name","Gouania vitifolia",721,"USFWS"]
["20a",0,"Flowering Plants","Honohono","Haplostachys haplostachya",722,"USFWS"]
["20a",0,"Flowering Plants","Awiwi","Hedyotis cookiana",724,"USFWS"]
["20a",0,"Flowering Plants","Kio`ele","Kadua coriacea",725,"USFWS"]
["20a",0,"Flowering Plants","No common name","Kadua degeneri",726,"USFWS"]
["20a",0,"Flowering Plants","Pilo","Hedyotis mannii",727,"USFWS"]
["20a",0,"Flowering Plants","No common name","Kadua parvula",728,"USFWS"]
["20a",0,"Flowering Plants","Na Pali beach hedyotis","Hedyotis st.-johnii",729,"USFWS"]
["20a",0,"Flowering Plants","No common name","Hesperomannia arborescens",731,"USFWS"]
["20a",0,"Flowering Plants","No common name","Hesperomannia arbuscula",732,"USFWS"]
["20a",0,"Flowering Plants","No common name","Hesperomannia lydgatei",733,"USFWS"]
["20a",0,"Flowering Plants","Kauai hau kuahiwi","Hibiscadelphus distans",735,"USFWS"]
["20a",0,"Flowering Plants","(=Native yellow hibiscus) ma`o hau hele","Hibiscus brackenridgei",736,"USFWS"]
["20a",0,"Flowering Plants","Clay's hibiscus","Hibiscus clayi",737,"USFWS"]
["20a",0,"Flowering Plants","Koki`o ke`oke`o","Hibiscus waimeae ssp. hannerae",738,"USFWS"]
["20a",0,"Flowering Plants","Kula wahine noho","Isodendrion pyrifolium",741,"USFWS"]
["20a",0,"Flowering Plants","Cooke's koki`o","Kokia cookei",745,"USFWS"]
["20a",0,"Flowering Plants","Koki`o","Kokia drynarioides",746,"USFWS"]
["20a",0,"Flowering Plants","Koki`o","Kokia kauaiensis",747,"USFWS"]
["20a",0,"Flowering Plants","Nehe","Lipochaeta fauriei",755,"USFWS"]
["20a",0,"Flowering Plants","Nehe","Lipochaeta lobata var. leptophylla",756,"USFWS"]
["20a",0,"Flowering Plants","No common name","Lipochaeta venosa",757,"USFWS"]
["20a",0,"Flowering Plants","No common name","Lobelia niihauensis",758,"USFWS"]
["20a",0,"Flowering Plants","No common name","Lobelia oahuensis",759,"USFWS"]
["20a",0,"Flowering Plants","Alani","Melicope balloui",765,"USFWS"]
["20a",0,"Flowering Plants","Alani","Melicope haupuensis",766,"USFWS"]
["20a",0,"Flowering Plants","Alani","Melicope knudsenii",767,"USFWS"]
["20a",0,"Flowering Plants","Alani","Melicope lydgatei",768,"USFWS"]
["20a",0,"Flowering Plants","Alani","Melicope mucronulata",769,"USFWS"]
["20a",0,"Flowering Plants","Alani","Melicope munroi",770,"USFWS"]
["20a",0,"Flowering Plants","Alani","Melicope ovalis",771,"USFWS"]
["20a",0,"Flowering Plants","Alani","Melicope pallida",772,"USFWS"]
["20a",0,"Flowering Plants","Alani","Melicope quadrangularis",773,"USFWS"]
["20a",0,"Flowering Plants","Alani","Melicope reflexa",774,"USFWS"]
["20a",0,"Flowering Plants","Alani","Melicope zahlbruckneri",775,"USFWS"]
["20a",0,"Flowering Plants","No common name","Munroidendron racemosum",778,"USFWS"]
["20a",0,"Flowering Plants","No common name","Neraudia sericea",779,"USFWS"]
["20a",0,"Flowering Plants","`Aiea","Nothocestrum breviflorum",780,"USFWS"]
["20a",0,"Flowering Plants","`Aiea","Nothocestrum peltatum",781,"USFWS"]
["20a",0,"Flowering Plants","Kulu`i","Nototrichium humile",782,"USFWS"]
["20a",0,"Flowering Plants","Carter's panicgrass","Panicum fauriei var. carteri",788,"USFWS"]
["20a",0,"Flowering Plants","Makou","Peucedanum sandwicense",795,"USFWS"]
["20a",0,"Flowering Plants","Kuahiwi laukahi","Plantago princeps",800,"USFWS"]
["20a",0,"Flowering Plants","Hawaiian bluegrass","Poa sandvicensis",801,"USFWS"]
["20a",0,"Flowering Plants","Po`e","Portulaca sclerocarpa",806,"USFWS"]
["20a",0,"Flowering Plants","Lo`ulu","Pritchardia munroi",808,"USFWS"]
["20a",0,"Flowering Plants","Kaulu","Pteralyxia kauaiensis",810,"USFWS"]
["20a",0,"Flowering Plants","No common name","Remya kauaiensis",814,"USFWS"]
["20a",0,"Flowering Plants","Maui remya","Remya mauiensis",815,"USFWS"]
["20a",0,"Flowering Plants","Dwarf naupaka","Scaevola coriacea",820,"USFWS"]
["20a",0,"Flowering Plants","Diamond Head schiedea","Schiedea adamantis",821,"USFWS"]
["20a",0,"Flowering Plants","No common name","Schiedea kaalae",822,"USFWS"]
["20a",0,"Flowering Plants","No common name","Silene alexandri",829,"USFWS"]
["20a",0,"Flowering Plants","No common name","Silene lanceolata",830,"USFWS"]
["20a",0,"Flowering Plants","Popolo ku mai","Solanum incompletum",832,"USFWS"]
["20a",0,"Flowering Plants","`Aiakeakua, popolo","Solanum sandwicense",833,"USFWS"]
["20a",0,"Flowering Plants","No common name","Stenogyne angustifolia angustifolia",838,"USFWS"]
["20a",0,"Flowering Plants","No common name","Stenogyne kanehoana",839,"USFWS"]
["20a",0,"Flowering Plants","No common name","Tetramolopium arenarium",845,"USFWS"]
["20a",0,"Flowering Plants","Pamakani","Tetramolopium capillare",846,"USFWS"]
["20a",0,"Flowering Plants","No common name","Tetramolopium filiforme",847,"USFWS"]
["20a",0,"Flowering Plants","No common name","Tetramolopium lepidotum ssp. lepidotum",848,"USFWS"]
["20a",0,"Flowering Plants","No common name","Tetramolopium remyi",849,"USFWS"]
["20a",0,"Flowering Plants","No common name","Tetramolopium rockii",850,"USFWS"]
["20a",0,"Flowering Plants","`Ohe`ohe","Tetraplasandra gymnocarpa",851,"USFWS"]
["20a",0,"Flowering Plants","Opuhe","Urera kaalae",860,"USFWS"]
["20a",0,"Flowering Plants","Hawaiian vetch","Vicia menziesii",861,"USFWS"]
["20a",0,"Flowering Plants","No common name","Vigna o-wahuensis",862,"USFWS"]
["20a",0,"Flowering Plants","Pamakani","Viola chamissoniana ssp. chamissoniana",863,"USFWS"]
["20a",0,"Flowering Plants","No common name","Viola helenae",864,"USFWS"]
["20a",0,"Flowering Plants","Nani wai`ale`ale","Viola kauaiensis var. wahiawaensis",865,"USFWS"]
["20a",0,"Flowering Plants","No common name","Viola lanaiensis",866,"USFWS"]
["20a",0,"Flowering Plants","No common name","Viola oahuensis",867,"USFWS"]
["20a",0,"Flowering Plants","Dwarf iliau","Wilkesia hobdyi",868,"USFWS"]
["20a",0,"Flowering Plants","A`e","Zanthoxylum hawaiiense",869,"USFWS"]
["20a",0,"Flowering Plants","Round-leaved chaff-flower","Achyranthes splendens var. rotundata",874,"USFWS"]
["20a",0,"Flowering Plants","`Ahinahina","Argyroxiphium sandwicense ssp. sandwicense",882,"USFWS"]
["20a",0,"Flowering Plants","Haha","Cyanea pinnatifida",915,"USFWS"]
["20a",0,"Flowering Plants","Haha","Cyanea platyphylla",916,"USFWS"]
["20a",0,"Flowering Plants","Haha","Cyanea stictophylla",917,"USFWS"]
["20a",0,"Flowering Plants","Ha`iwale","Cyrtandra giffardii",919,"USFWS"]
["20a",0,"Flowering Plants","Heau","Exocarpos luteolus",938,"USFWS"]
["20a",0,"Flowering Plants","Nohoanu","Geranium multiflorum",939,"USFWS"]
["20a",0,"Flowering Plants","Koki`o ke`oke`o","Hibiscus arnottianus ssp. immaculatus",947,"USFWS"]
["20a",0,"Flowering Plants","Hilo ischaemum","Ischaemum byrone",951,"USFWS"]
["20a",0,"Flowering Plants","Aupaka","Isodendrion hosakae",952,"USFWS"]
["20a",0,"Flowering Plants","Kamakahala","Labordia cyrtandrae",954,"USFWS"]
["20a",0,"Flowering Plants","Kamakahala","Labordia lydgatei",955,"USFWS"]
["20a",0,"Flowering Plants","Nehe","Lipochaeta kamolensis",961,"USFWS"]
["20a",0,"Flowering Plants","Nehe","Lipochaeta micrantha",962,"USFWS"]
["20a",0,"Flowering Plants","Nehe","Melanthera tenuifolia",963,"USFWS"]
["20a",0,"Flowering Plants","Nehe","Lipochaeta waimeaensis",964,"USFWS"]
["20a",0,"Flowering Plants","No common name","Lobelia monostachya",965,"USFWS"]
["20a",0,"Flowering Plants","No common name","Lysimachia filifolia",968,"USFWS"]
["20a",0,"Flowering Plants","No common name","Phyllostegia mollis",981,"USFWS"]
["20a",0,"Flowering Plants","No common name","Platanthera holochila",983,"USFWS"]
["20a",0,"Flowering Plants","Mann's bluegrass","Poa mannii",986,"USFWS"]
["20a",0,"Flowering Plants","No common name","Poa siphonoglossa",987,"USFWS"]
["20a",0,"Flowering Plants","Lanai sandalwood (=`iliahi)","Santalum freycinetianum var. lanaiense",993,"USFWS"]
["20a",0,"Flowering Plants","Ohai","Sesbania tomentosa",999,"USFWS"]
["20a",0,"Flowering Plants","No common name","Silene hawaiiensis",1001,"USFWS"]
["20a",0,"Flowering Plants","No common name","Xylosma crenatum",1016,"USFWS"]
["20a",0,"Flowering Plants","No common name","Cyperus pennatiformis",1032,"USFWS"]
["20a",0,"Flowering Plants","Hayun Iagu (=(Guam), Tronkon guafi (Rota))","Serianthes nelsonii",1038,"USFWS"]
["20a",0,"Flowering Plants","Haha","Cyanea grimesiana ssp. obatae",1049,"USFWS"]
["20a",0,"Flowering Plants","Haha","Cyanea hamatiflora ssp. carlsonii",1050,"USFWS"]
["20a",0,"Flowering Plants","Haha","Cyanea lobata",1051,"USFWS"]
["20a",0,"Flowering Plants","Haha","Cyanea macrostegia ssp. gibsonii",1052,"USFWS"]
["20a",0,"Flowering Plants","Na`ena`e","Dubautia herbstobatae",1054,"USFWS"]
["20a",0,"Flowering Plants","Lo`ulu","Pritchardia kaalae",1062,"USFWS"]
["20a",0,"Flowering Plants","Lo`ulu","Pritchardia schattaueri",1063,"USFWS"]
["20a",0,"Flowering Plants","Ma`oli`oli","Schiedea apokremnos",1065,"USFWS"]
["20a",0,"Flowering Plants","No common name","Schiedea haleakalensis",1066,"USFWS"]
["20a",0,"Flowering Plants","No common name","Schiedea helleri",1067,"USFWS"]
["20a",0,"Flowering Plants","No common name","Schiedea lydgatei",1068,"USFWS"]
["20a",0,"Flowering Plants","No common name","Schiedea spergulina var. leiopoda",1069,"USFWS"]
["20a",0,"Flowering Plants","No common name","Schiedea spergulina var. spergulina",1070,"USFWS"]
["20a",0,"Flowering Plants","Laulihilihi","Schiedea stellarioides",1071,"USFWS"]
["20a",0,"Flowering Plants","No common name","Alsinidendron viscosum",1075,"USFWS"]
["20a",0,"Flowering Plants","No common name","Remya montgomeryi",1083,"USFWS"]
["20a",0,"Flowering Plants","Kuawawaenohu","Schiedea lychnoides",1084,"USFWS"]
["20a",0,"Flowering Plants","Awiwi","Centaurium sebaeoides",1093,"USFWS"]
["20a",0,"Flowering Plants","`Akoko","Chamaesyce kuwaleana",1094,"USFWS"]
["20a",0,"Flowering Plants","`Oha wai","Clermontia oblongifolia ssp. brevipes",1097,"USFWS"]
["20a",0,"Flowering Plants","`Oha wai","Clermontia oblongifolia ssp. mauiensis",1098,"USFWS"]
["20a",0,"Flowering Plants","Haha","Cyanea asarifolia",1099,"USFWS"]
["20a",0,"Flowering Plants","Haha","Cyanea dunbarii",1101,"USFWS"]
["20a",0,"Flowering Plants","Haha","Cyanea glabra",1102,"USFWS"]
["20a",0,"Flowering Plants","Haha","Cyanea mannii",1103,"USFWS"]
["20a",0,"Flowering Plants","Haha","Cyanea procera",1104,"USFWS"]
["20a",0,"Flowering Plants","Haha","Cyanea recta",1105,"USFWS"]
["20a",0,"Flowering Plants","Haha","Cyanea truncata",1106,"USFWS"]
["20a",0,"Flowering Plants","Haha","Cyanea undulata",1107,"USFWS"]
["20a",0,"Flowering Plants","Pu`uka`a","Cyperus trachysanthos",1108,"USFWS"]
["20a",0,"Flowering Plants","Mapele","Cyrtandra cyaneoides",1109,"USFWS"]
["20a",0,"Flowering Plants","Ha`iwale","Cyrtandra limahuliensis",1110,"USFWS"]
["20a",0,"Flowering Plants","Ha`iwale","Cyrtandra tintinnabula",1111,"USFWS"]
["20a",0,"Flowering Plants","Ha`iwale","Cyrtandra viridiflora",1112,"USFWS"]
["20a",0,"Flowering Plants","Na`ena`e","Dubautia pauciflorula",1113,"USFWS"]
["20a",0,"Flowering Plants","Na`ena`e","Dubautia plantaginea ssp. humilis",1114,"USFWS"]
["20a",0,"Flowering Plants","Nioi","Eugenia koolauensis",1116,"USFWS"]
["20a",0,"Flowering Plants","Mehamehame","Flueggea neowawraea",1117,"USFWS"]
["20a",0,"Flowering Plants","Kopa","Hedyotis schlechtendahliana var. remyi",1118,"USFWS"]
["20a",0,"Flowering Plants","No common name","Lysimachia lydgatei",1128,"USFWS"]
["20a",0,"Flowering Plants","No common name","Lysimachia maxima",1129,"USFWS"]
["20a",0,"Flowering Plants","No common name","Mariscus fauriei",1131,"USFWS"]
["20a",0,"Flowering Plants","Alani","Melicope adscendens",1132,"USFWS"]
["20a",0,"Flowering Plants","Kolea","Myrsine juddii",1133,"USFWS"]
["20a",0,"Flowering Plants","No common name","Phyllostegia waimeae",1135,"USFWS"]
["20a",0,"Flowering Plants","Kiponapona","Phyllostegia racemosa",1136,"USFWS"]
["20a",0,"Flowering Plants","No common name","Phyllostegia velutina",1137,"USFWS"]
["20a",0,"Flowering Plants","No common name","Phyllostegia warshaueri",1138,"USFWS"]
["20a",0,"Flowering Plants","No common name","Phyllostegia wawrana",1139,"USFWS"]
["20a",0,"Flowering Plants","Kuahiwi laukahi","Plantago hawaiensis",1140,"USFWS"]
["20a",0,"Flowering Plants","Hala pepe","Pleomele hawaiiensis",1141,"USFWS"]
["20a",0,"Flowering Plants","Lo`ulu","Pritchardia affinis",1142,"USFWS"]
["20a",0,"Flowering Plants","Lo`ulu","Pritchardia napaliensis",1143,"USFWS"]
["20a",0,"Flowering Plants","Lo`ulu","Pritchardia viscosa",1144,"USFWS"]
["20a",0,"Flowering Plants","No common name","Sanicula mariversa",1146,"USFWS"]
["20a",0,"Flowering Plants","No common name","Schiedea kauaiensis",1147,"USFWS"]
["20a",0,"Flowering Plants","No common name","Schiedea nuttallii",1148,"USFWS"]
["20a",0,"Flowering Plants","`Anunu","Sicyos alba",1151,"USFWS"]
["20a",0,"Flowering Plants","No common name","Silene perlmanii",1152,"USFWS"]
["20a",0,"Flowering Plants","No common name","Spermolepis hawaiiensis",1154,"USFWS"]
["20a",0,"Flowering Plants","No common name","Stenogyne bifida",1155,"USFWS"]
["20a",0,"Flowering Plants","No common name","Stenogyne campanulata",1156,"USFWS"]
["20a",0,"Flowering Plants","No common name","Trematolobelia singularis",1157,"USFWS"]
["20a",0,"Flowering Plants","A`e","Zanthoxylum dipetalum var. tomentosum",1159,"USFWS"]
["20a",0,"Flowering Plants","No common name","Phyllostegia mannii",1163,"USFWS"]
["20a",0,"Flowering Plants","Haha","Cyanea acuminata",1175,"USFWS"]
["20a",0,"Flowering Plants","Haha","Cyanea remyi",1176,"USFWS"]
["20a",0,"Flowering Plants","Hau kuahiwi","Hibiscadelphus woodii",1177,"USFWS"]
["20a",0,"Flowering Plants","Kamakahala","Labordia tinifolia var. wahiawaensis",1178,"USFWS"]
["20a",0,"Flowering Plants","`Akoko","Chamaesyce herbstii",1179,"USFWS"]
["20a",0,"Flowering Plants","`Akoko","Chamaesyce rockii",1180,"USFWS"]
["20a",0,"Flowering Plants","Haha","Cyanea koolauensis",1181,"USFWS"]
["20a",0,"Flowering Plants","Haha","Cyanea longiflora",1182,"USFWS"]
["20a",0,"Flowering Plants","Nanu","Gardenia mannii",1183,"USFWS"]
["20a",0,"Flowering Plants","No common name","Phyllostegia kaalaensis",1184,"USFWS"]
["20a",0,"Flowering Plants","Haha","Cyanea hamatiflora ssp. hamatiflora",1186,"USFWS"]
["20a",0,"Flowering Plants","Kohe malama malama o kanaloa","Kanaloa kahoolawensis",1187,"USFWS"]
["20a",0,"Flowering Plants","`Oha wai","Clermontia samuelii",1188,"USFWS"]
["20a",0,"Flowering Plants","Pendant kihi fern","Adenophorus periens",1193,"USFWS"]
["20a",0,"Flowering Plants","No common name","Asplenium fragile insulare",1194,"USFWS"]
["20a",0,"Flowering Plants","Asplenium-leaved diellia","Diellia erecta",1196,"USFWS"]
["20a",0,"Flowering Plants","No common name","Diellia falcata",1197,"USFWS"]
["20a",0,"Flowering Plants","No common name","Diplazium molokaiense",1198,"USFWS"]
["20a",0,"Ferns and Allies","Ihi`ihi","Marsilea villosa",1200,"USFWS"]
["20a",0,"Ferns and Allies","No common name","Pteris lidgatei",1202,"USFWS"]
["20a",0,"Flowering Plants","Pauoa","Ctenitis squamigera",1205,"USFWS"]
["20a",0,"Flowering Plants","Wawae`iole","Huperzia mannii",1207,"USFWS"]
["20a",0,"Flowering Plants","Wawae`iole","Huperzia nutans",1208,"USFWS"]
["20a",0,"Flowering Plants","No common name","Diellia pallida",1218,"USFWS"]
["20a",0,"Birds","Nightingale reed warbler (old world warbler)","Acrocephalus luscinia",1222,"USFWS"]
["20a",0,"Flowering Plants","`Akoko","Chamaesyce deppeana",1223,"USFWS"]
["20a",0,"Flowering Plants","haha","Cyanea crispa",1224,"USFWS"]
["20a",0,"Flowering Plants","No common name","Neraudia angulata",1226,"USFWS"]
["20a",0,"Flowering Plants","Ha`iwale","Cyrtandra munroi",1230,"USFWS"]
["20a",0,"Flowering Plants","Kamakahala","Labordia tinifolia var. lanaiensis",1232,"USFWS"]
["20a",0,"Birds","Rota bridled white-eye","Zosterops rotensis",1241,"USFWS"]
["20a",0,"Insects","Pomace fly, [unnamed]","Drosophila aglaia",1248,"USFWS"]
["20a",0,"Insects","Pomace fly, [unnamed]","Drosophila heteroneura",1249,"USFWS"]
["20a",0,"Insects","Pomace fly, [unnamed]","Drosophila montgomeryi",1250,"USFWS"]
["20a",0,"Insects","Pomace fly, [unnamed]","Drosophila mulli",1251,"USFWS"]
["20a",0,"Insects","Pomace fly, [unnamed]","Drosophila musaphilia",1252,"USFWS"]
["20a",0,"Insects","Pomace fly, [unnamed]","Drosophila neoclavisetae",1253,"USFWS"]
["20a",0,"Insects","Pomace fly, [unnamed]","Drosophila obatai",1254,"USFWS"]
["20a",0,"Insects","Pomace fly, [unnamed]","Drosophila substenoptera",1255,"USFWS"]
["20a",0,"Insects","Pomace fly, [unnamed]","Drosophila tarphytrichia",1256,"USFWS"]
["20a",0,"Insects","Pomace fly, [unnamed]","Drosophila hemipeza",1257,"USFWS"]
["20a",0,"Insects","Pomace fly, [unnamed]","Drosophila ochrobasis",1258,"USFWS"]
["20a",0,"Insects","Pomace fly, [unnamed]","Drosophila differens",1259,"USFWS"]
["20a",0,"Flowering Plants","No common name","Nesogenes rotensis",1264,"USFWS"]
["20a",0,"Flowering Plants","No common name","Osmoxylon mariannense",1265,"USFWS"]
["20a",0,"Flowering Plants","No common name","Tabernaemontana rotensis",1266,"USFWS"]
["20a",0,"Flowering Plants","Haha","Cyanea eleeleensis",1278,"USFWS"]
["20a",0,"Ferns and Allies","Boyds maiden fern","Cyclosorus boydiae",1311,"USFWS"]
["20a",0,"Flowering Plants","Ha`iwale","Cyrtandra oxybapha",1349,"USFWS"]
["20a",0,"Insects","Blackline Hawaiian damselfly","Megalagrion nigrohamatum nigrolineatum",1361,"USFWS"]
["20a",0,"Flowering Plants","No common name","Cyperus neokunthianus",1407,"USFWS"]
["20a",0,"Flowering Plants","Hala pepe","Pleomele fernaldii",1497,"USFWS"]
["20a",0,"Flowering Plants","`Akoko","Chamaesyce eleanoriae",1502,"USFWS"]
["20a",0,"Flowering Plants","Kolea","Myrsine mezii",1521,"USFWS"]
["20a",0,"Flowering Plants","`Akoko","Chamaesyce remyi var. remyi",1607,"USFWS"]
["20a",0,"Flowering Plants","Alani","Melicope degeneri",1609,"USFWS"]
["20a",0,"Flowering Plants","`Anunu","Sicyos macrophyllus",1623,"USFWS"]
["20a",0,"Flowering Plants","No common name","Cyanea purpurellifolia",1636,"USFWS"]
["20a",0,"Flowering Plants","Kampua`a","Kadua (=Hedyotis) fluviatilis",1645,"USFWS"]
["20a",0,"Birds","Ponape mountain starling","Aplonis pelzelni",1658,"USFWS"]
["20a",0,"Flowering Plants","Hulumoa","Korthalsella degeneri",1693,"USFWS"]
["20a",0,"Flowering Plants","`Ohe","Joinvillea ascendens ascendens",1709,"USFWS"]
["20a",0,"Flowering Plants","`Aiea","Nothocestrum latifolium",1760,"USFWS"]
["20a",0,"Flowering Plants","Maui fern","Microlepia strigosa var. mauiensis",1840,"USFWS"]
["20a",0,"Snails","Fragile tree snail","Samoana fragilis",1862,"USFWS"]
["20a",0,"Insects","Pacific Hawaiian damselfly","Megalagrion pacificum",1953,"USFWS"]
["20a",0,"Flowering Plants","Haha","Cyanea kunthiana",1968,"USFWS"]
["20a",0,"Snails","Snail, Lanai tree","Partulina semicarinata",1989,"USFWS"]
["20a",0,"Flowering Plants","Ma`oli`oli","Schiedea pubescens",2036,"USFWS"]
["20a",0,"Flowering Plants","Ha`iwale","Cyrtandra filipes",2085,"USFWS"]
["20a",0,"Flowering Plants","`Awikiwiki","Canavalia napaliensis",2118,"USFWS"]
["20a",0,"Insects","Flying earwig Hawaiian damselfly","Megalagrion nesiotes",2144,"USFWS"]
["20a",0,"Flowering Plants","Na`ena`e","Dubautia waialealae",2154,"USFWS"]
["20a",0,"Flowering Plants","Kaulu","Pteralyxia macrocarpa",2265,"USFWS"]
["20a",0,"Flowering Plants","No common name","Doryopteris takeuchii",2268,"USFWS"]
["20a",0,"Flowering Plants","Ha`iwale","Cyrtandra sessilis",2273,"USFWS"]
["20a",0,"Flowering Plants","Ko`oko`olau","Bidens amplectens",2278,"USFWS"]
["20a",0,"Snails","Humped tree snail","Partula gibba",2364,"USFWS"]
["20a",0,"Flowering Plants","No common name","Schiedea attenuata",2404,"USFWS"]
["20a",0,"Flowering Plants","No common name","Stenogyne kealiae",2517,"USFWS"]
["20a",0,"Flowering Plants","Kopiko","Psychotria grandiflora",2619,"USFWS"]
["20a",0,"Flowering Plants","Makou","Ranunculus hawaiensis",2682,"USFWS"]
["20a",0,"Flowering Plants","`Ala `ala wai nui","Peperomia subpetiolata",2683,"USFWS"]
["20a",0,"Flowering Plants","(=Na`ena`e) lo`ulu","Pritchardia hardyi",2727,"USFWS"]
["20a",0,"Flowering Plants","Kamakahala","Labordia helleri",2778,"USFWS"]
["20a",0,"Ferns and Allies","kilau","Dryopteris glabra var. pusilla",2782,"USFWS"]
["20a",0,"Flowering Plants","Haha","Cyanea obtusa",2860,"USFWS"]
["20a",0,"Flowering Plants","No common name","Phyllostegia bracteata",2934,"USFWS"]
["20a",0,"Flowering Plants","Kolea","Myrsine vaccinioides",2970,"USFWS"]
["20a",0,"Flowering Plants","Ha`iwale","Cyrtandra hematos",3020,"USFWS"]
["20a",0,"Flowering Plants","Na`ena`e","Dubautia plantaginea magnifolia",3049,"USFWS"]
["20a",0,"Flowering Plants","Lo`ulu","Pritchardia lanigera",3054,"USFWS"]
["20a",0,"Flowering Plants","Oahu wild coffee (=kopiko)","Psychotria hexandra ssp. oahuensis",3084,"USFWS"]
["20a",0,"Flowering Plants","Ihi","Portulaca villosa",3116,"USFWS"]
["20a",0,"Flowering Plants","Ho`awa","Pittosporum napaliense",3154,"USFWS"]
["20a",0,"Flowering Plants","Ma`oli`oli","Schiedea hawaiiensis",3175,"USFWS"]
["20a",0,"Snails","no common name","Ostodes strigatus",3224,"USFWS"]
["20a",0,"Flowering Plants","Makou","Ranunculus mauiensis",3292,"USFWS"]
["20a",0,"Snails","Snail, Lanai tree","Partulina variabilis",3385,"USFWS"]
["20a",0,"Flowering Plants","Pilo kea lau li`i","Platydesma rostrata",3387,"USFWS"]
["20a",0,"Flowering Plants","Papala","Charpentiera densiflora",3388,"USFWS"]
["20a",0,"Flowering Plants","Alani","Melicope christophersenii",3472,"USFWS"]
["20a",0,"Flowering Plants","Haha","Cyanea calycina",3540,"USFWS"]
["20a",0,"Flowering Plants","No common name","Phyllostegia brevidens",3592,"USFWS"]
["20a",0,"Flowering Plants","Nohoanu","Geranium hillebrandii",3653,"USFWS"]
["20a",0,"Flowering Plants","Alani","Melicope makahae",3728,"USFWS"]
["20a",0,"Flowering Plants","Hala pepe","Pleomele forbesii",3737,"USFWS"]
["20a",0,"Flowering Plants","Alani","Melicope puberula",3753,"USFWS"]
["20a",0,"Flowering Plants","No common name","Sanicula sandwicensis",3784,"USFWS"]
["20a",0,"Flowering Plants","Kamakahala","Labordia pumila",3832,"USFWS"]
["20a",0,"Flowering Plants","`Akoko","Chamaesyce remyi var. kauaiensis",3871,"USFWS"]
["20a",0,"Snails","Tree snail, Newcomb's","Newcombia cumingi",3876,"USFWS"]
["20a",0,"Flowering Plants","Ufa-halomtano","Heritiera longipetiolata",3999,"USFWS"]
["20a",0,"Insects","Fly, Hawaiian picture-wing","Drosophila digressa",4000,"USFWS"]
["20a",0,"Flowering Plants","No common name","Pittosporum hawaiiense",4007,"USFWS"]
["20a",0,"Flowering Plants","No common name","Schiedea salicaria",4030,"USFWS"]
["20a",0,"Birds","Akikiki","Oreomystis bairdi",4136,"USFWS"]
["20a",0,"Flowering Plants","Ha`iwale","Cyrtandra kaulantha",4201,"USFWS"]
["20a",0,"Flowering Plants","No common name","Wikstroemia villosa",4238,"USFWS"]
["20a",0,"Flowering Plants","No common name","Stenogyne kaalae ssp. sherffii",4297,"USFWS"]
["20a",0,"Insects","Mariana eight-spot butterfly","Hypolimnas octocula mariannensis",4308,"USFWS"]
["20a",0,"Insects","Crimson Hawaiian damselfly","Megalagrion leptodemas",4326,"USFWS"]
["20a",0,"Flowering Plants","Alani","Melicope hiiakae",4377,"USFWS"]
["20a",0,"Insects","Assimulans yellow-faced bee","Hylaeus assimulans",4413,"USFWS"]
["20a",0,"Flowering Plants","No common name","Keysseria (=Lagenifera) erici",4487,"USFWS"]
["20a",0,"Flowering Plants","No common name","Phyllostegia floribunda",4533,"USFWS"]
["20a",0,"Mammals","Pacific sheath-tailed Bat (American Samoa population)","Emballonura semicaudata semicaudata",4564,"USFWS"]
["20a",0,"Flowering Plants","Ko`oko`olau","Bidens micrantha ctenophylla",4589,"USFWS"]
["20a",0,"Flowering Plants","Nohoanu","Geranium kauaiense",4630,"USFWS"]
["20a",0,"Flowering Plants","Wawae`iole","Huperzia (=Phlegmariurus) stemmermanniae",4680,"USFWS"]
["20a",0,"Flowering Plants","No common name","Pittosporum halophilum",4740,"USFWS"]
["20a",0,"Flowering Plants","No common name","Phyllostegia helleri",4754,"USFWS"]
["20a",0,"Flowering Plants","Na`ena`e","Dubautia imbricata imbricata",4858,"USFWS"]
["20a",0,"Birds","Guam rail (Experimental pop)","Rallus owstoni",4889,"USFWS"]
["20a",0,"Insects","Mariana wandering butterfly","Vagrans egistina",5168,"USFWS"]
["20a",0,"Birds","Friendly Ground-Dove (American Samoa DPS)","Gallicolumba stairi",5170,"USFWS"]
["20a",0,"Flowering Plants","Nanu","Gardenia remyi",5186,"USFWS"]
["20a",0,"Insects","Hawaiian yellow-faced bee","Hylaeus longiceps",5333,"USFWS"]
["20a",0,"Flowering Plants","`Ena`ena","Pseudognaphalium (=Gnaphalium) sandwicensium var. molokaiense",5334,"USFWS"]
["20a",0,"Insects","Anthricinan yellow-faced bee","Hylaeus anthracinus",5580,"USFWS"]
["20a",0,"Flowering Plants","No common name","Platydesma remyi",5709,"USFWS"]
["20a",0,"Flowering Plants","Kolea","Myrsine fosbergii",5763,"USFWS"]
["20a",0,"Flowering Plants","Popolo","Cyanea solanacea",5956,"USFWS"]
["20a",0,"Flowering Plants","No common name","Cyrtandra waiolani",5991,"USFWS"]
["20a",0,"Flowering Plants","Haha","Cyanea lanceolata",6019,"USFWS"]
["20a",0,"Flowering Plants","No common name","Festuca hawaiiensis",6176,"USFWS"]
["20a",0,"Insects","Oceanic Hawaiian damselfly","Megalagrion oceanicum",6231,"USFWS"]
["20a",0,"Flowering Plants","No common name","Stenogyne cranwelliae",6257,"USFWS"]
["20a",0,"Flowering Plants","No common name","Cyanea profuga",6303,"USFWS"]
["20a",0,"Birds","Akekee","Loxops caeruleirostris",6522,"USFWS"]
["20a",0,"Flowering Plants","Kopiko","Psychotria hobdyi",6536,"USFWS"]
["20a",0,"Flowering Plants","Hillegrand's reedgrass","Calamagrostis hillebrandii",6632,"USFWS"]
["20a",0,"Flowering Plants","Ha`iwale","Cyrtandra oenobarba",6679,"USFWS"]
["20a",0,"Insects","Easy yellow-faced bee","Hylaeus facilis",6747,"USFWS"]
["20a",0,"Flowering Plants","Pa`iniu","Astelia waialealae",6845,"USFWS"]
["20a",0,"Insects","Orangeblack Hawaiian damselfly","Megalagrion xanthomelas",6867,"USFWS"]
["20a",0,"Flowering Plants","Popolo","Solanum nelsonii",6870,"USFWS"]
["20a",0,"Flowering Plants","Haha","Cyanea marksii",6969,"USFWS"]
["20a",0,"Flowering Plants","No common name","Platydesma cornuta decurrens",7046,"USFWS"]
["20a",0,"Flowering Plants","Holei","Ochrosia haleakalae",7067,"USFWS"]
["20a",0,"Flowering Plants","Maui reedgrass","Calamagrostis expansa",7116,"USFWS"]
["20a",0,"Flowering Plants","lehua makanoe","Lysimachia daphnoides",7170,"USFWS"]
["20a",0,"Flowering Plants","No common name","Phyllostegia hispida",7229,"USFWS"]
["20a",0,"Flowering Plants","No common name","Phyllostegia stachyoides",7254,"USFWS"]
["20a",0,"Insects","Fly, Hawaiian picture-wing","Drosophila sharpi",7261,"USFWS"]
["20a",0,"Flowering Plants","`aku","Cyanea tritomantha",7280,"USFWS"]
["20a",0,"Flowering Plants","No common name","Tetraplasandra lydgatei",7367,"USFWS"]
["20a",0,"Flowering Plants","No common name","Diellia mannii",7529,"USFWS"]
["20a",0,"Flowering Plants","Ko`oko`olau","Bidens campylotheca pentamera",7617,"USFWS"]
["20a",0,"Snails","Langford's tree snail","Partula langfordi",7731,"USFWS"]
["20a",0,"Flowering Plants","`Awikiwiki","Canavalia pubescens",7805,"USFWS"]
["20a",0,"Flowering Plants","No common name","Wikstroemia skottsbergiana",7840,"USFWS"]
["20a",0,"Flowering Plants","No common name","Polyscias bisattenuata",7886,"USFWS"]
["20a",0,"Flowering Plants","Haha","Cyanea asplenifolia",7892,"USFWS"]
["20a",0,"Snails","Guam tree snail","Partula radiolata",7907,"USFWS"]
["20a",0,"Snails","no common name","Eua zebrina",7918,"USFWS"]
["20a",0,"Insects","Hilaris yellow-faced bee","Hylaeus hilaris",7955,"USFWS"]
["20a",0,"Flowering Plants","A`e","Zanthoxylum oahuense",7979,"USFWS"]
["20a",0,"Mammals","Pacific sheath-tailed Bat","Emballonura semicaudata rotensis",8166,"USFWS"]
["20a",0,"Flowering Plants","No common name","Keysseria (=Lagenifera) helenae",8254,"USFWS"]
["20a",0,"Flowering Plants","Ko`oko`olau","Bidens campylotheca waihoiensis",8277,"USFWS"]
["20a",0,"Flowering Plants","No common name","Platydesma cornuta cornuta",8303,"USFWS"]
["20a",0,"Flowering Plants","Ko`oko`olau","Bidens conjuncta",8338,"USFWS"]
["20a",0,"Flowering Plants","No common name","Cyrtandra gracilis",8347,"USFWS"]
["20a",0,"Flowering Plants","Alani","Melicope paniculata",8357,"USFWS"]
["20a",0,"Birds","Hawaiian (='lo) Hawk","Buteo solitarius",8386,"USFWS"]
["20a",0,"Mammals","Mariana Fruit Bat ","Pteropus mariannus mariannus",8962,"USFWS"]
["20a",0,"Insects","Rota blue damselfly","Ischnura luta",9282,"USFWS"]
["20a",0,"Snails","Oahu tree snail","Achatinella sowerbyana",9395,"USFWS"]
["20a",0,"Snails","Oahu tree snail","Achatinella livida",9397,"USFWS"]
["20a",0,"Snails","Oahu tree snail","Achatinella mustelina",9399,"USFWS"]
["20a",0,"Snails","Oahu tree snail","Achatinella apexfulva",9401,"USFWS"]
["20a",0,"Snails","Oahu tree snail","Achatinella fulgens",9403,"USFWS"]
["20a",0,"Snails","Oahu tree snail","Achatinella concavospira",9405,"USFWS"]
["20a",0,"Snails","Oahu tree snail","Achatinella stewartii",9407,"USFWS"]
["20a",0,"Snails","Oahu tree snail","Achatinella decipiens",9409,"USFWS"]
["20a",0,"Snails","Oahu tree snail","Achatinella pulcherrima",9411,"USFWS"]
["20a",0,"Snails","Oahu tree snail","Achatinella fuscobasis",9413,"USFWS"]
["20a",0,"Snails","Oahu tree snail","Achatinella lila",9415,"USFWS"]
["20a",0,"Snails","Oahu tree snail","Achatinella leucorraphe",9417,"USFWS"]
["20a",0,"Snails","Oahu tree snail","Achatinella curta",9419,"USFWS"]
["20a",0,"Snails","Oahu tree snail","Achatinella bulimoides",9421,"USFWS"]
["20a",0,"Snails","Oahu tree snail","Achatinella byronii",9423,"USFWS"]
["20a",0,"Snails","Oahu tree snail","Achatinella dimorpha",9439,"USFWS"]
["20a",0,"Snails","Oahu tree snail","Achatinella elegans",9441,"USFWS"]
["20a",0,"Snails","Oahu tree snail","Achatinella juncea",9443,"USFWS"]
["20a",0,"Snails","Oahu tree snail","Achatinella lehuiensis",9445,"USFWS"]
["20a",0,"Snails","Oahu tree snail","Achatinella papyracea",9447,"USFWS"]
["20a",0,"Snails","Oahu tree snail","Achatinella rosea",9449,"USFWS"]
["20a",0,"Snails","Oahu tree snail","Achatinella spaldingi",9451,"USFWS"]
["20a",0,"Snails","Oahu tree snail","Achatinella swiftii",9453,"USFWS"]
["20a",0,"Snails","Oahu tree snail","Achatinella thaahumi",9455,"USFWS"]
["20a",0,"Snails","Oahu tree snail","Achatinella valida",9457,"USFWS"]
["20a",0,"Snails","Oahu tree snail","Achatinella abbreviata",9459,"USFWS"]
["20a",0,"Snails","Oahu tree snail","Achatinella bellula",9461,"USFWS"]
["20a",0,"Snails","Oahu tree snail","Achatinella cestus",9465,"USFWS"]
["20a",0,"Snails","Oahu tree snail","Achatinella juddi",9467,"USFWS"]
["20a",0,"Snails","Oahu tree snail","Achatinella lorata",9469,"USFWS"]
["20a",0,"Snails","Oahu tree snail","Achatinella phaeozona",9471,"USFWS"]
["20a",0,"Snails","Oahu tree snail","Achatinella pupukanioe",9473,"USFWS"]
["20a",0,"Snails","Oahu tree snail","Achatinella taeniolata",9475,"USFWS"]
["20a",0,"Snails","Oahu tree snail","Achatinella turgida",9477,"USFWS"]
["20a",0,"Snails","Oahu tree snail","Achatinella viridans",9479,"USFWS"]
["20a",0,"Snails","Oahu tree snail","Achatinella vulpina",9483,"USFWS"]
["20a",0,"Flowering Plants","Haha","Cyanea dolichopoda",9951,"USFWS"]
["20a",0,"Flowering Plants","Haha","Cyanea kolekoleensis",9952,"USFWS"]
["20a",0,"Flowering Plants","Haiwale","Cyrtandra paliku",9953,"USFWS"]
["20a",0,"Flowering Plants","Naenae","Dubautia kalalauensis",9954,"USFWS"]
["20a",0,"Flowering Plants","Naenae","Dubautia kenwoodii",9955,"USFWS"]
["20a",0,"Flowering Plants","No common name","Lysimachia iniki",9956,"USFWS"]
["20a",0,"Flowering Plants","No common name","Lysimachia pendens",9957,"USFWS"]
["20a",0,"Flowering Plants","No common name","Lysimachia scopulensis",9958,"USFWS"]
["20a",0,"Flowering Plants","Kolea","Myrsine knudsenii",9959,"USFWS"]
["20a",0,"Flowering Plants","No common name","Phyllostegia renovans",9960,"USFWS"]
["20a",0,"Flowering Plants","No common name","Polyscias flynnii",9961,"USFWS"]
["20a",0,"Flowering Plants","No common name","Doryopteris angelica",9962,"USFWS"]
["20a",0,"Ferns and Allies","Palapalai aumakua","Dryopteris crinalis var. podosorus",9963,"USFWS"]
["20a",0,"Insects","Hawaiian yellow-faced bee","Hylaeus mana",10008,"USFWS"]
["20a",0,"Insects","Hawaiian yellow-faced bee","Hylaeus kuakea",10009,"USFWS"]
["20a",0,"Birds","`I'iwi","Drepanis coccinea",10073,"USFWS"]
["20a",0,"Flowering Plants","haha","Cyanea duvalliorum",10222,"USFWS"]
["20a",0,"Flowering Plants","haha nui","Cyanea horrida",10223,"USFWS"]
["20a",0,"Flowering Plants","haha","Cyanea magnicalyx",10224,"USFWS"]
["20a",0,"Flowering Plants","haha","Cyanea maritae",10225,"USFWS"]
["20a",0,"Flowering Plants","haha","Cyanea munroi",10227,"USFWS"]
["20a",0,"Flowering Plants","haiwale","Cyrtandra ferripilosa",10228,"USFWS"]
["20a",0,"Flowering Plants","sea bean","Mucuna sloanei persericea",10229,"USFWS"]
["20a",0,"Flowering Plants","No common name","Phyllostegia pilosa",10231,"USFWS"]
["20a",0,"Flowering Plants","No common name","Schiedea jacobii",10232,"USFWS"]
["20a",0,"Flowering Plants","No common name","Schiedea laui",10233,"USFWS"]
["20a",0,"Flowering Plants","No common name","Stenogyne kauaulaensis",10234,"USFWS"]
["20a",0,"Flowering Plants","No common name","Festuca molokaiensis",10235,"USFWS"]
["20a",0,"Insects","Rusty patched bumble bee","Bombus affinis",10383,"USFWS"]
["20a",0,"Flowering Plants","kookoolau","Bidens hillebrandiana ssp. hillebrandiana",10479,"USFWS"]
["20a",0,"Flowering Plants","haiwale","Cyrtandra nanawaleensis",10480,"USFWS"]
["20a",0,"Flowering Plants","haiwale","Cyrtandra wagneri",10481,"USFWS"]
["20a",0,"Flowering Plants","No common name","Schiedea diffusa ssp. macraei",10483,"USFWS"]
["20a",0,"Flowering Plants","Menzies ballart","Exocarpos menziesii",10583,"USFWS"]
["20a",0,"Flowering Plants","No common name","Santalum involutum",10584,"USFWS"]
["20a",0,"Flowering Plants","No common name","Sicyos lanceoloideus",10585,"USFWS"]
["20a",0,"Flowering Plants","No common name","Asplenium diellaciniatum",10586,"USFWS"]
["20a",0,"Ferns and Allies","No common name","Deparia kaalaana",10587,"USFWS"]
["20a",0,"Flowering Plants","No common name","Cyanea kauaulaensis",10588,"USFWS"]
["20a",0,"Flowering Plants","Loulu","Pritchardia bakeri",10590,"USFWS"]
["20a",0,"Flowering Plants","No common name","Schiedea diffusa subsp. diffusa",10591,"USFWS"]
["20a",0,"Flowering Plants","No common name","Lepidium orbiculare",10593,"USFWS"]
["20a",0,"Flowering Plants","olua","Hypolepis hawaiiensis var. mauiensis",10594,"USFWS"]
["20a",0,"Flowering Plants","No common name","Labordia lorenciana",10599,"USFWS"]
["20a",0,"Flowering Plants","Cebello halumtano","Bulbophyllum guamense",10719,"USFWS"]
["20a",0,"Flowering Plants","No common name","Dendrobium guamense",10720,"USFWS"]
["20a",0,"Flowering Plants","No common name","Eugenia bryanii",10721,"USFWS"]
["20a",0,"Flowering Plants","Paudedo","Hedyotis megalantha",10722,"USFWS"]
["20a",0,"Flowering Plants","No common name","Maesa walkeri",10723,"USFWS"]
["20a",0,"Flowering Plants","No common name","Nervilia jacksoniae",10724,"USFWS"]
["20a",0,"Flowering Plants","No common name","Phyllanthus saffordii",10725,"USFWS"]
["20a",0,"Flowering Plants","Aplokating-palaoan","Psychotria malaspinae",10726,"USFWS"]
["20a",0,"Flowering Plants","Berenghenas halomtano","Solanum guamense",10727,"USFWS"]
["20a",0,"Flowering Plants","No common name","Tuberolabium guamense",10728,"USFWS"]
["20a",0,"Flowering Plants","Fadang","Cycas micronesica",10729,"USFWS"]
["20a",0,"Reptiles","Slevin's skink","Emoia slevini",10732,"USFWS"]
["20a",0,"Birds","Maui Nukupu`u (honeycreeper)","Hemignathus affinis",11333,"USFWS"]
["20a",0,"Flowering Plants","No Common Name","Tinospora homosepala",11340,"USFWS"]
["20a",1,"Birds","akiapolaau","Hemignathus wilsoni",65,"USFWS"]
["20a",1,"Birds","Hawaiian (=koloa) Duck","Anas wyvilliana",69,"USFWS"]
["20a",1,"Birds","Hawaiian goose","Branta (=Nesochen) sandvicensis",73,"USFWS"]
["20a",1,"Birds","Hawaiian common gallinule","Gallinula chloropus sandvicensis",76,"USFWS"]
["20a",1,"Birds","Hawaiian stilt","Himantopus mexicanus knudseni",104,"USFWS"]
["20a",1,"Birds","Hawaiian coot","Fulica americana alai",108,"USFWS"]
["20a",1,"Birds","Guam kingfisher","Todiramphus cinnamominus",119,"USFWS"]
["20a",1,"Birds","Mariana common moorhen","Gallinula chloropus guami",120,"USFWS"]
["20a",1,"Flowering Plants","`Oha wai","Clermontia drepanomorpha",533,"USFWS"]
["20a",1,"Flowering Plants","Aupaka","Isodendrion longifolium",564,"USFWS"]
["20a",1,"Flowering Plants","No common name","Sanicula purpurea",601,"USFWS"]
["20a",1,"Flowering Plants","Liliwai","Acaena exigua",619,"USFWS"]
["20a",1,"Flowering Plants","Awiwi","Kadua cookiana",724,"USFWS"]
["20a",1,"Flowering Plants","Pilo","Hedyotis mannii",727,"USFWS"]
["20a",1,"Flowering Plants","Kuahiwi laukahi","Plantago princeps",800,"USFWS"]
["20a",1,"Flowering Plants","Nani wai`ale`ale","Viola kauaiensis var. wahiawaensis",865,"USFWS"]
["20a",1,"Flowering Plants","Heau","Exocarpos luteolus",938,"USFWS"]
["20a",1,"Flowering Plants","Nohoanu","Geranium multiflorum",939,"USFWS"]
["20a",1,"Flowering Plants","Kamakahala","Labordia lydgatei",955,"USFWS"]
["20a",1,"Flowering Plants","Nehe","Lipochaeta micrantha",962,"USFWS"]
["20a",1,"Flowering Plants","No common name","Platanthera holochila",983,"USFWS"]
["20a",1,"Flowering Plants","Kuawawaenohu","Schiedea lychnoides",1084,"USFWS"]
["20a",1,"Flowering Plants","Haha","Cyanea dunbarii",1101,"USFWS"]
["20a",1,"Flowering Plants","Haha","Cyanea glabra",1102,"USFWS"]
["20a",1,"Flowering Plants","Pu`uka`a","Cyperus trachysanthos",1108,"USFWS"]
["20a",1,"Flowering Plants","Ha`iwale","Cyrtandra limahuliensis",1110,"USFWS"]
["20a",1,"Flowering Plants","No common name","Phyllostegia waimeae",1135,"USFWS"]
["20a",1,"Flowering Plants","Haha","Cyanea acuminata",1175,"USFWS"]
["20a",1,"Flowering Plants","Kamakahala","Labordia tinifolia var. wahiawaensis",1178,"USFWS"]
["20a",1,"Flowering Plants","Haha","Cyanea copelandii ssp. haleakalaensis",1185,"USFWS"]
["20a",1,"Flowering Plants","Kohe malama malama o kanaloa","Kanaloa kahoolawensis",1187,"USFWS"]
["20a",1,"Ferns and Allies","Ihi`ihi","Marsilea villosa",1200,"USFWS"]
["20a",1,"Ferns and Allies","No common name","Pteris lidgatei",1202,"USFWS"]
["20a",1,"Flowering Plants","haha","Cyanea crispa",1224,"USFWS"]
["20a",1,"Ferns and Allies","Boyds maiden fern","Cyclosorus boydiae",1311,"USFWS"]
["20a",1,"Insects","Blackline Hawaiian damselfly","Megalagrion nigrohamatum nigrolineatum",1361,"USFWS"]
["20a",1,"Flowering Plants","No common name","Cyperus neokunthianus",1407,"USFWS"]
["20a",1,"Flowering Plants","Kolea","Myrsine mezii",1521,"USFWS"]
["20a",1,"Insects","Pacific Hawaiian damselfly","Megalagrion pacificum",1953,"USFWS"]
["20a",1,"Flowering Plants","Haha","Cyanea kunthiana",1968,"USFWS"]
["20a",1,"Insects","Flying earwig Hawaiian damselfly","Megalagrion nesiotes",2144,"USFWS"]
["20a",1,"Flowering Plants","Na`ena`e","Dubautia waialealae",2154,"USFWS"]
["20a",1,"Flowering Plants","Ha`iwale","Cyrtandra sessilis",2273,"USFWS"]
["20a",1,"Flowering Plants","Nohoanu","Geranium hanaense",2758,"USFWS"]
["20a",1,"Flowering Plants","Kamakahala","Labordia helleri",2778,"USFWS"]
["20a",1,"Ferns and Allies","kilau","Dryopteris glabra var. pusilla",2782,"USFWS"]
["20a",1,"Flowering Plants","No common name","Phyllostegia bracteata",2934,"USFWS"]
["20a",1,"Flowering Plants","Lo`ulu","Pritchardia lanigera",3054,"USFWS"]
["20a",1,"Flowering Plants","Papala","Charpentiera densiflora",3388,"USFWS"]
["20a",1,"Flowering Plants","No common name","Phyllostegia brevidens",3592,"USFWS"]
["20a",1,"Flowering Plants","Nohoanu","Geranium hillebrandii",3653,"USFWS"]
["20a",1,"Flowering Plants","Kamakahala","Labordia pumila",3832,"USFWS"]
["20a",1,"Insects","Crimson Hawaiian damselfly","Megalagrion leptodemas",4326,"USFWS"]
["20a",1,"Flowering Plants","No common name","Keysseria (=Lagenifera) erici",4487,"USFWS"]
["20a",1,"Flowering Plants","Nohoanu","Geranium kauaiense",4630,"USFWS"]
["20a",1,"Flowering Plants","Kolea","Myrsine fosbergii",5763,"USFWS"]
["20a",1,"Flowering Plants","No common name","Cyrtandra waiolani",5991,"USFWS"]
["20a",1,"Flowering Plants","Haha","Cyanea lanceolata",6019,"USFWS"]
["20a",1,"Insects","Oceanic Hawaiian damselfly","Megalagrion oceanicum",6231,"USFWS"]
["20a",1,"Birds","Akekee","Loxops caeruleirostris",6522,"USFWS"]
["20a",1,"Flowering Plants","Hillegrand's reedgrass","Calamagrostis hillebrandii",6632,"USFWS"]
["20a",1,"Flowering Plants","Ha`iwale","Cyrtandra oenobarba",6679,"USFWS"]
["20a",1,"Flowering Plants","Pa`iniu","Astelia waialealae",6845,"USFWS"]
["20a",1,"Insects","Orangeblack Hawaiian damselfly","Megalagrion xanthomelas",6867,"USFWS"]
["20a",1,"Flowering Plants","Maui reedgrass","Calamagrostis expansa",7116,"USFWS"]
["20a",1,"Flowering Plants","lehua makanoe","Lysimachia daphnoides",7170,"USFWS"]
["20a",1,"Flowering Plants","No common name","Polyscias bisattenuata",7886,"USFWS"]
["20a",1,"Flowering Plants","A`e","Zanthoxylum oahuense",7979,"USFWS"]
["20a",1,"Flowering Plants","No common name","Keysseria (=Lagenifera) helenae",8254,"USFWS"]
["20a",1,"Flowering Plants","No common name","Platydesma cornuta cornuta",8303,"USFWS"]
["20a",1,"Insects","Rota blue damselfly","Ischnura luta",9282,"USFWS"]
["20a",1,"Flowering Plants","No common name","Phyllostegia renovans",9960,"USFWS"]
["20a",1,"Flowering Plants","No common name","Polyscias flynnii",9961,"USFWS"]
["20a",1,"Ferns and Allies","Palapalai aumakua","Dryopteris crinalis var. podosorus",9963,"USFWS"]
["20a",1,"Flowering Plants","haiwale","Cyrtandra wagneri",10481,"USFWS"]
["20a",1,"Flowering Plants","No common name","Schiedea diffusa ssp. macraei",10483,"USFWS"]
["20a",1,"Ferns and Allies","No common name","Deparia kaalaana",10587,"USFWS"]
["20b",0,"Mammals","Hawaiian Hoary Bat","Lasiurus cinereus semotus",15,"USFWS"]
["20b",0,"Birds","Akiapola`au (honeycreeper)","Hemignathus munroi",65,"USFWS"]
["20b",0,"Birds","Hawaiian (=koloa) Duck","Anas wyvilliana",69,"USFWS"]
["20b",0,"Birds","Hawaiian goose","Branta (=Nesochen) sandvicensis",73,"USFWS"]
["20b",0,"Birds","Crested honeycreeper","Palmeria dolei",74,"USFWS"]
["20b",0,"Birds","Hawaiian common gallinule","Gallinula chloropus sandvicensis",76,"USFWS"]
["20b",0,"Birds","Palila (honeycreeper)","Loxioides bailleui",79,"USFWS"]
["20b",0,"Birds","Maui parrotbill (honeycreeper)","Pseudonestor xanthophrys",81,"USFWS"]
["20b",0,"Birds","Small Kauai thrush (=puaiohi)","Myadestes palmeri",86,"USFWS"]
["20b",0,"Birds","Micronesian megapode","Megapodius laperouse",87,"USFWS"]
["20b",0,"Birds","Hawaii akepa (honeycreeper)","Loxops coccineus coccineus",97,"USFWS"]
["20b",0,"Birds","Maui akepa (honeycreeper)","Loxops coccineus ochraceus",98,"USFWS"]
["20b",0,"Birds","Oahu creeper","Paroreomyza maculata",99,"USFWS"]
["20b",0,"Birds","Hawaiian stilt","Himantopus mexicanus knudseni",104,"USFWS"]
["20b",0,"Birds","Hawaiian coot","Fulica americana alai",108,"USFWS"]
["20b",0,"Birds","Hawaii creeper","Oreomystis mana",112,"USFWS"]
["20b",0,"Birds","Po`ouli (honeycreeper)","Melamprosops phaeosoma",113,"USFWS"]
["20b",0,"Birds","Newell's Townsend's shearwater","Puffinus auricularis newelli",114,"USFWS"]
["20b",0,"Birds","Mariana crow (=aga)","Corvus kubaryi",118,"USFWS"]
["20b",0,"Birds","Guam kingfisher","Todiramphus cinnamominus",119,"USFWS"]
["20b",0,"Birds","Mariana common moorhen","Gallinula chloropus guami",120,"USFWS"]
["20b",0,"Birds","Guam rail","Rallus owstoni",121,"USFWS"]
["20b",0,"Birds","Mariana gray swiftlet","Aerodramus vanikorensis bartschi",148,"USFWS"]
["20b",0,"Birds","Oahu elepaio","Chasiempis sandwichensis ibidis",150,"USFWS"]
["20b",0,"Insects","Moth, Blackburn's sphinx","Manduca blackburni",446,"USFWS"]
["20b",0,"Flowering Plants","No common name","Achyranthes mutica",497,"USFWS"]
["20b",0,"Flowering Plants","Uhiuhi","Caesalpinia kavaiense",518,"USFWS"]
["20b",0,"Flowering Plants","Haha","Cyanea humboldtiana",535,"USFWS"]
["20b",0,"Flowering Plants","Ha`iwale","Cyrtandra dentata",536,"USFWS"]
["20b",0,"Flowering Plants","Oha","Delissea rivularis",537,"USFWS"]
["20b",0,"Flowering Plants","Fosberg's love grass","Eragrostis fosbergii",545,"USFWS"]
["20b",0,"Flowering Plants","`Akoko","Euphorbia haeleeleana",549,"USFWS"]
["20b",0,"Flowering Plants","Hau kuahiwi","Hibiscadelphus giffardianus",560,"USFWS"]
["20b",0,"Flowering Plants","Hau kuahiwi","Hibiscadelphus hualalaiensis",561,"USFWS"]
["20b",0,"Flowering Plants","Aupaka","Isodendrion laurifolium",563,"USFWS"]
["20b",0,"Flowering Plants","Aupaka","Isodendrion longifolium",564,"USFWS"]
["20b",0,"Flowering Plants","Kamakahala","Labordia triflora",565,"USFWS"]
["20b",0,"Flowering Plants","`Anaunau","Lepidium arbuscula",567,"USFWS"]
["20b",0,"Flowering Plants","No common name","Lobelia gaudichaudii ssp. koolauensis",572,"USFWS"]
["20b",0,"Flowering Plants","Alani","Melicope saint-johnii",575,"USFWS"]
["20b",0,"Flowering Plants","Kolea","Myrsine linearifolia",577,"USFWS"]
["20b",0,"Flowering Plants","No common name","Neraudia ovata",581,"USFWS"]
["20b",0,"Flowering Plants","Lau `ehu","Panicum niihauense",584,"USFWS"]
["20b",0,"Flowering Plants","No common name","Phyllostegia hirsuta",589,"USFWS"]
["20b",0,"Flowering Plants","No common name","Phyllostegia knudsenii",590,"USFWS"]
["20b",0,"Flowering Plants","No common name","Phyllostegia parviflora",591,"USFWS"]
["20b",0,"Flowering Plants","Wahane","Pritchardia aylmer-robinsonii",597,"USFWS"]
["20b",0,"Flowering Plants","Lo`ulu","Pritchardia remota",598,"USFWS"]
["20b",0,"Flowering Plants","No common name","Sanicula purpurea",601,"USFWS"]
["20b",0,"Flowering Plants","No common name","Schiedea hookeri",602,"USFWS"]
["20b",0,"Flowering Plants","Ma`oli`oli","Schiedea kealiae",603,"USFWS"]
["20b",0,"Flowering Plants","No common name","Schiedea membranacea",604,"USFWS"]
["20b",0,"Flowering Plants","No common name","Schiedea sarmentosa",605,"USFWS"]
["20b",0,"Flowering Plants","No common name","Abutilon eremitopetalum",616,"USFWS"]
["20b",0,"Flowering Plants","Ko`oloa`ula","Abutilon menziesii",617,"USFWS"]
["20b",0,"Flowering Plants","No common name","Abutilon sandwicense",618,"USFWS"]
["20b",0,"Flowering Plants","Liliwai","Acaena exigua",619,"USFWS"]
["20b",0,"Flowering Plants","Mahoe","Alectryon macrococcus",621,"USFWS"]
["20b",0,"Flowering Plants","No common name","Schiedea obovata",622,"USFWS"]
["20b",0,"Flowering Plants","No common name","Schiedea trinervis",623,"USFWS"]
["20b",0,"Flowering Plants","Mauna Loa (=Ka'u) silversword","Argyroxiphium kauense",634,"USFWS"]
["20b",0,"Flowering Plants","`Ahinahina","Argyroxiphium sandwicense ssp. macrocephalum",635,"USFWS"]
["20b",0,"Flowering Plants","Ko`oko`olau","Bidens micrantha ssp. kalealaha",645,"USFWS"]
["20b",0,"Flowering Plants","Ko`oko`olau","Bidens wiebkei",646,"USFWS"]
["20b",0,"Flowering Plants","No common name","Bonamia menziesii",648,"USFWS"]
["20b",0,"Flowering Plants","Olulu","Brighamia insignis",649,"USFWS"]
["20b",0,"Flowering Plants","Pua `ala","Brighamia rockii",650,"USFWS"]
["20b",0,"Flowering Plants","`Awikiwiki","Canavalia molokaiensis",654,"USFWS"]
["20b",0,"Flowering Plants","Kamanomano","Cenchrus agrimonioides",659,"USFWS"]
["20b",0,"Flowering Plants","`Akoko","Chamaesyce celastroides var. kaenana",662,"USFWS"]
["20b",0,"Flowering Plants","No common name","Chamaesyce halemanui",664,"USFWS"]
["20b",0,"Flowering Plants","Ewa Plains `akoko","Chamaesyce skottsbergii var. skottsbergii",665,"USFWS"]
["20b",0,"Flowering Plants","`Oha wai","Clermontia lindseyana",671,"USFWS"]
["20b",0,"Flowering Plants","`Oha wai","Clermontia peleana",672,"USFWS"]
["20b",0,"Flowering Plants","`Oha wai","Clermontia pyrularia",673,"USFWS"]
["20b",0,"Flowering Plants","Kauila","Colubrina oppositifolia",674,"USFWS"]
["20b",0,"Flowering Plants","Haha","Cyanea grimesiana ssp. grimesiana",684,"USFWS"]
["20b",0,"Flowering Plants","Haha","Cyanea mceldowneyi",685,"USFWS"]
["20b",0,"Flowering Plants","Haha","Cyanea shipmanii",686,"USFWS"]
["20b",0,"Flowering Plants","Haha","Cyanea st.-johnii",687,"USFWS"]
["20b",0,"Flowering Plants","Haha","Cyanea superba",688,"USFWS"]
["20b",0,"Flowering Plants","Ha`iwale","Cyrtandra polyantha",690,"USFWS"]
["20b",0,"Flowering Plants","Ha`iwale","Cyrtandra subumbellata",691,"USFWS"]
["20b",0,"Flowering Plants","No common name","Delissea rhytidosperma",692,"USFWS"]
["20b",0,"Flowering Plants","Oha","Delissea subcordata",693,"USFWS"]
["20b",0,"Flowering Plants","Na`ena`e","Dubautia latifolia",697,"USFWS"]
["20b",0,"Flowering Plants","Hawaiian gardenia (=Na`u)","Gardenia brighamii",715,"USFWS"]
["20b",0,"Flowering Plants","Hawaiian red-flowered geranium","Geranium arboreum",717,"USFWS"]
["20b",0,"Flowering Plants","No common name","Gouania hillebrandii",719,"USFWS"]
["20b",0,"Flowering Plants","No common name","Gouania meyenii",720,"USFWS"]
["20b",0,"Flowering Plants","No common name","Gouania vitifolia",721,"USFWS"]
["20b",0,"Flowering Plants","Honohono","Haplostachys haplostachya",722,"USFWS"]
["20b",0,"Flowering Plants","Awiwi","Hedyotis cookiana",724,"USFWS"]
["20b",0,"Flowering Plants","Kio`ele","Kadua coriacea",725,"USFWS"]
["20b",0,"Flowering Plants","No common name","Kadua degeneri",726,"USFWS"]
["20b",0,"Flowering Plants","Pilo","Hedyotis mannii",727,"USFWS"]
["20b",0,"Flowering Plants","No common name","Kadua parvula",728,"USFWS"]
["20b",0,"Flowering Plants","Na Pali beach hedyotis","Hedyotis st.-johnii",729,"USFWS"]
["20b",0,"Flowering Plants","No common name","Hesperomannia arborescens",731,"USFWS"]
["20b",0,"Flowering Plants","No common name","Hesperomannia arbuscula",732,"USFWS"]
["20b",0,"Flowering Plants","No common name","Hesperomannia lydgatei",733,"USFWS"]
["20b",0,"Flowering Plants","Kauai hau kuahiwi","Hibiscadelphus distans",735,"USFWS"]
["20b",0,"Flowering Plants","(=Native yellow hibiscus) ma`o hau hele","Hibiscus brackenridgei",736,"USFWS"]
["20b",0,"Flowering Plants","Clay's hibiscus","Hibiscus clayi",737,"USFWS"]
["20b",0,"Flowering Plants","Koki`o ke`oke`o","Hibiscus waimeae ssp. hannerae",738,"USFWS"]
["20b",0,"Flowering Plants","Kula wahine noho","Isodendrion pyrifolium",741,"USFWS"]
["20b",0,"Flowering Plants","Cooke's koki`o","Kokia cookei",745,"USFWS"]
["20b",0,"Flowering Plants","Koki`o","Kokia drynarioides",746,"USFWS"]
["20b",0,"Flowering Plants","Koki`o","Kokia kauaiensis",747,"USFWS"]
["20b",0,"Flowering Plants","Nehe","Lipochaeta fauriei",755,"USFWS"]
["20b",0,"Flowering Plants","Nehe","Lipochaeta lobata var. leptophylla",756,"USFWS"]
["20b",0,"Flowering Plants","No common name","Lipochaeta venosa",757,"USFWS"]
["20b",0,"Flowering Plants","No common name","Lobelia niihauensis",758,"USFWS"]
["20b",0,"Flowering Plants","No common name","Lobelia oahuensis",759,"USFWS"]
["20b",0,"Flowering Plants","Alani","Melicope balloui",765,"USFWS"]
["20b",0,"Flowering Plants","Alani","Melicope haupuensis",766,"USFWS"]
["20b",0,"Flowering Plants","Alani","Melicope knudsenii",767,"USFWS"]
["20b",0,"Flowering Plants","Alani","Melicope lydgatei",768,"USFWS"]
["20b",0,"Flowering Plants","Alani","Melicope mucronulata",769,"USFWS"]
["20b",0,"Flowering Plants","Alani","Melicope munroi",770,"USFWS"]
["20b",0,"Flowering Plants","Alani","Melicope ovalis",771,"USFWS"]
["20b",0,"Flowering Plants","Alani","Melicope pallida",772,"USFWS"]
["20b",0,"Flowering Plants","Alani","Melicope quadrangularis",773,"USFWS"]
["20b",0,"Flowering Plants","Alani","Melicope reflexa",774,"USFWS"]
["20b",0,"Flowering Plants","Alani","Melicope zahlbruckneri",775,"USFWS"]
["20b",0,"Flowering Plants","No common name","Munroidendron racemosum",778,"USFWS"]
["20b",0,"Flowering Plants","No common name","Neraudia sericea",779,"USFWS"]
["20b",0,"Flowering Plants","`Aiea","Nothocestrum breviflorum",780,"USFWS"]
["20b",0,"Flowering Plants","`Aiea","Nothocestrum peltatum",781,"USFWS"]
["20b",0,"Flowering Plants","Kulu`i","Nototrichium humile",782,"USFWS"]
["20b",0,"Flowering Plants","Carter's panicgrass","Panicum fauriei var. carteri",788,"USFWS"]
["20b",0,"Flowering Plants","Makou","Peucedanum sandwicense",795,"USFWS"]
["20b",0,"Flowering Plants","Kuahiwi laukahi","Plantago princeps",800,"USFWS"]
["20b",0,"Flowering Plants","Hawaiian bluegrass","Poa sandvicensis",801,"USFWS"]
["20b",0,"Flowering Plants","Po`e","Portulaca sclerocarpa",806,"USFWS"]
["20b",0,"Flowering Plants","Lo`ulu","Pritchardia munroi",808,"USFWS"]
["20b",0,"Flowering Plants","Kaulu","Pteralyxia kauaiensis",810,"USFWS"]
["20b",0,"Flowering Plants","No common name","Remya kauaiensis",814,"USFWS"]
["20b",0,"Flowering Plants","Maui remya","Remya mauiensis",815,"USFWS"]
["20b",0,"Flowering Plants","Dwarf naupaka","Scaevola coriacea",820,"USFWS"]
["20b",0,"Flowering Plants","Diamond Head schiedea","Schiedea adamantis",821,"USFWS"]
["20b",0,"Flowering Plants","No common name","Schiedea kaalae",822,"USFWS"]
["20b",0,"Flowering Plants","No common name","Silene alexandri",829,"USFWS"]
["20b",0,"Flowering Plants","No common name","Silene lanceolata",830,"USFWS"]
["20b",0,"Flowering Plants","Popolo ku mai","Solanum incompletum",832,"USFWS"]
["20b",0,"Flowering Plants","`Aiakeakua, popolo","Solanum sandwicense",833,"USFWS"]
["20b",0,"Flowering Plants","No common name","Stenogyne angustifolia angustifolia",838,"USFWS"]
["20b",0,"Flowering Plants","No common name","Stenogyne kanehoana",839,"USFWS"]
["20b",0,"Flowering Plants","No common name","Tetramolopium arenarium",845,"USFWS"]
["20b",0,"Flowering Plants","Pamakani","Tetramolopium capillare",846,"USFWS"]
["20b",0,"Flowering Plants","No common name","Tetramolopium filiforme",847,"USFWS"]
["20b",0,"Flowering Plants","No common name","Tetramolopium lepidotum ssp. lepidotum",848,"USFWS"]
["20b",0,"Flowering Plants","No common name","Tetramolopium remyi",849,"USFWS"]
["20b",0,"Flowering Plants","No common name","Tetramolopium rockii",850,"USFWS"]
["20b",0,"Flowering Plants","`Ohe`ohe","Tetraplasandra gymnocarpa",851,"USFWS"]
["20b",0,"Flowering Plants","Opuhe","Urera kaalae",860,"USFWS"]
["20b",0,"Flowering Plants","Hawaiian vetch","Vicia menziesii",861,"USFWS"]
["20b",0,"Flowering Plants","No common name","Vigna o-wahuensis",862,"USFWS"]
["20b",0,"Flowering Plants","Pamakani","Viola chamissoniana ssp. chamissoniana",863,"USFWS"]
["20b",0,"Flowering Plants","No common name","Viola helenae",864,"USFWS"]
["20b",0,"Flowering Plants","Nani wai`ale`ale","Viola kauaiensis var. wahiawaensis",865,"USFWS"]
["20b",0,"Flowering Plants","No common name","Viola lanaiensis",866,"USFWS"]
["20b",0,"Flowering Plants","No common name","Viola oahuensis",867,"USFWS"]
["20b",0,"Flowering Plants","Dwarf iliau","Wilkesia hobdyi",868,"USFWS"]
["20b",0,"Flowering Plants","A`e","Zanthoxylum hawaiiense",869,"USFWS"]
["20b",0,"Flowering Plants","Round-leaved chaff-flower","Achyranthes splendens var. rotundata",874,"USFWS"]
["20b",0,"Flowering Plants","`Ahinahina","Argyroxiphium sandwicense ssp. sandwicense",882,"USFWS"]
["20b",0,"Flowering Plants","Haha","Cyanea pinnatifida",915,"USFWS"]
["20b",0,"Flowering Plants","Haha","Cyanea platyphylla",916,"USFWS"]
["20b",0,"Flowering Plants","Haha","Cyanea stictophylla",917,"USFWS"]
["20b",0,"Flowering Plants","Ha`iwale","Cyrtandra giffardii",919,"USFWS"]
["20b",0,"Flowering Plants","Heau","Exocarpos luteolus",938,"USFWS"]
["20b",0,"Flowering Plants","Nohoanu","Geranium multiflorum",939,"USFWS"]
["20b",0,"Flowering Plants","Koki`o ke`oke`o","Hibiscus arnottianus ssp. immaculatus",947,"USFWS"]
["20b",0,"Flowering Plants","Hilo ischaemum","Ischaemum byrone",951,"USFWS"]
["20b",0,"Flowering Plants","Aupaka","Isodendrion hosakae",952,"USFWS"]
["20b",0,"Flowering Plants","Kamakahala","Labordia cyrtandrae",954,"USFWS"]
["20b",0,"Flowering Plants","Kamakahala","Labordia lydgatei",955,"USFWS"]
["20b",0,"Flowering Plants","Nehe","Lipochaeta kamolensis",961,"USFWS"]
["20b",0,"Flowering Plants","Nehe","Lipochaeta micrantha",962,"USFWS"]
["20b",0,"Flowering Plants","Nehe","Melanthera tenuifolia",963,"USFWS"]
["20b",0,"Flowering Plants","Nehe","Lipochaeta waimeaensis",964,"USFWS"]
["20b",0,"Flowering Plants","No common name","Lobelia monostachya",965,"USFWS"]
["20b",0,"Flowering Plants","No common name","Lysimachia filifolia",968,"USFWS"]
["20b",0,"Flowering Plants","No common name","Phyllostegia mollis",981,"USFWS"]
["20b",0,"Flowering Plants","No common name","Platanthera holochila",983,"USFWS"]
["20b",0,"Flowering Plants","Mann's bluegrass","Poa mannii",986,"USFWS"]
["20b",0,"Flowering Plants","No common name","Poa siphonoglossa",987,"USFWS"]
["20b",0,"Flowering Plants","Lanai sandalwood (=`iliahi)","Santalum freycinetianum var. lanaiense",993,"USFWS"]
["20b",0,"Flowering Plants","Ohai","Sesbania tomentosa",999,"USFWS"]
["20b",0,"Flowering Plants","No common name","Silene hawaiiensis",1001,"USFWS"]
["20b",0,"Flowering Plants","No common name","Xylosma crenatum",1016,"USFWS"]
["20b",0,"Flowering Plants","No common name","Cyperus pennatiformis",1032,"USFWS"]
["20b",0,"Flowering Plants","Hayun Iagu (=(Guam), Tronkon guafi (Rota))","Serianthes nelsonii",1038,"USFWS"]
["20b",0,"Flowering Plants","Haha","Cyanea grimesiana ssp. obatae",1049,"USFWS"]
["20b",0,"Flowering Plants","Haha","Cyanea hamatiflora ssp. carlsonii",1050,"USFWS"]
["20b",0,"Flowering Plants","Haha","Cyanea lobata",1051,"USFWS"]
["20b",0,"Flowering Plants","Haha","Cyanea macrostegia ssp. gibsonii",1052,"USFWS"]
["20b",0,"Flowering Plants","Na`ena`e","Dubautia herbstobatae",1054,"USFWS"]
["20b",0,"Flowering Plants","Lo`ulu","Pritchardia kaalae",1062,"USFWS"]
["20b",0,"Flowering Plants","Lo`ulu","Pritchardia schattaueri",1063,"USFWS"]
["20b",0,"Flowering Plants","Ma`oli`oli","Schiedea apokremnos",1065,"USFWS"]
["20b",0,"Flowering Plants","No common name","Schiedea haleakalensis",1066,"USFWS"]
["20b",0,"Flowering Plants","No common name","Schiedea helleri",1067,"USFWS"]
["20b",0,"Flowering Plants","No common name","Schiedea lydgatei",1068,"USFWS"]
["20b",0,"Flowering Plants","No common name","Schiedea spergulina var. leiopoda",1069,"USFWS"]
["20b",0,"Flowering Plants","No common name","Schiedea spergulina var. spergulina",1070,"USFWS"]
["20b",0,"Flowering Plants","Laulihilihi","Schiedea stellarioides",1071,"USFWS"]
["20b",0,"Flowering Plants","No common name","Alsinidendron viscosum",1075,"USFWS"]
["20b",0,"Flowering Plants","No common name","Remya montgomeryi",1083,"USFWS"]
["20b",0,"Flowering Plants","Kuawawaenohu","Schiedea lychnoides",1084,"USFWS"]
["20b",0,"Flowering Plants","Awiwi","Centaurium sebaeoides",1093,"USFWS"]
["20b",0,"Flowering Plants","`Akoko","Chamaesyce kuwaleana",1094,"USFWS"]
["20b",0,"Flowering Plants","`Oha wai","Clermontia oblongifolia ssp. brevipes",1097,"USFWS"]
["20b",0,"Flowering Plants","`Oha wai","Clermontia oblongifolia ssp. mauiensis",1098,"USFWS"]
["20b",0,"Flowering Plants","Haha","Cyanea asarifolia",1099,"USFWS"]
["20b",0,"Flowering Plants","Haha","Cyanea glabra",1102,"USFWS"]
["20b",0,"Flowering Plants","Haha","Cyanea mannii",1103,"USFWS"]
["20b",0,"Flowering Plants","Haha","Cyanea procera",1104,"USFWS"]
["20b",0,"Flowering Plants","Haha","Cyanea recta",1105,"USFWS"]
["20b",0,"Flowering Plants","Haha","Cyanea truncata",1106,"USFWS"]
["20b",0,"Flowering Plants","Haha","Cyanea undulata",1107,"USFWS"]
["20b",0,"Flowering Plants","Pu`uka`a","Cyperus trachysanthos",1108,"USFWS"]
["20b",0,"Flowering Plants","Mapele","Cyrtandra cyaneoides",1109,"USFWS"]
["20b",0,"Flowering Plants","Ha`iwale","Cyrtandra limahuliensis",1110,"USFWS"]
["20b",0,"Flowering Plants","Ha`iwale","Cyrtandra tintinnabula",1111,"USFWS"]
["20b",0,"Flowering Plants","Ha`iwale","Cyrtandra viridiflora",1112,"USFWS"]
["20b",0,"Flowering Plants","Na`ena`e","Dubautia pauciflorula",1113,"USFWS"]
["20b",0,"Flowering Plants","Na`ena`e","Dubautia plantaginea ssp. humilis",1114,"USFWS"]
["20b",0,"Flowering Plants","Nioi","Eugenia koolauensis",1116,"USFWS"]
["20b",0,"Flowering Plants","Mehamehame","Flueggea neowawraea",1117,"USFWS"]
["20b",0,"Flowering Plants","Kopa","Hedyotis schlechtendahliana var. remyi",1118,"USFWS"]
["20b",0,"Flowering Plants","No common name","Lysimachia lydgatei",1128,"USFWS"]
["20b",0,"Flowering Plants","No common name","Lysimachia maxima",1129,"USFWS"]
["20b",0,"Flowering Plants","No common name","Mariscus fauriei",1131,"USFWS"]
["20b",0,"Flowering Plants","Alani","Melicope adscendens",1132,"USFWS"]
["20b",0,"Flowering Plants","Kolea","Myrsine juddii",1133,"USFWS"]
["20b",0,"Flowering Plants","No common name","Phyllostegia waimeae",1135,"USFWS"]
["20b",0,"Flowering Plants","Kiponapona","Phyllostegia racemosa",1136,"USFWS"]
["20b",0,"Flowering Plants","No common name","Phyllostegia velutina",1137,"USFWS"]
["20b",0,"Flowering Plants","No common name","Phyllostegia warshaueri",1138,"USFWS"]
["20b",0,"Flowering Plants","No common name","Phyllostegia wawrana",1139,"USFWS"]
["20b",0,"Flowering Plants","Kuahiwi laukahi","Plantago hawaiensis",1140,"USFWS"]
["20b",0,"Flowering Plants","Hala pepe","Pleomele hawaiiensis",1141,"USFWS"]
["20b",0,"Flowering Plants","Lo`ulu","Pritchardia affinis",1142,"USFWS"]
["20b",0,"Flowering Plants","Lo`ulu","Pritchardia napaliensis",1143,"USFWS"]
["20b",0,"Flowering Plants","Lo`ulu","Pritchardia viscosa",1144,"USFWS"]
["20b",0,"Flowering Plants","No common name","Sanicula mariversa",1146,"USFWS"]
["20b",0,"Flowering Plants","No common name","Schiedea kauaiensis",1147,"USFWS"]
["20b",0,"Flowering Plants","No common name","Schiedea nuttallii",1148,"USFWS"]
["20b",0,"Flowering Plants","`Anunu","Sicyos alba",1151,"USFWS"]
["20b",0,"Flowering Plants","No common name","Silene perlmanii",1152,"USFWS"]
["20b",0,"Flowering Plants","No common name","Spermolepis hawaiiensis",1154,"USFWS"]
["20b",0,"Flowering Plants","No common name","Stenogyne bifida",1155,"USFWS"]
["20b",0,"Flowering Plants","No common name","Stenogyne campanulata",1156,"USFWS"]
["20b",0,"Flowering Plants","No common name","Trematolobelia singularis",1157,"USFWS"]
["20b",0,"Flowering Plants","A`e","Zanthoxylum dipetalum var. tomentosum",1159,"USFWS"]
["20b",0,"Flowering Plants","No common name","Phyllostegia mannii",1163,"USFWS"]
["20b",0,"Flowering Plants","Haha","Cyanea acuminata",1175,"USFWS"]
["20b",0,"Flowering Plants","Haha","Cyanea remyi",1176,"USFWS"]
["20b",0,"Flowering Plants","Hau kuahiwi","Hibiscadelphus woodii",1177,"USFWS"]
["20b",0,"Flowering Plants","Kamakahala","Labordia tinifolia var. wahiawaensis",1178,"USFWS"]
["20b",0,"Flowering Plants","`Akoko","Chamaesyce herbstii",1179,"USFWS"]
["20b",0,"Flowering Plants","`Akoko","Chamaesyce rockii",1180,"USFWS"]
["20b",0,"Flowering Plants","Haha","Cyanea koolauensis",1181,"USFWS"]
["20b",0,"Flowering Plants","Haha","Cyanea longiflora",1182,"USFWS"]
["20b",0,"Flowering Plants","Nanu","Gardenia mannii",1183,"USFWS"]
["20b",0,"Flowering Plants","No common name","Phyllostegia kaalaensis",1184,"USFWS"]
["20b",0,"Flowering Plants","Haha","Cyanea copelandii ssp. haleakalaensis",1185,"USFWS"]
["20b",0,"Flowering Plants","Haha","Cyanea hamatiflora ssp. hamatiflora",1186,"USFWS"]
["20b",0,"Flowering Plants","Kohe malama malama o kanaloa","Kanaloa kahoolawensis",1187,"USFWS"]
["20b",0,"Flowering Plants","`Oha wai","Clermontia samuelii",1188,"USFWS"]
["20b",0,"Flowering Plants","Pendant kihi fern","Adenophorus periens",1193,"USFWS"]
["20b",0,"Flowering Plants","No common name","Asplenium fragile insulare",1194,"USFWS"]
["20b",0,"Flowering Plants","Asplenium-leaved diellia","Diellia erecta",1196,"USFWS"]
["20b",0,"Flowering Plants","No common name","Diellia falcata",1197,"USFWS"]
["20b",0,"Flowering Plants","No common name","Diplazium molokaiense",1198,"USFWS"]
["20b",0,"Ferns and Allies","Ihi`ihi","Marsilea villosa",1200,"USFWS"]
["20b",0,"Ferns and Allies","No common name","Pteris lidgatei",1202,"USFWS"]
["20b",0,"Flowering Plants","Pauoa","Ctenitis squamigera",1205,"USFWS"]
["20b",0,"Flowering Plants","Wawae`iole","Huperzia mannii",1207,"USFWS"]
["20b",0,"Flowering Plants","Wawae`iole","Huperzia nutans",1208,"USFWS"]
["20b",0,"Flowering Plants","No common name","Diellia unisora",1211,"USFWS"]
["20b",0,"Flowering Plants","No common name","Diellia pallida",1218,"USFWS"]
["20b",0,"Birds","Nightingale reed warbler (old world warbler)","Acrocephalus luscinia",1222,"USFWS"]
["20b",0,"Flowering Plants","`Akoko","Chamaesyce deppeana",1223,"USFWS"]
["20b",0,"Flowering Plants","haha","Cyanea crispa",1224,"USFWS"]
["20b",0,"Flowering Plants","No common name","Neraudia angulata",1226,"USFWS"]
["20b",0,"Flowering Plants","Ha`iwale","Cyrtandra munroi",1230,"USFWS"]
["20b",0,"Flowering Plants","Kamakahala","Labordia tinifolia var. lanaiensis",1232,"USFWS"]
["20b",0,"Birds","Rota bridled white-eye","Zosterops rotensis",1241,"USFWS"]
["20b",0,"Insects","Pomace fly, [unnamed]","Drosophila aglaia",1248,"USFWS"]
["20b",0,"Insects","Pomace fly, [unnamed]","Drosophila heteroneura",1249,"USFWS"]
["20b",0,"Insects","Pomace fly, [unnamed]","Drosophila montgomeryi",1250,"USFWS"]
["20b",0,"Insects","Pomace fly, [unnamed]","Drosophila mulli",1251,"USFWS"]
["20b",0,"Insects","Pomace fly, [unnamed]","Drosophila musaphilia",1252,"USFWS"]
["20b",0,"Insects","Pomace fly, [unnamed]","Drosophila neoclavisetae",1253,"USFWS"]
["20b",0,"Insects","Pomace fly, [unnamed]","Drosophila obatai",1254,"USFWS"]
["20b",0,"Insects","Pomace fly, [unnamed]","Drosophila substenoptera",1255,"USFWS"]
["20b",0,"Insects","Pomace fly, [unnamed]","Drosophila tarphytrichia",1256,"USFWS"]
["20b",0,"Insects","Pomace fly, [unnamed]","Drosophila hemipeza",1257,"USFWS"]
["20b",0,"Insects","Pomace fly, [unnamed]","Drosophila ochrobasis",1258,"USFWS"]
["20b",0,"Insects","Pomace fly, [unnamed]","Drosophila differens",1259,"USFWS"]
["20b",0,"Flowering Plants","No common name","Nesogenes rotensis",1264,"USFWS"]
["20b",0,"Flowering Plants","No common name","Osmoxylon mariannense",1265,"USFWS"]
["20b",0,"Flowering Plants","No common name","Tabernaemontana rotensis",1266,"USFWS"]
["20b",0,"Flowering Plants","Haha","Cyanea eleeleensis",1278,"USFWS"]
["20b",0,"Ferns and Allies","Boyds maiden fern","Cyclosorus boydiae",1311,"USFWS"]
["20b",0,"Flowering Plants","Ha`iwale","Cyrtandra oxybapha",1349,"USFWS"]
["20b",0,"Insects","Blackline Hawaiian damselfly","Megalagrion nigrohamatum nigrolineatum",1361,"USFWS"]
["20b",0,"Flowering Plants","Hala pepe","Pleomele fernaldii",1497,"USFWS"]
["20b",0,"Flowering Plants","`Akoko","Chamaesyce eleanoriae",1502,"USFWS"]
["20b",0,"Flowering Plants","Kolea","Myrsine mezii",1521,"USFWS"]
["20b",0,"Flowering Plants","`Akoko","Chamaesyce remyi var. remyi",1607,"USFWS"]
["20b",0,"Flowering Plants","Alani","Melicope degeneri",1609,"USFWS"]
["20b",0,"Flowering Plants","`Anunu","Sicyos macrophyllus",1623,"USFWS"]
["20b",0,"Flowering Plants","No common name","Cyanea purpurellifolia",1636,"USFWS"]
["20b",0,"Flowering Plants","Kampua`a","Kadua (=Hedyotis) fluviatilis",1645,"USFWS"]
["20b",0,"Birds","Ponape mountain starling","Aplonis pelzelni",1658,"USFWS"]
["20b",0,"Flowering Plants","Hulumoa","Korthalsella degeneri",1693,"USFWS"]
["20b",0,"Flowering Plants","`Ohe","Joinvillea ascendens ascendens",1709,"USFWS"]
["20b",0,"Flowering Plants","`Aiea","Nothocestrum latifolium",1760,"USFWS"]
["20b",0,"Flowering Plants","Maui fern","Microlepia strigosa var. mauiensis",1840,"USFWS"]
["20b",0,"Snails","Fragile tree snail","Samoana fragilis",1862,"USFWS"]
["20b",0,"Insects","Pacific Hawaiian damselfly","Megalagrion pacificum",1953,"USFWS"]
["20b",0,"Flowering Plants","Haha","Cyanea kunthiana",1968,"USFWS"]
["20b",0,"Snails","Snail, Lanai tree","Partulina semicarinata",1989,"USFWS"]
["20b",0,"Flowering Plants","Ma`oli`oli","Schiedea pubescens",2036,"USFWS"]
["20b",0,"Flowering Plants","Ha`iwale","Cyrtandra filipes",2085,"USFWS"]
["20b",0,"Flowering Plants","`Awikiwiki","Canavalia napaliensis",2118,"USFWS"]
["20b",0,"Insects","Flying earwig Hawaiian damselfly","Megalagrion nesiotes",2144,"USFWS"]
["20b",0,"Flowering Plants","Na`ena`e","Dubautia waialealae",2154,"USFWS"]
["20b",0,"Flowering Plants","Kaulu","Pteralyxia macrocarpa",2265,"USFWS"]
["20b",0,"Flowering Plants","No common name","Doryopteris takeuchii",2268,"USFWS"]
["20b",0,"Flowering Plants","Ha`iwale","Cyrtandra sessilis",2273,"USFWS"]
["20b",0,"Flowering Plants","Ko`oko`olau","Bidens amplectens",2278,"USFWS"]
["20b",0,"Snails","Humped tree snail","Partula gibba",2364,"USFWS"]
["20b",0,"Flowering Plants","No common name","Schiedea attenuata",2404,"USFWS"]
["20b",0,"Flowering Plants","No common name","Stenogyne kealiae",2517,"USFWS"]
["20b",0,"Flowering Plants","Kopiko","Psychotria grandiflora",2619,"USFWS"]
["20b",0,"Flowering Plants","Makou","Ranunculus hawaiensis",2682,"USFWS"]
["20b",0,"Flowering Plants","`Ala `ala wai nui","Peperomia subpetiolata",2683,"USFWS"]
["20b",0,"Flowering Plants","(=Na`ena`e) lo`ulu","Pritchardia hardyi",2727,"USFWS"]
["20b",0,"Flowering Plants","Nohoanu","Geranium hanaense",2758,"USFWS"]
["20b",0,"Flowering Plants","Kamakahala","Labordia helleri",2778,"USFWS"]
["20b",0,"Ferns and Allies","kilau","Dryopteris glabra var. pusilla",2782,"USFWS"]
["20b",0,"Flowering Plants","Haha","Cyanea obtusa",2860,"USFWS"]
["20b",0,"Flowering Plants","No common name","Phyllostegia bracteata",2934,"USFWS"]
["20b",0,"Flowering Plants","Kolea","Myrsine vaccinioides",2970,"USFWS"]
["20b",0,"Flowering Plants","Ha`iwale","Cyrtandra hematos",3020,"USFWS"]
["20b",0,"Flowering Plants","Na`ena`e","Dubautia plantaginea magnifolia",3049,"USFWS"]
["20b",0,"Flowering Plants","Lo`ulu","Pritchardia lanigera",3054,"USFWS"]
["20b",0,"Flowering Plants","Oahu wild coffee (=kopiko)","Psychotria hexandra ssp. oahuensis",3084,"USFWS"]
["20b",0,"Flowering Plants","Ihi","Portulaca villosa",3116,"USFWS"]
["20b",0,"Flowering Plants","Ho`awa","Pittosporum napaliense",3154,"USFWS"]
["20b",0,"Flowering Plants","Ma`oli`oli","Schiedea hawaiiensis",3175,"USFWS"]
["20b",0,"Snails","no common name","Ostodes strigatus",3224,"USFWS"]
["20b",0,"Flowering Plants","Makou","Ranunculus mauiensis",3292,"USFWS"]
["20b",0,"Snails","Snail, Lanai tree","Partulina variabilis",3385,"USFWS"]
["20b",0,"Flowering Plants","Pilo kea lau li`i","Platydesma rostrata",3387,"USFWS"]
["20b",0,"Flowering Plants","Papala","Charpentiera densiflora",3388,"USFWS"]
["20b",0,"Flowering Plants","Alani","Melicope christophersenii",3472,"USFWS"]
["20b",0,"Flowering Plants","Haha","Cyanea calycina",3540,"USFWS"]
["20b",0,"Flowering Plants","No common name","Phyllostegia brevidens",3592,"USFWS"]
["20b",0,"Flowering Plants","Nohoanu","Geranium hillebrandii",3653,"USFWS"]
["20b",0,"Flowering Plants","Alani","Melicope makahae",3728,"USFWS"]
["20b",0,"Flowering Plants","Hala pepe","Pleomele forbesii",3737,"USFWS"]
["20b",0,"Flowering Plants","Alani","Melicope puberula",3753,"USFWS"]
["20b",0,"Flowering Plants","No common name","Sanicula sandwicensis",3784,"USFWS"]
["20b",0,"Flowering Plants","Kamakahala","Labordia pumila",3832,"USFWS"]
["20b",0,"Flowering Plants","`Akoko","Chamaesyce remyi var. kauaiensis",3871,"USFWS"]
["20b",0,"Snails","Tree snail, Newcomb's","Newcombia cumingi",3876,"USFWS"]
["20b",0,"Flowering Plants","Ufa-halomtano","Heritiera longipetiolata",3999,"USFWS"]
["20b",0,"Insects","Fly, Hawaiian picture-wing","Drosophila digressa",4000,"USFWS"]
["20b",0,"Flowering Plants","No common name","Pittosporum hawaiiense",4007,"USFWS"]
["20b",0,"Flowering Plants","No common name","Schiedea salicaria",4030,"USFWS"]
["20b",0,"Birds","Akikiki","Oreomystis bairdi",4136,"USFWS"]
["20b",0,"Flowering Plants","Ha`iwale","Cyrtandra kaulantha",4201,"USFWS"]
["20b",0,"Flowering Plants","No common name","Wikstroemia villosa",4238,"USFWS"]
["20b",0,"Flowering Plants","No common name","Stenogyne kaalae ssp. sherffii",4297,"USFWS"]
["20b",0,"Insects","Mariana eight-spot butterfly","Hypolimnas octocula mariannensis",4308,"USFWS"]
["20b",0,"Insects","Crimson Hawaiian damselfly","Megalagrion leptodemas",4326,"USFWS"]
["20b",0,"Flowering Plants","Alani","Melicope hiiakae",4377,"USFWS"]
["20b",0,"Insects","Assimulans yellow-faced bee","Hylaeus assimulans",4413,"USFWS"]
["20b",0,"Flowering Plants","No common name","Keysseria (=Lagenifera) erici",4487,"USFWS"]
["20b",0,"Flowering Plants","No common name","Phyllostegia floribunda",4533,"USFWS"]
["20b",0,"Mammals","Pacific sheath-tailed Bat (American Samoa population)","Emballonura semicaudata semicaudata",4564,"USFWS"]
["20b",0,"Flowering Plants","Ko`oko`olau","Bidens micrantha ctenophylla",4589,"USFWS"]
["20b",0,"Flowering Plants","Nohoanu","Geranium kauaiense",4630,"USFWS"]
["20b",0,"Flowering Plants","Wawae`iole","Huperzia (=Phlegmariurus) stemmermanniae",4680,"USFWS"]
["20b",0,"Flowering Plants","No common name","Pittosporum halophilum",4740,"USFWS"]
["20b",0,"Flowering Plants","No common name","Phyllostegia helleri",4754,"USFWS"]
["20b",0,"Flowering Plants","Na`ena`e","Dubautia imbricata imbricata",4858,"USFWS"]
["20b",0,"Birds","Guam rail (Experimental pop)","Rallus owstoni",4889,"USFWS"]
["20b",0,"Insects","Mariana wandering butterfly","Vagrans egistina",5168,"USFWS"]
["20b",0,"Birds","Friendly Ground-Dove (American Samoa DPS)","Gallicolumba stairi",5170,"USFWS"]
["20b",0,"Flowering Plants","Nanu","Gardenia remyi",5186,"USFWS"]
["20b",0,"Insects","Hawaiian yellow-faced bee","Hylaeus longiceps",5333,"USFWS"]
["20b",0,"Flowering Plants","`Ena`ena","Pseudognaphalium (=Gnaphalium) sandwicensium var. molokaiense",5334,"USFWS"]
["20b",0,"Insects","Anthricinan yellow-faced bee","Hylaeus anthracinus",5580,"USFWS"]
["20b",0,"Flowering Plants","No common name","Platydesma remyi",5709,"USFWS"]
["20b",0,"Flowering Plants","Kolea","Myrsine fosbergii",5763,"USFWS"]
["20b",0,"Flowering Plants","Popolo","Cyanea solanacea",5956,"USFWS"]
["20b",0,"Flowering Plants","No common name","Cyrtandra waiolani",5991,"USFWS"]
["20b",0,"Flowering Plants","Haha","Cyanea lanceolata",6019,"USFWS"]
["20b",0,"Flowering Plants","No common name","Festuca hawaiiensis",6176,"USFWS"]
["20b",0,"Insects","Oceanic Hawaiian damselfly","Megalagrion oceanicum",6231,"USFWS"]
["20b",0,"Flowering Plants","No common name","Stenogyne cranwelliae",6257,"USFWS"]
["20b",0,"Flowering Plants","No common name","Cyanea profuga",6303,"USFWS"]
["20b",0,"Birds","Akekee","Loxops caeruleirostris",6522,"USFWS"]
["20b",0,"Flowering Plants","Kopiko","Psychotria hobdyi",6536,"USFWS"]
["20b",0,"Flowering Plants","Hillegrand's reedgrass","Calamagrostis hillebrandii",6632,"USFWS"]
["20b",0,"Flowering Plants","Ha`iwale","Cyrtandra oenobarba",6679,"USFWS"]
["20b",0,"Insects","Easy yellow-faced bee","Hylaeus facilis",6747,"USFWS"]
["20b",0,"Flowering Plants","Pa`iniu","Astelia waialealae",6845,"USFWS"]
["20b",0,"Insects","Orangeblack Hawaiian damselfly","Megalagrion xanthomelas",6867,"USFWS"]
["20b",0,"Flowering Plants","Popolo","Solanum nelsonii",6870,"USFWS"]
["20b",0,"Flowering Plants","Haha","Cyanea marksii",6969,"USFWS"]
["20b",0,"Flowering Plants","No common name","Platydesma cornuta decurrens",7046,"USFWS"]
["20b",0,"Flowering Plants","Holei","Ochrosia haleakalae",7067,"USFWS"]
["20b",0,"Flowering Plants","Maui reedgrass","Calamagrostis expansa",7116,"USFWS"]
["20b",0,"Flowering Plants","lehua makanoe","Lysimachia daphnoides",7170,"USFWS"]
["20b",0,"Flowering Plants","No common name","Phyllostegia hispida",7229,"USFWS"]
["20b",0,"Flowering Plants","No common name","Phyllostegia stachyoides",7254,"USFWS"]
["20b",0,"Insects","Fly, Hawaiian picture-wing","Drosophila sharpi",7261,"USFWS"]
["20b",0,"Flowering Plants","`aku","Cyanea tritomantha",7280,"USFWS"]
["20b",0,"Flowering Plants","No common name","Tetraplasandra lydgatei",7367,"USFWS"]
["20b",0,"Flowering Plants","No common name","Diellia mannii",7529,"USFWS"]
["20b",0,"Flowering Plants","Ko`oko`olau","Bidens campylotheca pentamera",7617,"USFWS"]
["20b",0,"Snails","Langford's tree snail","Partula langfordi",7731,"USFWS"]
["20b",0,"Flowering Plants","`Awikiwiki","Canavalia pubescens",7805,"USFWS"]
["20b",0,"Flowering Plants","No common name","Wikstroemia skottsbergiana",7840,"USFWS"]
["20b",0,"Flowering Plants","No common name","Polyscias bisattenuata",7886,"USFWS"]
["20b",0,"Flowering Plants","Haha","Cyanea asplenifolia",7892,"USFWS"]
["20b",0,"Snails","Guam tree snail","Partula radiolata",7907,"USFWS"]
["20b",0,"Snails","no common name","Eua zebrina",7918,"USFWS"]
["20b",0,"Insects","Hilaris yellow-faced bee","Hylaeus hilaris",7955,"USFWS"]
["20b",0,"Flowering Plants","A`e","Zanthoxylum oahuense",7979,"USFWS"]
["20b",0,"Mammals","Pacific sheath-tailed Bat","Emballonura semicaudata rotensis",8166,"USFWS"]
["20b",0,"Flowering Plants","No common name","Keysseria (=Lagenifera) helenae",8254,"USFWS"]
["20b",0,"Flowering Plants","Ko`oko`olau","Bidens campylotheca waihoiensis",8277,"USFWS"]
["20b",0,"Flowering Plants","No common name","Platydesma cornuta cornuta",8303,"USFWS"]
["20b",0,"Flowering Plants","Ko`oko`olau","Bidens conjuncta",8338,"USFWS"]
["20b",0,"Flowering Plants","No common name","Cyrtandra gracilis",8347,"USFWS"]
["20b",0,"Flowering Plants","Alani","Melicope paniculata",8357,"USFWS"]
["20b",0,"Birds","Hawaiian (='lo) Hawk","Buteo solitarius",8386,"USFWS"]
["20b",0,"Mammals","Mariana Fruit Bat ","Pteropus mariannus mariannus",8962,"USFWS"]
["20b",0,"Insects","Rota blue damselfly","Ischnura luta",9282,"USFWS"]
["20b",0,"Snails","Oahu tree snail","Achatinella sowerbyana",9395,"USFWS"]
["20b",0,"Snails","Oahu tree snail","Achatinella livida",9397,"USFWS"]
["20b",0,"Snails","Oahu tree snail","Achatinella mustelina",9399,"USFWS"]
["20b",0,"Snails","Oahu tree snail","Achatinella apexfulva",9401,"USFWS"]
["20b",0,"Snails","Oahu tree snail","Achatinella fulgens",9403,"USFWS"]
["20b",0,"Snails","Oahu tree snail","Achatinella concavospira",9405,"USFWS"]
["20b",0,"Snails","Oahu tree snail","Achatinella stewartii",9407,"USFWS"]
["20b",0,"Snails","Oahu tree snail","Achatinella decipiens",9409,"USFWS"]
["20b",0,"Snails","Oahu tree snail","Achatinella pulcherrima",9411,"USFWS"]
["20b",0,"Snails","Oahu tree snail","Achatinella fuscobasis",9413,"USFWS"]
["20b",0,"Snails","Oahu tree snail","Achatinella lila",9415,"USFWS"]
["20b",0,"Snails","Oahu tree snail","Achatinella leucorraphe",9417,"USFWS"]
["20b",0,"Snails","Oahu tree snail","Achatinella curta",9419,"USFWS"]
["20b",0,"Snails","Oahu tree snail","Achatinella bulimoides",9421,"USFWS"]
["20b",0,"Snails","Oahu tree snail","Achatinella byronii",9423,"USFWS"]
["20b",0,"Snails","Oahu tree snail","Achatinella dimorpha",9439,"USFWS"]
["20b",0,"Snails","Oahu tree snail","Achatinella elegans",9441,"USFWS"]
["20b",0,"Snails","Oahu tree snail","Achatinella juncea",9443,"USFWS"]
["20b",0,"Snails","Oahu tree snail","Achatinella lehuiensis",9445,"USFWS"]
["20b",0,"Snails","Oahu tree snail","Achatinella papyracea",9447,"USFWS"]
["20b",0,"Snails","Oahu tree snail","Achatinella rosea",9449,"USFWS"]
["20b",0,"Snails","Oahu tree snail","Achatinella spaldingi",9451,"USFWS"]
["20b",0,"Snails","Oahu tree snail","Achatinella swiftii",9453,"USFWS"]
["20b",0,"Snails","Oahu tree snail","Achatinella thaahumi",9455,"USFWS"]
["20b",0,"Snails","Oahu tree snail","Achatinella valida",9457,"USFWS"]
["20b",0,"Snails","Oahu tree snail","Achatinella abbreviata",9459,"USFWS"]
["20b",0,"Snails","Oahu tree snail","Achatinella bellula",9461,"USFWS"]
["20b",0,"Snails","Oahu tree snail","Achatinella cestus",9465,"USFWS"]
["20b",0,"Snails","Oahu tree snail","Achatinella juddi",9467,"USFWS"]
["20b",0,"Snails","Oahu tree snail","Achatinella lorata",9469,"USFWS"]
["20b",0,"Snails","Oahu tree snail","Achatinella phaeozona",9471,"USFWS"]
["20b",0,"Snails","Oahu tree snail","Achatinella pupukanioe",9473,"USFWS"]
["20b",0,"Snails","Oahu tree snail","Achatinella taeniolata",9475,"USFWS"]
["20b",0,"Snails","Oahu tree snail","Achatinella turgida",9477,"USFWS"]
["20b",0,"Snails","Oahu tree snail","Achatinella viridans",9479,"USFWS"]
["20b",0,"Snails","Oahu tree snail","Achatinella vulpina",9483,"USFWS"]
["20b",0,"Flowering Plants","Haha","Cyanea dolichopoda",9951,"USFWS"]
["20b",0,"Flowering Plants","Haha","Cyanea kolekoleensis",9952,"USFWS"]
["20b",0,"Flowering Plants","Haiwale","Cyrtandra paliku",9953,"USFWS"]
["20b",0,"Flowering Plants","Naenae","Dubautia kalalauensis",9954,"USFWS"]
["20b",0,"Flowering Plants","Naenae","Dubautia kenwoodii",9955,"USFWS"]
["20b",0,"Flowering Plants","No common name","Lysimachia iniki",9956,"USFWS"]
["20b",0,"Flowering Plants","No common name","Lysimachia pendens",9957,"USFWS"]
["20b",0,"Flowering Plants","No common name","Lysimachia scopulensis",9958,"USFWS"]
["20b",0,"Flowering Plants","Kolea","Myrsine knudsenii",9959,"USFWS"]
["20b",0,"Flowering Plants","No common name","Phyllostegia renovans",9960,"USFWS"]
["20b",0,"Flowering Plants","No common name","Polyscias flynnii",9961,"USFWS"]
["20b",0,"Flowering Plants","No common name","Doryopteris angelica",9962,"USFWS"]
["20b",0,"Ferns and Allies","Palapalai aumakua","Dryopteris crinalis var. podosorus",9963,"USFWS"]
["20b",0,"Insects","Hawaiian yellow-faced bee","Hylaeus mana",10008,"USFWS"]
["20b",0,"Insects","Hawaiian yellow-faced bee","Hylaeus kuakea",10009,"USFWS"]
["20b",0,"Birds","`I'iwi","Drepanis coccinea",10073,"USFWS"]
["20b",0,"Flowering Plants","haha","Cyanea duvalliorum",10222,"USFWS"]
["20b",0,"Flowering Plants","haha nui","Cyanea horrida",10223,"USFWS"]
["20b",0,"Flowering Plants","haha","Cyanea magnicalyx",10224,"USFWS"]
["20b",0,"Flowering Plants","haha","Cyanea maritae",10225,"USFWS"]
["20b",0,"Flowering Plants","haha","Cyanea munroi",10227,"USFWS"]
["20b",0,"Flowering Plants","haiwale","Cyrtandra ferripilosa",10228,"USFWS"]
["20b",0,"Flowering Plants","sea bean","Mucuna sloanei persericea",10229,"USFWS"]
["20b",0,"Flowering Plants","No common name","Phyllostegia pilosa",10231,"USFWS"]
["20b",0,"Flowering Plants","No common name","Schiedea jacobii",10232,"USFWS"]
["20b",0,"Flowering Plants","No common name","Schiedea laui",10233,"USFWS"]
["20b",0,"Flowering Plants","No common name","Stenogyne kauaulaensis",10234,"USFWS"]
["20b",0,"Flowering Plants","No common name","Festuca molokaiensis",10235,"USFWS"]
["20b",0,"Insects","Rusty patched bumble bee","Bombus affinis",10383,"USFWS"]
["20b",0,"Flowering Plants","kookoolau","Bidens hillebrandiana ssp. hillebrandiana",10479,"USFWS"]
["20b",0,"Flowering Plants","haiwale","Cyrtandra nanawaleensis",10480,"USFWS"]
["20b",0,"Flowering Plants","haiwale","Cyrtandra wagneri",10481,"USFWS"]
["20b",0,"Flowering Plants","No common name","Schiedea diffusa ssp. macraei",10483,"USFWS"]
["20b",0,"Flowering Plants","Menzies ballart","Exocarpos menziesii",10583,"USFWS"]
["20b",0,"Flowering Plants","No common name","Santalum involutum",10584,"USFWS"]
["20b",0,"Flowering Plants","No common name","Sicyos lanceoloideus",10585,"USFWS"]
["20b",0,"Flowering Plants","No common name","Asplenium diellaciniatum",10586,"USFWS"]
["20b",0,"Ferns and Allies","No common name","Deparia kaalaana",10587,"USFWS"]
["20b",0,"Flowering Plants","No common name","Cyanea kauaulaensis",10588,"USFWS"]
["20b",0,"Flowering Plants","Loulu","Pritchardia bakeri",10590,"USFWS"]
["20b",0,"Flowering Plants","No common name","Schiedea diffusa subsp. diffusa",10591,"USFWS"]
["20b",0,"Flowering Plants","No common name","Lepidium orbiculare",10593,"USFWS"]
["20b",0,"Flowering Plants","olua","Hypolepis hawaiiensis var. mauiensis",10594,"USFWS"]
["20b",0,"Flowering Plants","No common name","Labordia lorenciana",10599,"USFWS"]
["20b",0,"Flowering Plants","Cebello halumtano","Bulbophyllum guamense",10719,"USFWS"]
["20b",0,"Flowering Plants","No common name","Dendrobium guamense",10720,"USFWS"]
["20b",0,"Flowering Plants","No common name","Eugenia bryanii",10721,"USFWS"]
["20b",0,"Flowering Plants","Paudedo","Hedyotis megalantha",10722,"USFWS"]
["20b",0,"Flowering Plants","No common name","Maesa walkeri",10723,"USFWS"]
["20b",0,"Flowering Plants","No common name","Nervilia jacksoniae",10724,"USFWS"]
["20b",0,"Flowering Plants","No common name","Phyllanthus saffordii",10725,"USFWS"]
["20b",0,"Flowering Plants","Aplokating-palaoan","Psychotria malaspinae",10726,"USFWS"]
["20b",0,"Flowering Plants","Berenghenas halomtano","Solanum guamense",10727,"USFWS"]
["20b",0,"Flowering Plants","No common name","Tuberolabium guamense",10728,"USFWS"]
["20b",0,"Flowering Plants","Fadang","Cycas micronesica",10729,"USFWS"]
["20b",0,"Reptiles","Slevin's skink","Emoia slevini",10732,"USFWS"]
["20b",0,"Birds","Maui Nukupu`u (honeycreeper)","Hemignathus affinis",11333,"USFWS"]
["20b",0,"Flowering Plants","No Common Name","Tinospora homosepala",11340,"USFWS"]
["20b",1,"Birds","akiapolaau","Hemignathus wilsoni",65,"USFWS"]
["20b",1,"Birds","Hawaiian (=koloa) Duck","Anas wyvilliana",69,"USFWS"]
["20b",1,"Birds","Hawaiian goose","Branta (=Nesochen) sandvicensis",73,"USFWS"]
["20b",1,"Birds","Hawaiian common gallinule","Gallinula chloropus sandvicensis",76,"USFWS"]
["20b",1,"Birds","Hawaiian stilt","Himantopus mexicanus knudseni",104,"USFWS"]
["20b",1,"Birds","Hawaiian coot","Fulica americana alai",108,"USFWS"]
["20b",1,"Birds","Guam kingfisher","Todiramphus cinnamominus",119,"USFWS"]
["20b",1,"Birds","Mariana common moorhen","Gallinula chloropus guami",120,"USFWS"]
["20b",1,"Flowering Plants","`Oha wai","Clermontia drepanomorpha",533,"USFWS"]
["20b",1,"Flowering Plants","Aupaka","Isodendrion longifolium",564,"USFWS"]
["20b",1,"Flowering Plants","No common name","Sanicula purpurea",601,"USFWS"]
["20b",1,"Flowering Plants","Liliwai","Acaena exigua",619,"USFWS"]
["20b",1,"Flowering Plants","Awiwi","Kadua cookiana",724,"USFWS"]
["20b",1,"Flowering Plants","Pilo","Hedyotis mannii",727,"USFWS"]
["20b",1,"Flowering Plants","Kuahiwi laukahi","Plantago princeps",800,"USFWS"]
["20b",1,"Flowering Plants","Nani wai`ale`ale","Viola kauaiensis var. wahiawaensis",865,"USFWS"]
["20b",1,"Flowering Plants","Heau","Exocarpos luteolus",938,"USFWS"]
["20b",1,"Flowering Plants","Nohoanu","Geranium multiflorum",939,"USFWS"]
["20b",1,"Flowering Plants","Kamakahala","Labordia lydgatei",955,"USFWS"]
["20b",1,"Flowering Plants","Nehe","Lipochaeta micrantha",962,"USFWS"]
["20b",1,"Flowering Plants","No common name","Platanthera holochila",983,"USFWS"]
["20b",1,"Flowering Plants","Kuawawaenohu","Schiedea lychnoides",1084,"USFWS"]
["20b",1,"Flowering Plants","Haha","Cyanea dunbarii",1101,"USFWS"]
["20b",1,"Flowering Plants","Haha","Cyanea glabra",1102,"USFWS"]
["20b",1,"Flowering Plants","Pu`uka`a","Cyperus trachysanthos",1108,"USFWS"]
["20b",1,"Flowering Plants","Ha`iwale","Cyrtandra limahuliensis",1110,"USFWS"]
["20b",1,"Flowering Plants","No common name","Phyllostegia waimeae",1135,"USFWS"]
["20b",1,"Flowering Plants","Haha","Cyanea acuminata",1175,"USFWS"]
["20b",1,"Flowering Plants","Kamakahala","Labordia tinifolia var. wahiawaensis",1178,"USFWS"]
["20b",1,"Flowering Plants","Haha","Cyanea copelandii ssp. haleakalaensis",1185,"USFWS"]
["20b",1,"Flowering Plants","Kohe malama malama o kanaloa","Kanaloa kahoolawensis",1187,"USFWS"]
["20b",1,"Ferns and Allies","Ihi`ihi","Marsilea villosa",1200,"USFWS"]
["20b",1,"Ferns and Allies","No common name","Pteris lidgatei",1202,"USFWS"]
["20b",1,"Flowering Plants","haha","Cyanea crispa",1224,"USFWS"]
["20b",1,"Ferns and Allies","Boyds maiden fern","Cyclosorus boydiae",1311,"USFWS"]
["20b",1,"Insects","Blackline Hawaiian damselfly","Megalagrion nigrohamatum nigrolineatum",1361,"USFWS"]
["20b",1,"Flowering Plants","No common name","Cyperus neokunthianus",1407,"USFWS"]
["20b",1,"Flowering Plants","Kolea","Myrsine mezii",1521,"USFWS"]
["20b",1,"Insects","Pacific Hawaiian damselfly","Megalagrion pacificum",1953,"USFWS"]
["20b",1,"Flowering Plants","Haha","Cyanea kunthiana",1968,"USFWS"]
["20b",1,"Insects","Flying earwig Hawaiian damselfly","Megalagrion nesiotes",2144,"USFWS"]
["20b",1,"Flowering Plants","Na`ena`e","Dubautia waialealae",2154,"USFWS"]
["20b",1,"Flowering Plants","Ha`iwale","Cyrtandra sessilis",2273,"USFWS"]
["20b",1,"Flowering Plants","Nohoanu","Geranium hanaense",2758,"USFWS"]
["20b",1,"Flowering Plants","Kamakahala","Labordia helleri",2778,"USFWS"]
["20b",1,"Ferns and Allies","kilau","Dryopteris glabra var. pusilla",2782,"USFWS"]
["20b",1,"Flowering Plants","No common name","Phyllostegia bracteata",2934,"USFWS"]
["20b",1,"Flowering Plants","Lo`ulu","Pritchardia lanigera",3054,"USFWS"]
["20b",1,"Flowering Plants","Papala","Charpentiera densiflora",3388,"USFWS"]
["20b",1,"Flowering Plants","No common name","Phyllostegia brevidens",3592,"USFWS"]
["20b",1,"Flowering Plants","Nohoanu","Geranium hillebrandii",3653,"USFWS"]
["20b",1,"Flowering Plants","Kamakahala","Labordia pumila",3832,"USFWS"]
["20b",1,"Insects","Crimson Hawaiian damselfly","Megalagrion leptodemas",4326,"USFWS"]
["20b",1,"Flowering Plants","No common name","Keysseria (=Lagenifera) erici",4487,"USFWS"]
["20b",1,"Flowering Plants","Nohoanu","Geranium kauaiense",4630,"USFWS"]
["20b",1,"Flowering Plants","Kolea","Myrsine fosbergii",5763,"USFWS"]
["20b",1,"Flowering Plants","No common name","Cyrtandra waiolani",5991,"USFWS"]
["20b",1,"Flowering Plants","Haha","Cyanea lanceolata",6019,"USFWS"]
["20b",1,"Insects","Oceanic Hawaiian damselfly","Megalagrion oceanicum",6231,"USFWS"]
["20b",1,"Birds","Akekee","Loxops caeruleirostris",6522,"USFWS"]
["20b",1,"Flowering Plants","Hillegrand's reedgrass","Calamagrostis hillebrandii",6632,"USFWS"]
["20b",1,"Flowering Plants","Ha`iwale","Cyrtandra oenobarba",6679,"USFWS"]
["20b",1,"Flowering Plants","Pa`iniu","Astelia waialealae",6845,"USFWS"]
["20b",1,"Insects","Orangeblack Hawaiian damselfly","Megalagrion xanthomelas",6867,"USFWS"]
["20b",1,"Flowering Plants","Maui reedgrass","Calamagrostis expansa",7116,"USFWS"]
["20b",1,"Flowering Plants","lehua makanoe","Lysimachia daphnoides",7170,"USFWS"]
["20b",1,"Flowering Plants","No common name","Polyscias bisattenuata",7886,"USFWS"]
["20b",1,"Flowering Plants","A`e","Zanthoxylum oahuense",7979,"USFWS"]
["20b",1,"Flowering Plants","No common name","Keysseria (=Lagenifera) helenae",8254,"USFWS"]
["20b",1,"Flowering Plants","No common name","Platydesma cornuta cornuta",8303,"USFWS"]
["20b",1,"Insects","Rota blue damselfly","Ischnura luta",9282,"USFWS"]
["20b",1,"Flowering Plants","No common name","Phyllostegia renovans",9960,"USFWS"]
["20b",1,"Flowering Plants","No common name","Polyscias flynnii",9961,"USFWS"]
["20b",1,"Ferns and Allies","Palapalai aumakua","Dryopteris crinalis var. podosorus",9963,"USFWS"]
["20b",1,"Flowering Plants","haiwale","Cyrtandra wagneri",10481,"USFWS"]
["20b",1,"Flowering Plants","No common name","Schiedea diffusa ssp. macraei",10483,"USFWS"]
["20b",1,"Ferns and Allies","No common name","Deparia kaalaana",10587,"USFWS"]
[21,0,"Birds","Puerto Rican parrot","Amazona vittata",80,"USFWS"]
[21,0,"Birds","Puerto Rican plain pigeon","Columba inornata wetmorei",101,"USFWS"]
[21,0,"Birds","Puerto Rican nightjar","Caprimulgus noctitherus",111,"USFWS"]
[21,0,"Birds","Yellow-shouldered blackbird","Agelaius xanthomus",117,"USFWS"]
[21,0,"Birds","Puerto Rican broad-winged hawk","Buteo platypterus brunnescens",127,"USFWS"]
[21,0,"Birds","Puerto Rican sharp-shinned hawk","Accipiter striatus venator",128,"USFWS"]
[21,0,"Birds","Roseate tern","Sterna dougallii dougallii",136,"USFWS"]
[21,0,"Reptiles","Puerto Rican Boa","Epicrates inornatus",156,"USFWS"]
[21,0,"Reptiles","Culebra Island Giant Anole","Anolis roosevelti",162,"USFWS"]
[21,0,"Reptiles","St. Croix Ground Lizard","Ameiva polops",163,"USFWS"]
[21,0,"Reptiles","Mona Boa","Epicrates monensis monensis",164,"USFWS"]
[21,0,"Reptiles","Mona Ground Iguana","Cyclura cornuta stejnegeri",165,"USFWS"]
[21,0,"Reptiles","Virgin Islands Tree Boa","Epicrates monensis granti",174,"USFWS"]
[21,0,"Reptiles","Monito gecko","Sphaerodactylus micropithecus",177,"USFWS"]
[21,0,"Amphibians","Puerto Rican crested toad","Peltophryne lemur",195,"USFWS"]
[21,0,"Amphibians","Guajon","Eleutherodactylus cooki",196,"USFWS"]
[21,0,"Flowering Plants","Pelos del diablo","Aristida portoricensis",883,"USFWS"]
[21,0,"Flowering Plants","Palo de ramon","Banara vanderbiltii",890,"USFWS"]
[21,0,"Flowering Plants","Vahl's boxwood","Buxus vahlii",893,"USFWS"]
[21,0,"Flowering Plants","Capa rosa","Callicarpa ampla",894,"USFWS"]
[21,0,"Flowering Plants","No common name","Calyptranthes thomasiana",895,"USFWS"]
[21,0,"Flowering Plants","No common name","Chamaecrista glandulosa var. mirabilis",900,"USFWS"]
[21,0,"Flowering Plants","No common name","Cordia bellonis",908,"USFWS"]
[21,0,"Flowering Plants","Palo de nigua","Cornutia obovata",909,"USFWS"]
[21,0,"Flowering Plants","No common name","Daphnopsis hellerana",921,"USFWS"]
[21,0,"Flowering Plants","Uvillo","Eugenia haematocarpa",936,"USFWS"]
[21,0,"Flowering Plants","Higo Chumbo","Harrisia portoricensis",942,"USFWS"]
[21,0,"Flowering Plants","Cook's holly","Ilex cookii",948,"USFWS"]
[21,0,"Flowering Plants","No common name","Lepanthes eltoroensis",956,"USFWS"]
[21,0,"Flowering Plants","No common name","Mitracarpus maxwelliae",970,"USFWS"]
[21,0,"Flowering Plants","No common name","Mitracarpus polycladus",971,"USFWS"]
[21,0,"Flowering Plants","Palo de rosa","Ottoschulzia rhodoxylon",975,"USFWS"]
[21,0,"Flowering Plants","Wheeler's peperomia","Peperomia wheeleri",980,"USFWS"]
[21,0,"Flowering Plants","Chupacallos","Pleodendron macranthum",985,"USFWS"]
[21,0,"Flowering Plants","Erubia","Solanum drymophilum",1002,"USFWS"]
[21,0,"Flowering Plants","Palo colorado","Ternstroemia luquillensis",1006,"USFWS"]
[21,0,"Flowering Plants","No common name","Ternstroemia subsessilis",1007,"USFWS"]
[21,0,"Flowering Plants","Bariaco","Trichilia triacantha",1012,"USFWS"]
[21,0,"Flowering Plants","St. Thomas prickly-ash","Zanthoxylum thomasianum",1018,"USFWS"]
[21,0,"Flowering Plants","No common name","Myrcia paganii",1033,"USFWS"]
[21,0,"Flowering Plants","Palo de jazmin","Styrax portoricensis",1040,"USFWS"]
[21,0,"Flowering Plants","No common name","Schoepfia arenaria",1072,"USFWS"]
[21,0,"Flowering Plants","No common name","Aristida chaseae",1085,"USFWS"]
[21,0,"Flowering Plants","No common name","Auerodendron pauciflorum",1091,"USFWS"]
[21,0,"Flowering Plants","No common name","Catesbaea melanocarpa",1092,"USFWS"]
[21,0,"Flowering Plants","West Indian Walnut (=Nogal)","Juglans jamaicensis",1121,"USFWS"]
[21,0,"Flowering Plants","No common name","Leptocereus grantianus",1124,"USFWS"]
[21,0,"Flowering Plants","No common name","Lyonia truncata var. proctorii",1127,"USFWS"]
[21,0,"Flowering Plants","No common name","Vernonia proctorii",1158,"USFWS"]
[21,0,"Flowering Plants","No common name","Cranichis ricartii",1160,"USFWS"]
[21,0,"Flowering Plants","No common name","Ilex sintenisii",1162,"USFWS"]
[21,0,"Flowering Plants","No common name","Eugenia woodburyana",1169,"USFWS"]
[21,0,"Flowering Plants","Elfin tree fern","Cyathea dryopteroides",1206,"USFWS"]
[21,0,"Flowering Plants","No common name","Adiantum vivesii",1210,"USFWS"]
[21,0,"Flowering Plants","No common name","Elaphoglossum serpens",1212,"USFWS"]
[21,0,"Flowering Plants","No common name","Polystichum calderonense",1213,"USFWS"]
[21,0,"Flowering Plants","No common name","Tectaria estremerana",1214,"USFWS"]
[21,0,"Ferns and Allies","No common name","Thelypteris inabonensis",1215,"USFWS"]
[21,0,"Flowering Plants","No common name","Thelypteris verecunda",1216,"USFWS"]
[21,0,"Flowering Plants","No common name","Thelypteris yaucoensis",1217,"USFWS"]
[21,0,"Flowering Plants","Beautiful goetzea","Goetzea elegans",1231,"USFWS"]
[21,0,"Flowering Plants","No common name","Varronia rupicola",3267,"USFWS"]
[21,0,"Flowering Plants","No common name","Agave eggersiana",3671,"USFWS"]
[21,0,"Flowering Plants","No common name","Gonocalyx concolor",3990,"USFWS"]
[21,0,"Birds","Elfin-woods warbler","Dendroica angelae",4237,"USFWS"]
[21,0,"Flowering Plants","Marron bacora","Solanum conocarpum",4551,"USFWS"]
[21,0,"Amphibians","Llanero Coqui","Eleutherodactylus juanariveroi",9378,"USFWS"]
[21,0,"Insects","Puerto Rico harlequin butterfly","Atlantea tulita",10007,"USFWS"]
[21,0,"Birds","Eastern Black rail","Laterallus jamaicensis ssp. jamaicensis",11319,"USFWS"]
[21,1,"Birds","Yellow-shouldered blackbird","Agelaius xanthomus",117,"USFWS"]
[21,1,"Birds","Roseate tern","Sterna dougallii dougallii",136,"USFWS"]
[21,1,"Reptiles","St. Croix ground lizard","Ameiva polops",163,"USFWS"]
[21,1,"Amphibians","Puerto Rican crested toad","Peltophryne lemur",195,"USFWS"]
[21,1,"Amphibians","Guajon","Eleutherodactylus cooki",196,"USFWS"]
[21,1,"Flowering Plants","Palma de manaca","Calyptronoma rivalis",896,"USFWS"]
[21,1,"Flowering Plants","Higuero de sierra","Crescentia portoricensis",912,"USFWS"]
[21,1,"Flowering Plants","Cobana negra","Stahlia monosperma",1005,"USFWS"]
[21,1,"Flowering Plants","No common name","Gesneria pauciflora",1057,"USFWS"]
[21,1,"Ferns and Allies","No common name","Thelypteris inabonensis",1215,"USFWS"]
[21,1,"Amphibians","Llanero Coqui","Eleutherodactylus juanariveroi",9378,"USFWS"]
[21,1,"Birds","Eastern Black rail","Laterallus jamaicensis ssp. jamaicensis",11319,"USFWS"]